Workbook

Sheet Start
F1: 1 | G1: 2 | J1: 0
A2: 1 | B2: Start
A3: 2 | B3: Start
A4: 0
D5: 2 | E5: 0
C6: Start | F6: For many basic Excel techniques, which are used here in this file, there are detailed explanations in the file "Excel-Basics". Therefore - if here in this file it is said "Do this … and that …" and you don't know how to do it - please have a look into the file "Excel-Basics". Hopefully you will find the needed explanations there. If not - send me a short notice to stern@jade-hs.de! Before you start working with this file you should definitely work through the two sheets "How to make notes" and "Help ..." in the file "Excel-Basics"! If the buttons for language switching don't work, please click the following: File / Options / Trust Center / Trust Center Settings / Macro Settings / Enable All Macros Then close and re-open this file again. | G6: Zu vielen grundlegenen Excel-Techniken, die hier in dieser Datei benutzt werden, gibt es detaillierte Erläuterungen in der Datei "Excel-Basics". Wenn es daher in dieser Datei heißt "Machen Sie dieses … und jenes …" und Sie wissen nicht wie - sehen Sie bitte in der Datei "Excel-Basics" nach. Hoffentlich finden Sie dort die benötigten Erklärungen. Wenn nicht - schicken Sie mir bitte einen Hinweis an stern@jade-hs.de! Bevor Sie beginnen, mit dieser Datei zu arbeiten, sollten Sie aber auf jeden Fall zuerst die beiden Blätter "Notizen machen" und "Hilfe ..." in der Datei "Excel-Basics" durchgearbeitet haben! Wenn die Buttons zur Sprachumschaltung nicht funktionieren, klicken Sie bitte folgendes an: Datei / Optionen / Trust-Center / Einstellungen für das Trust-Center / Makroeinstellungen / Alle Makros aktivieren Dann diese Datei schließen und erneut öffnen.
C7: Vorlage
C8: Zufallszahlen
C9: Zufallbuchstaben | E9: 1066.5
C10: Daten (1) | E10: 38.25
C11: Daten (2) | E11: 0
C12: Daten (3)
C13: 01 Diagramm erstellen
C14: 02 Diagramm ändern
C15: 03 Diagramm gestalten
C16: 04 Fortgeschrittene Techniken
C17: 05 Zeitreihe
C18: 06 Anteile (1)
C19: 07 Anteile (2)
C20: 08 Sekundärachse
C21: 09 Pareto-Diagramm
C22: 10 Punkt (XY)-Diagramm
C23: 11 3D-Diagramm
C24: Bevor Sie weitermachen … (1)
C25: 12 Dynamische Diagramme
C26: 13 Blasendiagramm (1)
C27: 14 Blasendiagramm (2)
C28: 15 Netzdiagramm
C29: 16 GANTT-Diagramm (1)
C30: 17 GANTT-Diagramm (2)
C31: 18 Kastengrafik (A)
C32: 19 Sonstiges …

Sheet Vorlage
F1: 0
A2: 1 | B2: Template | F2: Back to Start
A3: 2 | B3: Vorlage | F3: Startseite
A9: 0

Sheet Vorlage_ (hidden)
B1: 2 | C1: 2 | D1: 2 | E1: 1 | F1: 1 | G1: 1 | H1: 0
A2: 1 | B2: Template_ | F2: =B2 -> Template_
A3: 2 | B3: Vorlage_
A4: 0
B5: 1 | C5: In meinen Übungsdateien können Sie nicht wie üblich durch Klick auf das Pluszeichen ein neues Arbeitsblatt anlegen. Wenn Sie ein neues Blatt brauchen, müssen Sie mit einem Rechtsklick auf den Blattnamen eine Kopie des Blattes "Vorlage" anlegen. ACHTUNG: Denken Sie daran, die Option "Kopie erstellen" zu aktivieren! | E5: 1 | F5: In my exercise files you cannot create a new worksheet by clicking on the plus sign as usual. If you need a new sheet, you have to create a copy of the sheet "Template" by right-clicking on the sheet name. ATTENTION: Please remember to activate the option "Create copy"!
B6: =IF(C6<>"",B5+1,"") -> 2 | C6: Nachdem Sie eine Kopie dieses Blattes angelegt haben, ändern Sie dessen Namen NICHT wie üblich unten auf dem Register. Stattdessen schreiben Sie den Blattnamen in die Zelle B3 des kopierten Blattes. Anschließend wechseln Sie auf das "Start"-Blatt und klicken dort erneut auf den Sprachbutton. Dann müssen Sie evtl. etwas Geduld haben, weil Excel alle Blätter - auch die ausgeblendeten mit den Videotexten - durchgeht, um sie in's Inhaltsverzeichnis aufzunehmen. Der neue Name erscheint dann in der Liste der Blätter auf dem "Start"-Blatt und auf dem Register des kopierten Blattes. | E6: =IF(F6<>"",E5+1,"") -> 2 | F6: After you have created a copy of this sheet, DO NOT change its name as usual at the bottom of the tab. Instead, write the sheet name in cell B2 of the copied sheet. Then switch to the "Start" page and click on the language button again. The new name then appears in the list of sheets on the "Start" sheet and on the tab of the copied sheet.
B7: =IF(C7<>"",B6+1,"") ->  | E7: =IF(F7<>"",E6+1,"") -> 

Sheet Zufallszahlen
J1: 0
A2: 1 | B2: Random numbers | F2: Back to Start
A3: 2 | B3: Zufallszahlen | F3: Startseite
A5: 2 | B5: Achtung | C5: Wenn Sie nach dem Drücken von Strg-Umschalt-N eine Fehlermeldung bekommen, müssen Sie zunächst die Makros aktivieren: "Datei / Optionen / Trust Center / Einstellungen für das Trust Center / Makroeinstellungen" "Alle Makros aktivieren / OK / OK"
A6: 2
A7: 2
A8: 2
A9: 2
A10: 1 | B10: Attention | C10: If you see an error message after pressing Ctrl-Shift-N you have to activate the macros first: "File / Options / Trust Center / Trust Center Settings / Macro Settings" "Enable all macros / OK / OK"
A11: 1
A12: 1
A13: 1
A42: 1 | B42: Exercise | C42: Try it!
A43: 2 | B43: Übung | C43: Probieren Sie es aus!
A44: 0

Sheet Zufallszahlen_ (hidden)
B1: 2 | C1: 2 | D1: 2 | E1: 1 | F1: 1 | G1: 1 | H1: 0
A2: 1 | B2: Random numbers_ | F2: =B2 -> Random numbers_
A3: 2 | B3: Zufallszahlen_
A4: 0
B5: 1 | C5: Diese Excel-Datei enthält ein Formular zur Generierung von Zufallszahlen. Sie können es mit der Tastenkombination Strg-Umschalt-N öffnen. Dann können Sie es benutzen, um sich schnell beliebige Mengen von Übungsdaten zu generieren! | E5: 1 | F5: This Excel file contains a form for the generation of random numbers. You can open it with the shortcut Ctrl-Shift-N. Then you can use it to generate very quickly any number of trial data!
B6: =IF(C6<>"",B5+1,"") -> 2 | C6: Dazu müssen Sie zuerst einen Bereich markieren, der mit Zufallszahlen gefüllt werden soll. Dieser Bereich kann auch aus mehreren nicht zusammenhängenden Teilbereichen bestehen! (markieren mit gedrückter Strg-Taste) Dann geben Sie die Parameter für die Generierung der Zufallszahlen ein und drücken "Bereich(e) füllen". Sie können auswählen, ob - ein Teil der Zellen leer bleiben soll, - ein Teil der Zahlen negativ sein soll, - nur ganze Zahlen generiert werden sollen. Mit dem Button "Bereich(e) leeren" können Sie … ok … das muss ich wohl nicht beschreiben. | E6: =IF(F6<>"",E5+1,"") -> 2 | F6: To do this, you must first select a range to be filled with random numbers. This range can also consist of several non-contiguous sub ranges! (selected with pressed Ctrl key) Then enter the parameters for the generation of the random numbers and press "Fill range(s)". You can choose whether - some of the cells should remain empty, - some of the numbers should be negative, - only integer numbers should be generated. With the button "Clear range(s)" you can ... ok ... I don't have to describe that.
B7: =IF(C7<>"",B6+1,"") ->  | E7: =IF(F7<>"",E6+1,"") -> 

Sheet Zufallbuchstaben
J1: 0
A2: 1 | B2: Random characters | F2: Back to Start
A3: 2 | B3: Zufallbuchstaben | F3: Startseite
A5: 2 | B5: Achtung | C5: Wenn Sie nach dem Drücken von Strg-Umschalt-N eine Fehlermeldung bekommen, müssen Sie zunächst die Makros aktivieren: "Datei / Optionen / Trust Center / Einstellungen für das Trust Center / Makroeinstellungen" "Alle Makros aktivieren / OK / OK"
A6: 2
A7: 2
A8: 2
A9: 2
A10: 1 | B10: Attention | C10: If you see an error message after pressing Ctrl-Shift-N you have to activate the macros first: "File / Options / Trust Center / Trust Center Settings / Macro Settings" "Enable all macros / OK / OK"
A11: 1
A12: 1
A13: 1
A33: 1 | B33: Exercise | C33: Try it!
A34: 2 | B34: Übung | C34: Probieren Sie es aus!
A35: 0

Sheet Zufallbuchstaben_ (hidden)
B1: 2 | C1: 2 | D1: 2 | E1: 1 | F1: 1 | G1: 1 | H1: 0
A2: 1 | B2: Random characters_ | F2: =B2 -> Random characters_
A3: 2 | B3: Zufallbuchstaben_
A4: 0
B5: 1 | C5: Diese Excel-Datei enthält ein Formular zur Generierung von zufälligen Zeichenfolgen. Sie können es mit der Tastenkombination Strg-Umschalt-C öffnen. Dann können Sie es benutzen, um sich schnell beliebige Mengen von Übungsdaten zu generieren! | E5: 1 | F5: This Excel file contains a form for the generation of random character sequences. You can open it with the shortcut Ctrl-Shift-C. Then you can use it to generate very quickly any number of trial data!
B6: =IF(C6<>"",B5+1,"") -> 2 | C6: Dazu müssen Sie zuerst einen Bereich markieren, der mit Zeichenfolgen gefüllt werden soll. Dieser Bereich kann auch aus mehreren nicht zusammenhängenden Teilbereichen bestehen! (markieren mit gedrückter Strg-Taste) Dann geben Sie die Parameter für die Generierung der Zeichenfolgen ein und drücken "Bereich(e) füllen". Sie können auswählen, ob die zeichenfolgen in zufälliger Weise durch Leerzeichen unterbrochen werden sollen. Mit dem Button "Bereich(e) leeren" können Sie … ok … das muss ich wohl nicht beschreiben. | E6: =IF(F6<>"",E5+1,"") -> 2 | F6: To do this, you must first select a range to be filled with random character sequences. This range can also consist of several non-contiguous sub ranges! (selected with pressed Ctrl key) Then enter the parameters for the generation of the random character sequences and press "Fill range(s)". You can choose whether the character sequences should be interrupted by spaces randomly. With the button "Clear range(s)" you can ... ok ... I don't have to describe that.
B7: =IF(C7<>"",B6+1,"") ->  | E7: =IF(F7<>"",E6+1,"") -> 

Sheet Daten (1)
J1: 0
A2: 1 | B2: Data (1) | F2: Back to Start | H2: Shares | K2: Time series | P2: 2-dimensional shares
A3: 2 | B3: Daten (1) | F3: Startseite | H3: Anteile | K3: Zeitreihe | P3: 2-dimensionale Anteile
A4: 0
B5: branch | C5: customer | D5: quarter | E5: sales | F5: orders | H5: branch | I5: total sales | K5: branch | L5: customer | M5: quarter | N5: sales | P5: sales | Q5: customer
B6: Bremen | C6: Esso | D6: 1 | E6: 112536 | F6: 92 | H6: Bremen | I6: 779137 | K6: Bremen | L6: Shell | M6: 1 | N6: 80425 | P6: branch | Q6: Aral | R6: Esso | S6: Shell | T6: Total
B7: Bremen | C7: Esso | D7: 2 | E7: 131845 | F7: 90 | H7: Hamburg | I7: 1172780 | K7: Bremen | L7: Shell | M7: 2 | N7: 78647 | P7: Bremen | R7: 480884 | S7: 298253 | T7: 779137
B8: Bremen | C8: Esso | D8: 3 | E8: 111525 | F8: 89 | H8: Oldenburg | I8: 616390 | K8: Bremen | L8: Shell | M8: 3 | N8: 72436 | P8: Hamburg | Q8: 146379 | R8: 682813 | S8: 343588 | T8: 1172780
B9: Bremen | C9: Esso | D9: 4 | E9: 124978 | F9: 96 | K9: Bremen | L9: Shell | M9: 4 | N9: 66745 | P9: Oldenburg | Q9: 139198 | S9: 477192 | T9: 616390
B10: Bremen | C10: Shell | D10: 1 | E10: 80425 | F10: 111 | H10: branch | I10: nr of orders | P10: Total | Q10: 285577 | R10: 1163697 | S10: 1119033 | T10: 2568307
B11: Bremen | C11: Shell | D11: 2 | E11: 78647 | F11: 120 | H11: Bremen | I11: 863 | K11: branch | L11: customer | M11: quarter | N11: sales
B12: Bremen | C12: Shell | D12: 3 | E12: 72436 | F12: 127 | H12: Hamburg | I12: 690 | K12: Hamburg | L12: Shell | M12: 1 | N12: 78176
B13: Bremen | C13: Shell | D13: 4 | E13: 66745 | F13: 138 | H13: Oldenburg | I13: 461 | K13: Hamburg | L13: Shell | M13: 2 | N13: 82789 | P13: sales | Q13: quarter
B14: Hamburg | C14: Aral | D14: 1 | E14: 38523 | F14: 19 | K14: Hamburg | L14: Shell | M14: 3 | N14: 88111 | P14: branch | Q14: 1 | R14: 2 | S14: 3 | T14: 4 | U14: Total
B15: Hamburg | C15: Aral | D15: 2 | E15: 39467 | F15: 17 | H15: quarter | I15: total sales | K15: Hamburg | L15: Shell | M15: 4 | N15: 94512 | P15: Bremen | Q15: 192961 | R15: 210492 | S15: 183961 | T15: 191723 | U15: 779137
B16: Hamburg | C16: Aral | D16: 3 | E16: 35712 | F16: 19 | H16: 1 | I16: 707917 | P16: Hamburg | Q16: 360589 | R16: 347180 | S16: 337822 | T16: 127189 | U16: 1172780
B17: Hamburg | C17: Aral | D17: 4 | E17: 32677 | F17: 15 | H17: 2 | I17: 704395 | P17: Oldenburg | Q17: 154367 | R17: 146723 | S17: 159509 | T17: 155791 | U17: 616390
B18: Hamburg | C18: Esso | D18: 1 | E18: 243890 | F18: 123 | H18: 3 | I18: 681292 | P18: Total | Q18: 707917 | R18: 704395 | S18: 681292 | T18: 474703 | U18: 2568307
B19: Hamburg | C19: Esso | D19: 2 | E19: 224924 | F19: 122 | H19: 4 | I19: 474703
B20: Hamburg | C20: Esso | D20: 3 | E20: 213999 | F20: 119
B21: Hamburg | C21: Shell | D21: 1 | E21: 78176 | F21: 66 | P21: orders | Q21: customer
B22: Hamburg | C22: Shell | D22: 2 | E22: 82789 | F22: 63 | P22: branch | Q22: Aral | R22: Esso | S22: Shell | T22: Total
B23: Hamburg | C23: Shell | D23: 3 | E23: 88111 | F23: 68 | P23: Bremen | Q23: 0 | R23: 367 | S23: 496 | T23: 863
B24: Hamburg | C24: Shell | D24: 4 | E24: 94512 | F24: 59 | P24: Hamburg | Q24: 70 | R24: 364 | S24: 256 | T24: 690
B25: Oldenburg | C25: Aral | D25: 1 | E25: 31243 | F25: 25 | P25: Oldenburg | Q25: 89 | R25: 0 | S25: 372 | T25: 461
B26: Oldenburg | C26: Aral | D26: 2 | E26: 33756 | F26: 24 | P26: Total | Q26: 159 | R26: 731 | S26: 1124 | T26: 2014
B27: Oldenburg | C27: Aral | D27: 3 | E27: 38299 | F27: 21
B28: Oldenburg | C28: Aral | D28: 4 | E28: 35900 | F28: 19
B29: Oldenburg | C29: Shell | D29: 1 | E29: 123124 | F29: 88 | P29: orders | Q29: quarter
B30: Oldenburg | C30: Shell | D30: 2 | E30: 112967 | F30: 92 | P30: branch | Q30: 1 | R30: 2 | S30: 3 | T30: 4 | U30: Total
B31: Oldenburg | C31: Shell | D31: 3 | E31: 121210 | F31: 98 | P31: Bremen | Q31: 203 | R31: 210 | S31: 216 | T31: 234 | U31: 863
B32: Oldenburg | C32: Shell | D32: 4 | E32: 119891 | F32: 94 | P32: Hamburg | Q32: 208 | R32: 202 | S32: 206 | T32: 74 | U32: 690
P33: Oldenburg | Q33: 113 | R33: 116 | S33: 119 | T33: 113 | U33: 461
P34: Total | Q34: 524 | R34: 528 | S34: 541 | T34: 421 | U34: 2014
P37: branch | Q37: quarter | R37: sales | S37: half year | T37: sales
P38: Bremen | Q38: 1 | R38: 192961 | S38: 1 | T38: =R38+R39 -> 403453
Q39: 2 | R39: 210492 | S39: 2 | T39: =R40+R41 -> 375684
Q40: 3 | R40: 183961
Q41: 4 | R41: 191723
P42: Hamburg | Q42: 1 | R42: 360589 | S42: 1 | T42: =R42+R43 -> 707769
Q43: 2 | R43: 347180 | S43: 2 | T43: =R44+R45 -> 465011
Q44: 3 | R44: 337822
Q45: 4 | R45: 127189
P46: Oldenburg | Q46: 1 | R46: 154367 | S46: 1 | T46: =R46+R47 -> 301090
Q47: 2 | R47: 146723 | S47: 2 | T47: =R48+R49 -> 315300
Q48: 3 | R48: 159509
Q49: 4 | R49: 155791

Sheet Daten (2)
I1: 0
A2: 1 | B2: Data (2) | F2: Back to Start | S2: Shares | V2: Time series | AH2: 2-dimensional shares
A3: 2 | B3: Daten (2) | F3: Startseite | S3: Anteile | V3: Zeitreihe | AH3: 2-dimensionale Anteile
A4: 0
B5: order nr. | C5: employee | D5: customer | E5: city | F5: zip code | G5: country | H5: article | I5: price | J5: discount | K5: amount | L5: total price | M5: shipping date | N5: shipping company | O5: category | P5: month | Q5: year | S5: country | T5: total sales | X5: category | AH5: sales | AI5: employee
B6: 10248 | C6: Buchanan | D6: Vins et alcools Chevalier | E6: Reims | F6: 51100 | G6: France | H6: Singaporean Hokkien Fried Mee | I6: 9.8 | J6: 0 | K6: 10 | L6: 98 | M6: 2011-07-28 | N6: Federal Shipping | O6: cereals | P6: 7 | Q6: 2011 | S6: USA | T6: 245584.59 | V6: year | W6: month | X6: beverages | Y6: cereals | Z6: meat | AA6: milk products | AB6: natural products | AC6: sea food | AD6: spices | AE6: sweets | AF6: total | AH6: category | AI6: Buchanan | AJ6: Callahan | AK6: Davolio | AL6: Dodsworth | AM6: Fuller | AN6: King | AO6: Leverling | AP6: Peacock | AQ6: Suyama | AR6: total
B7: 10248 | C7: Buchanan | D7: Vins et alcools Chevalier | E7: Reims | F7: 51100 | G7: France | H7: Mozzarella di Giovanni | I7: 24.3 | J7: 0 | K7: 5 | L7: 121.5 | M7: 2011-07-28 | N7: Federal Shipping | O7: milk products | P7: 7 | Q7: 2011 | S7: Germany | T7: 229351.11 | V7: 2011 | W7: 7 | X7: 908.8 | Y7: 416.06 | Z7: 393 | AA7: 2945 | AB7: 3124.8 | AC7: 457 | AD7: 675 | AE7: 3588.9 | AF7: =SUM(X7:AE7) -> 12508.56 | AH7: beverages | AI7: 11000.52 | AJ7: 17897.85 | AK7: 46599.35 | AL7: 19642.55 | AM7: 40248.25 | AN7: 27963.83 | AO7: 44757.4 | AP7: 50308.21 | AQ7: 9450.2 | AR7: 267868.16
B8: 10248 | C8: Buchanan | D8: Vins et alcools Chevalier | E8: Reims | F8: 51100 | G8: France | H8: Queso Cabrales | I8: 14 | J8: 0 | K8: 12 | L8: 168 | M8: 2011-07-28 | N8: Federal Shipping | O8: milk products | P8: 7 | Q8: 2011 | S8: Austria | T8: 128003.83 | W8: 8 | X8: 3154.18 | Y8: 840.8 | Z8: 2619.72 | AA8: 6539.94 | AB8: 1472 | AC8: 4359.04 | AD8: 1732 | AE8: 3047.85 | AF8: =SUM(X8:AE8) -> 23765.53 | AH8: cereals | AI8: 4027.56 | AJ8: 11072.05 | AK8: 8465.91 | AL8: 1245.3 | AM8: 11172.95 | AN8: 6535.5 | AO8: 21235.01 | AP8: 22579.61 | AQ8: 9410.7 | AR8: 95744.59
B9: 10249 | C9: Suyama | D9: Toms Spezialitäten | E9: Münster | F9: 44087 | G9: Germany | H9: Manjimup Dried Apples | I9: 42.4 | J9: 0 | K9: 40 | L9: 1696 | M9: 2011-07-22 | N9: Speedy Express | O9: natural products | P9: 7 | Q9: 2011 | S9: Brasilia | T9: 106925.78 | W9: 9 | X9: 5698.4 | Y9: 1000.2 | Z9: 3144.66 | AA9: 4716.6 | AB9: 76.32 | AC9: 2699.22 | AD9: 2629.4 | AE9: 6077.68 | AF9: 26042.48 | AH9: meat | AI9: 11488.2 | AJ9: 16395.28 | AK9: 15038.46 | AL9: 8676.66 | AM9: 29873.6 | AN9: 21176.72 | AO9: 20502.62 | AP9: 30867.14 | AQ9: 9003.69 | AR9: 163022.37
B10: 10249 | C10: Suyama | D10: Toms Spezialitäten | E10: Münster | F10: 44087 | G10: Germany | H10: Tofu | I10: 18.6 | J10: 0 | K10: 9 | L10: 167.4 | M10: 2011-07-22 | N10: Speedy Express | O10: natural products | P10: 7 | Q10: 2011 | S10: France | T10: 81305.81 | W10: 10 | X10: 4831.2 | Y10: 316.8 | Z10: 4540.6 | AA10: 5384 | AB10: 1841.8 | AC10: 3211.2 | AD10: 3663.2 | AE10: 4797.41 | AF10: 28586.21 | AH10: milk products | AI10: 21885.11 | AJ10: 21101.47 | AK10: 36022.97 | AL10: 21101.12 | AM10: 23812.55 | AN10: 27621.86 | AO10: 32320.84 | AP10: 33549.8 | AQ10: 17039.04 | AR10: 234454.76
B11: 10250 | C11: Peacock | D11: Hanari Carnes | E11: Rio de Janeiro | F11: 05454-876 | G11: Brasilia | H11: Manjimup Dried Apples | I11: 42.4 | J11: 0.15 | K11: 35 | L11: 1261.4 | M11: 2011-07-24 | N11: United Package | O11: natural products | P11: 7 | Q11: 2011 | S11: Great Britain | T11: 58971.31 | W11: 11 | X11: 7595.78 | Y11: 3122.16 | Z11: 4654.48 | AA11: 3080.03 | AB11: 1814.16 | AC11: 4537.2 | AD11: 5949.12 | AE11: 3831.68 | AF11: 34584.61 | AH11: natural products | AI11: 7109.02 | AJ11: 12016.52 | AK11: 19706.25 | AL11: 314.81 | AM11: 9376.48 | AN11: 10753.38 | AO11: 11960.85 | AP11: 17186.56 | AQ11: 11560.7 | AR11: 99984.57
B12: 10250 | C12: Peacock | D12: Hanari Carnes | E12: Rio de Janeiro | F12: 05454-876 | G12: Brasilia | H12: Jack's New England Clam Chowder | I12: 7.7 | J12: 0 | K12: 10 | L12: 77 | M12: 2011-07-24 | N12: United Package | O12: sea food | P12: 7 | Q12: 2011 | S12: Venezuela | T12: 56810.63 | W12: 12 | X12: 22867.64 | Y12: 2636.3 | Z12: 7929.4 | AA12: 11223.62 | AB12: 3775.68 | AC12: 2422.94 | AD12: 2970.06 | AE12: 3247.58 | AF12: 57073.22 | AH12: sea food | AI12: 5744.25 | AJ12: 12041.54 | AK12: 24144.15 | AL12: 8148.9 | AM12: 15747.57 | AN12: 7146.58 | AO12: 25032.1 | AP12: 27315.94 | AQ12: 5940.7 | AR12: 131261.73
B13: 10250 | C13: Peacock | D13: Hanari Carnes | E13: Rio de Janeiro | F13: 05454-876 | G13: Brasilia | H13: Louisiana Fiery Hot Pepper Sauce | I13: 16.8 | J13: 0.15 | K13: 15 | L13: 214.2 | M13: 2011-07-24 | N13: United Package | O13: spices | P13: 7 | Q13: 2011 | S13: Sweden | T13: 54495.14 | V13: 2012 | W13: 1 | X13: 4058.2 | Y13: 4161.2 | Z13: 7646.2 | AA13: 8972.76 | AB13: 3714.94 | AC13: 2380.08 | AD13: 2899.1 | AE13: 10986.94 | AF13: 44819.42 | AH13: spices | AI13: 2675.29 | AJ13: 14637.65 | AK13: 13561.56 | AL13: 10125.54 | AM13: 14850.67 | AN13: 8851.38 | AO13: 13381.64 | AP13: 23314.87 | AQ13: 4648.47 | AR13: 106047.07
B14: 10251 | C14: Leverling | D14: Victuailles en stock | E14: Lyon | F14: 69004 | G14: France | H14: Gustaf's Knäckebröd | I14: 16.8 | J14: 0.05 | K14: 6 | L14: 95.76 | M14: 2011-07-27 | N14: Speedy Express | O14: cereals | P14: 7 | Q14: 2011 | S14: Canada | T14: 51129.79 | W14: 2 | X14: 21394.4 | Y14: 3923.2 | Z14: 5121.45 | AA14: 7027.84 | AB14: 796.8 | AC14: 1184.29 | AD14: 2634.58 | AE14: 3545.62 | AF14: 45628.18 | AH14: sweets | AI14: 4809.8 | AJ14: 21699.92 | AK14: 28568.92 | AL14: 8053.16 | AM14: 21455.68 | AN14: 14518.98 | AO14: 33622.38 | AP14: 27768.72 | AQ14: 6859.63 | AR14: 167357.19
B15: 10251 | C15: Leverling | D15: Victuailles en stock | E15: Lyon | F15: 69004 | G15: France | H15: Ravioli Angelo | I15: 15.6 | J15: 0.05 | K15: 15 | L15: 222.3 | M15: 2011-07-27 | N15: Speedy Express | O15: cereals | P15: 7 | Q15: 2011 | S15: Ireland | T15: 49979.91 | W15: 3 | X15: 3804 | Y15: 4702.3 | Z15: 8771.82 | AA15: 6401.4 | AB15: 4137 | AC15: 4180.5 | AD15: 6380.49 | AE15: 7695.09 | AF15: 46072.6 | AH15: total | AI15: 68739.75 | AJ15: 126862.28 | AK15: 192107.57 | AL15: 77308.04 | AM15: 166537.75 | AN15: 124568.23 | AO15: 202812.84 | AP15: 232890.85 | AQ15: 73913.13 | AR15: 1265740.44
B16: 10251 | C16: Leverling | D16: Victuailles en stock | E16: Lyon | F16: 69004 | G16: France | H16: Louisiana Fiery Hot Pepper Sauce | I16: 16.8 | J16: 0 | K16: 20 | L16: 336 | M16: 2011-07-27 | N16: Speedy Express | O16: spices | P16: 7 | Q16: 2011 | S16: Belgium | T16: 33824.85 | W16: 4 | X16: 8911.88 | Y16: 2840.4 | Z16: 1871.68 | AA16: 10161.1 | AB16: 5079.66 | AC16: 1511.9 | AD16: 3068.5 | AE16: 3442.1 | AF16: 36887.22
B17: 10252 | C17: Peacock | D17: Suprêmes délices | E17: Charleroi | F17: B-6000 | G17: Belgium | H17: Camembert Pierrot | I17: 27.2 | J17: 0 | K17: 40 | L17: 1088 | M17: 2011-07-23 | N17: United Package | O17: milk products | P17: 7 | Q17: 2011 | S17: Danmark | T17: 32661.02 | W17: 5 | X17: 12193.15 | Y17: 5471 | Z17: 6884.59 | AA17: 4172.6 | AB17: 3325.8 | AC17: 5890.64 | AD17: 5837.4 | AE17: 4389.71 | AF17: 48164.89
B18: 10252 | C18: Peacock | D18: Suprêmes délices | E18: Charleroi | F18: B-6000 | G18: Belgium | H18: Geitost | I18: 2 | J18: 0.05 | K18: 25 | L18: 47.5 | M18: 2011-07-23 | N18: United Package | O18: milk products | P18: 7 | Q18: 2011 | S18: Switzerland | T18: 31692.64 | W18: 6 | X18: 10885.9 | Y18: 6426.4 | Z18: 4810.96 | AA18: 14919.82 | AB18: 8056.6 | AC18: 5558.97 | AD18: 3679.52 | AE18: 15073.75 | AF18: 69411.92
B19: 10252 | C19: Peacock | D19: Suprêmes délices | E19: Charleroi | F19: B-6000 | G19: Belgium | H19: Sir Rodney's Marmalade | I19: 64.8 | J19: 0.05 | K19: 40 | L19: 2462.4 | M19: 2011-07-23 | N19: United Package | O19: sweets | P19: 7 | Q19: 2011 | S19: Mexico | T19: 23582.07 | W19: 7 | X19: 3947.37 | Y19: 2802.5 | Z19: 3132.4 | AA19: 6378.85 | AB19: 848.7 | AC19: 4066.81 | AD19: 5936.97 | AE19: 3354.68 | AF19: 30468.28
B20: 10253 | C20: Leverling | D20: Hanari Carnes | E20: Rio de Janeiro | F20: 05454-876 | G20: Brasilia | H20: Chartreuse verte | I20: 14.4 | J20: 0 | K20: 42 | L20: 604.8 | M20: 2011-07-28 | N20: United Package | O20: beverages | P20: 7 | Q20: 2011 | S20: Finland | T20: 18810.05 | W20: 8 | X20: 9805.52 | Y20: 4967.25 | Z20: 8319.54 | AA20: 13421.64 | AB20: 2364 | AC20: 5516.55 | AD20: 3188.13 | AE20: 9253.56 | AF20: 56836.19 | AH20: sales | AI20: employee
B21: 10253 | C21: Leverling | D21: Hanari Carnes | E21: Rio de Janeiro | F21: 05454-876 | G21: Brasilia | H21: Gorgonzola Telino | I21: 10 | J21: 0 | K21: 20 | L21: 200 | M21: 2011-07-28 | N21: United Package | O21: milk products | P21: 7 | Q21: 2011 | S21: Spain | T21: 17983.2 | W21: 9 | X21: 4894.57 | Y21: 6385.6 | Z21: 1042.73 | AA21: 9081.55 | AB21: 4392.77 | AC21: 13874.51 | AD21: 4911.15 | AE21: 3119.04 | AF21: 47701.92 | AH21: country | AI21: Buchanan | AJ21: Callahan | AK21: Davolio | AL21: Dodsworth | AM21: Fuller | AN21: King | AO21: Leverling | AP21: Peacock | AQ21: Suyama | AR21: total
B22: 10253 | C22: Leverling | D22: Hanari Carnes | E22: Rio de Janeiro | F22: 05454-876 | G22: Brasilia | H22: Maxilaku | I22: 16 | J22: 0 | K22: 40 | L22: 640 | M22: 2011-07-28 | N22: United Package | O22: sweets | P22: 7 | Q22: 2011 | S22: Italy | T22: 15770.15 | W22: 10 | X22: 6708.15 | Y22: 2876.87 | Z22: 9479.9 | AA22: 14228.5 | AB22: 6866.9 | AC22: 5471.08 | AD22: 3809.89 | AE22: 5793.29 | AF22: 55234.58 | AH22: Argentina | AJ22: 2750.5 | AK22: 686.7 | AL22: 944.5 | AM22: 477 | AN22: 1535.8 | AO22: 319.2 | AP22: 1329.4 | AQ22: 76 | AR22: 8119.1
B23: 10254 | C23: Buchanan | D23: Chop-suey Chinese | E23: Bern | F23: 3012 | G23: Switzerland | H23: Guaraná Fantástica | I23: 3.6 | J23: 0.15 | K23: 15 | L23: 45.9 | M23: 2011-08-04 | N23: United Package | O23: beverages | P23: 8 | Q23: 2011 | S23: Portugal | T23: 11472.36 | W23: 11 | X23: 7304.5 | Y23: 2762 | Z23: 15917.48 | AA23: 7946.62 | AB23: 3165.5 | AC23: 6380.5 | AD23: 3245.54 | AE23: 8400.96 | AF23: 55123.1 | AH23: Austria | AJ23: 10970.59 | AK23: 17087.27 | AL23: 8967.8 | AM23: 16603.08 | AN23: 25745.15 | AO23: 23941.35 | AP23: 17959.66 | AQ23: 6728.93 | AR23: 128003.83
B24: 10254 | C24: Buchanan | D24: Chop-suey Chinese | E24: Bern | F24: 3012 | G24: Switzerland | H24: Pâté chinois | I24: 19.2 | J24: 0.15 | K24: 21 | L24: 342.72 | M24: 2011-08-04 | N24: United Package | O24: meat | P24: 8 | Q24: 2011 | S24: Argentina | T24: 8119.1 | W24: 12 | X24: 7782.4 | Y24: 8871.7 | Z24: 4274.1 | AA24: 13906.85 | AB24: 10741.21 | AC24: 7259.54 | AD24: 7350.3 | AE24: 8093.28 | AF24: 68279.38 | AH24: Belgium | AI24: 7674.3 | AK24: 732.6 | AL24: 2808.37 | AM24: 2866.5 | AN24: 4641.5 | AO24: 295.38 | AP24: 13597.2 | AQ24: 1209 | AR24: 33824.85
B25: 10254 | C25: Buchanan | D25: Chop-suey Chinese | E25: Bern | F25: 3012 | G25: Switzerland | H25: Longlife Tofu | I25: 8 | J25: 0 | K25: 21 | L25: 168 | M25: 2011-08-04 | N25: United Package | O25: natural products | P25: 8 | Q25: 2011 | S25: Norway | T25: 5735.15 | V25: 2013 | W25: 1 | X25: 15733.65 | Y25: 4113.25 | Z25: 10830.86 | AA25: 10277.65 | AB25: 3549.9 | AC25: 8214.78 | AD25: 4119.81 | AE25: 7642.95 | AF25: 64482.85 | AH25: Brasilia | AI25: 14707.97 | AJ25: 11118.58 | AK25: 29459.37 | AL25: 1910 | AM25: 9985.03 | AN25: 6200.2 | AO25: 9192.59 | AP25: 17770.57 | AQ25: 6581.47 | AR25: 106925.78
B26: 10255 | C26: Dodsworth | D26: Richter Supermarkt | E26: Genève | F26: 1203 | G26: Switzerland | H26: Chang | I26: 15.2 | J26: 0 | K26: 20 | L26: 304 | M26: 2011-07-27 | N26: Federal Shipping | O26: beverages | P26: 7 | Q26: 2011 | S26: Poland | T26: 3531.95 | W26: 2 | X26: 34858 | Y26: 12169.49 | Z26: 4471.87 | AA26: 14043.05 | AB26: 1450.8 | AC26: 12666.58 | AD26: 5384.61 | AE26: 11918.26 | AF26: 96962.66 | AH26: Canada | AJ26: 1278.4 | AK26: 8801.42 | AL26: 966.8 | AM26: 9034.5 | AN26: 9719.56 | AO26: 13090.23 | AP26: 4826.05 | AQ26: 3412.83 | AR26: 51129.79
B27: 10255 | C27: Dodsworth | D27: Richter Supermarkt | E27: Genève | F27: 1203 | G27: Switzerland | H27: Raclette Courdavault | I27: 44 | J27: 0 | K27: 30 | L27: 1320 | M27: 2011-07-27 | N27: Federal Shipping | O27: milk products | P27: 7 | Q27: 2011 | W27: 3 | X27: 20914.6 | Y27: 3604.5 | Z27: 22237.45 | AA27: 17348.85 | AB27: 3838.8 | AC27: 14089.81 | AD27: 8624.63 | AE27: 15457.57 | AF27: 106116.21 | AH27: Danmark | AJ27: 1814.35 | AK27: 6674 | AM27: 2345.7 | AN27: 2114.88 | AO27: 1684.27 | AP27: 17291.82 | AQ27: 736 | AR27: 32661.02
B28: 10255 | C28: Dodsworth | D28: Richter Supermarkt | E28: Genève | F28: 1203 | G28: Switzerland | H28: Inlagd Sill | I28: 15.2 | J28: 0 | K28: 25 | L28: 380 | M28: 2011-07-27 | N28: Federal Shipping | O28: sea food | P28: 7 | Q28: 2011 | S28: category | T28: total sales | W28: 4 | X28: 28147.37 | Y28: 3231.6 | Z28: 11118.78 | AA28: 14157.87 | AB28: 16970.05 | AC28: 8856.44 | AD28: 9470.7 | AE28: 12968.17 | AF28: 104920.98 | AH28: Finland | AI28: 1393.2 | AJ28: 4131.8 | AK28: 1828.9 | AL28: 1590.56 | AM28: 5878.03 | AN28: 642 | AO28: 957.86 | AP28: 2117.7 | AQ28: 270 | AR28: 18810.05
B29: 10255 | C29: Dodsworth | D29: Richter Supermarkt | E29: Genève | F29: 1203 | G29: Switzerland | H29: Pavlova | I29: 13.9 | J29: 0 | K29: 35 | L29: 486.5 | M29: 2011-07-27 | N29: Federal Shipping | O29: sweets | P29: 7 | Q29: 2011 | S29: beverages | T29: 267868.16 | W29: 5 | X29: 20877 | Y29: 8006.5 | Z29: 13760.7 | AA29: 27950.5 | AB29: 8180.58 | AC29: 6017.22 | AD29: 7310.47 | AE29: 11450.51 | AF29: 103553.48 | AH29: France | AI29: 2931.15 | AJ29: 5356 | AK29: 12487.44 | AL29: 3828.73 | AM29: 9434.28 | AN29: 2985.9 | AO29: 15471.13 | AP29: 24340.8 | AQ29: 4470.38 | AR29: 81305.81
B30: 10256 | C30: Leverling | D30: Wellington Importadora | E30: Resende | F30: 08737-363 | G30: Brasilia | H30: Perth Pasties | I30: 26.2 | J30: 0 | K30: 15 | L30: 393 | M30: 2011-07-29 | N30: United Package | O30: meat | P30: 7 | Q30: 2011 | S30: milk products | T30: 234454.76 | W30: 6 | X30: 591.5 | Y30: 96.51 | Z30: 48 | AA30: 168.12 | AB30: 399.8 | AC30: 454.93 | AD30: 576.5 | AE30: 180.61 | AF30: 2515.97 | AH30: Germany | AI30: 8048.54 | AJ30: 26497.98 | AK30: 24611.38 | AL30: 15753.53 | AM30: 53627.17 | AN30: 7608.93 | AO30: 45045.32 | AP30: 38341.33 | AQ30: 9816.93 | AR30: 229351.11
B31: 10256 | C31: Leverling | D31: Wellington Importadora | E31: Resende | F31: 08737-363 | G31: Brasilia | H31: Original Frankfurter grüne Soße | I31: 10.4 | J31: 0 | K31: 12 | L31: 124.8 | M31: 2011-07-29 | N31: United Package | O31: spices | P31: 7 | Q31: 2011 | S31: sweets | T31: 167357.19 | AH31: Great Britain | AI31: 5101.68 | AJ31: 9319.8 | AK31: 10945.73 | AL31: 6836.55 | AM31: 3411.4 | AN31: 5469.44 | AO31: 4608.1 | AP31: 8751.11 | AQ31: 4527.5 | AR31: 58971.31
B32: 10257 | C32: Peacock | D32: HILARIÓN-Abastos | E32: San Cristóbal | F32: 5022 | G32: Venezuela | H32: Chartreuse verte | I32: 14.4 | J32: 0 | K32: 6 | L32: 86.4 | M32: 2011-08-03 | N32: Federal Shipping | O32: beverages | P32: 8 | Q32: 2011 | S32: meat | T32: 163022.37 | AH32: Ireland | AJ32: 1313.82 | AK32: 2519 | AL32: 7403.9 | AM32: 10604.98 | AN32: 2598.76 | AO32: 16615.05 | AP32: 1366.4 | AQ32: 7558 | AR32: 49979.91
B33: 10257 | C33: Peacock | D33: HILARIÓN-Abastos | E33: San Cristóbal | F33: 5022 | G33: Venezuela | H33: Original Frankfurter grüne Soße | I33: 10.4 | J33: 0 | K33: 15 | L33: 156 | M33: 2011-08-03 | N33: Federal Shipping | O33: spices | P33: 8 | Q33: 2011 | S33: sea food | T33: 131261.73 | V33: year | W33: month | X33: beverages | Y33: total | Z33: rel. share | AH33: Italy | AI33: 1692.8 | AJ33: 2078.86 | AK33: 1138.44 | AL33: 583.8 | AM33: 5422.05 | AN33: 1025 | AO33: 88 | AP33: 3686 | AQ33: 55.2 | AR33: 15770.15
B34: 10257 | C34: Peacock | D34: HILARIÓN-Abastos | E34: San Cristóbal | F34: 5022 | G34: Venezuela | H34: Schoggi Schokolade | I34: 35.1 | J34: 0 | K34: 25 | L34: 877.5 | M34: 2011-08-03 | N34: Federal Shipping | O34: sweets | P34: 8 | Q34: 2011 | S34: spices | T34: 106047.07 | V34: 2011 | W34: 7 | X34: 908.8 | Y34: 12508.56 | Z34: =X34/Y34 -> 0.07265424637 | AH34: Mexico | AI34: 1249.1 | AJ34: 988.8 | AK34: 5147.46 | AM34: 2190.65 | AN34: 4223.06 | AO34: 3076.9 | AP34: 6706.1 | AR34: 23582.07
B35: 10258 | C35: Davolio | D35: Ernst Handel | E35: Graz | F35: 8010 | G35: Austria | H35: Chang | I35: 15.2 | J35: 0.2 | K35: 50 | L35: 608 | M35: 2011-08-04 | N35: Speedy Express | O35: beverages | P35: 8 | Q35: 2011 | S35: natural products | T35: 99984.57 | W35: 8 | X35: 3154.18 | Y35: 23765.53 | Z35: =X35/Y35 -> 0.1327207935 | AH35: Norway | AK35: 1728.4 | AM35: 622.35 | AN35: 700 | AO35: 2684.4 | AR35: 5735.15
B36: 10258 | C36: Davolio | D36: Ernst Handel | E36: Graz | F36: 8010 | G36: Austria | H36: Mascarpone Fabioli | I36: 25.6 | J36: 0.2 | K36: 6 | L36: 122.88 | M36: 2011-08-04 | N36: Speedy Express | O36: milk products | P36: 8 | Q36: 2011 | S36: cereals | T36: 95744.59 | W36: 9 | X36: 5698.4 | Y36: 26042.48 | Z36: 0.2188117261 | AH36: Poland | AI36: 160 | AJ36: 686 | AK36: 858.85 | AP36: 1019.1 | AQ36: 808 | AR36: 3531.95
B37: 10258 | C37: Davolio | D37: Ernst Handel | E37: Graz | F37: 8010 | G37: Austria | H37: Chef Anton's Gumbo Mix | I37: 17 | J37: 0.2 | K37: 65 | L37: 884 | M37: 2011-08-04 | N37: Speedy Express | O37: spices | P37: 8 | Q37: 2011 | W37: 10 | X37: 4831.2 | Y37: 28586.21 | Z37: 0.1690045655 | AH37: Portugal | AI37: 1274.72 | AJ37: 2893.4 | AK37: 1519.24 | AL37: 57.8 | AN37: 285.12 | AO37: 987.5 | AP37: 4454.58 | AR37: 11472.36
B38: 10259 | C38: Peacock | D38: Centro comercial Moctezuma | E38: México D.F. | F38: 5022 | G38: Mexico | H38: Gravad lax | I38: 20.8 | J38: 0 | K38: 1 | L38: 20.8 | M38: 2011-08-06 | N38: Federal Shipping | O38: sea food | P38: 8 | Q38: 2011 | S38: employee | T38: total sales | W38: 11 | X38: 7595.78 | Y38: 34584.61 | Z38: 0.2196289043 | AH38: Spain | AI38: 2368.46 | AJ38: 206 | AK38: 1241 | AL38: 224 | AM38: 977.5 | AN38: 1861.1 | AO38: 3375.25 | AP38: 7729.89 | AR38: 17983.2
B39: 10259 | C39: Peacock | D39: Centro comercial Moctezuma | E39: México D.F. | F39: 5022 | G39: Mexico | H39: Sir Rodney's Scones | I39: 8 | J39: 0 | K39: 10 | L39: 80 | M39: 2011-08-06 | N39: Federal Shipping | O39: sweets | P39: 8 | Q39: 2011 | S39: Peacock | T39: 232890.85 | W39: 12 | X39: 22867.64 | Y39: 57073.22 | Z39: 0.4006719789 | AH39: Sweden | AI39: 1801.23 | AJ39: 9303.52 | AK39: 7491.18 | AL39: 4879.75 | AM39: 8036.7 | AN39: 6395.44 | AO39: 11520.4 | AP39: 1826.3 | AQ39: 3240.62 | AR39: 54495.14
B40: 10260 | C40: Peacock | D40: Ottilies Käseladen | E40: Köln | F40: 50739 | G40: Germany | H40: Outback Lager | I40: 12 | J40: 0.25 | K40: 21 | L40: 189 | M40: 2011-08-10 | N40: Speedy Express | O40: beverages | P40: 8 | Q40: 2011 | S40: Leverling | T40: 202812.84 | V40: 2012 | W40: 1 | X40: 4058.2 | Y40: 44819.42 | Z40: 0.09054557154 | AH40: Switzerland | AI40: 556.62 | AJ40: 498.1 | AK40: 4135.5 | AL40: 2949.24 | AN40: 9790.24 | AO40: 5049.08 | AP40: 5282.06 | AQ40: 3431.8 | AR40: 31692.64
B41: 10260 | C41: Peacock | D41: Ottilies Käseladen | E41: Köln | F41: 50739 | G41: Germany | H41: Ravioli Angelo | I41: 15.6 | J41: 0 | K41: 50 | L41: 780 | M41: 2011-08-10 | N41: Speedy Express | O41: cereals | P41: 8 | Q41: 2011 | S41: Davolio | T41: 192107.57 | W41: 2 | X41: 21394.4 | Y41: 45628.18 | Z41: 0.4688856755 | AH41: USA | AI41: 15172.05 | AJ41: 25755.48 | AK41: 43761.31 | AL41: 17224.71 | AM41: 22054.35 | AN41: 23850.45 | AO41: 33564.46 | AP41: 46384.83 | AQ41: 17816.95 | AR41: 245584.59
B42: 10260 | C42: Peacock | D42: Ottilies Käseladen | E42: Köln | F42: 50739 | G42: Germany | H42: Jack's New England Clam Chowder | I42: 7.7 | J42: 0.25 | K42: 16 | L42: 92.4 | M42: 2011-08-10 | N42: Speedy Express | O42: sea food | P42: 8 | Q42: 2011 | S42: Fuller | T42: 166537.75 | W42: 3 | X42: 3804 | Y42: 46072.6 | Z42: 0.08256534252 | AH42: Venezuela | AI42: 4607.93 | AJ42: 9900.3 | AK42: 9252.38 | AL42: 378 | AM42: 2966.48 | AN42: 7175.7 | AO42: 11246.37 | AP42: 8109.95 | AQ42: 3173.52 | AR42: 56810.63
B43: 10260 | C43: Peacock | D43: Ottilies Käseladen | E43: Köln | F43: 50739 | G43: Germany | H43: Tarte au sucre | I43: 39.4 | J43: 0.25 | K43: 15 | L43: 443.25 | M43: 2011-08-10 | N43: Speedy Express | O43: sweets | P43: 8 | Q43: 2011 | S43: Callahan | T43: 126862.28 | W43: 4 | X43: 8911.88 | Y43: 36887.22 | Z43: 0.2415980386 | AH43: total | AI43: 68739.75 | AJ43: 126862.28 | AK43: 192107.57 | AL43: 77308.04 | AM43: 166537.75 | AN43: 124568.23 | AO43: 202812.84 | AP43: 232890.85 | AQ43: 73913.13 | AR43: 1265740.44
B44: 10261 | C44: Peacock | D44: Que Delícia | E44: Rio de Janeiro | F44: 02389-673 | G44: Brasilia | H44: Steeleye Stout | I44: 14.4 | J44: 0 | K44: 20 | L44: 288 | M44: 2011-08-11 | N44: United Package | O44: beverages | P44: 8 | Q44: 2011 | S44: King | T44: 124568.23 | W44: 5 | X44: 12193.15 | Y44: 48164.89 | Z44: 0.2531543205
B45: 10261 | C45: Peacock | D45: Que Delícia | E45: Rio de Janeiro | F45: 02389-673 | G45: Brasilia | H45: Sir Rodney's Scones | I45: 8 | J45: 0 | K45: 20 | L45: 160 | M45: 2011-08-11 | N45: United Package | O45: sweets | P45: 8 | Q45: 2011 | S45: Dodsworth | T45: 77308.04 | W45: 6 | X45: 10885.9 | Y45: 69411.92 | Z45: 0.1568304118
B46: 10262 | C46: Callahan | D46: Rattlesnake Canyon Grocery | E46: Albuquerque | F46: 87110 | G46: USA | H46: Gnocchi di nonna Alice | I46: 30.4 | J46: 0 | K46: 2 | L46: 60.8 | M46: 2011-08-06 | N46: Federal Shipping | O46: cereals | P46: 8 | Q46: 2011 | S46: Suyama | T46: 73913.13 | W46: 7 | X46: 3947.37 | Y46: 30468.28 | Z46: 0.1295567062
B47: 10262 | C47: Callahan | D47: Rattlesnake Canyon Grocery | E47: Albuquerque | F47: 87110 | G47: USA | H47: Uncle Bob's Organic Dried Pears | I47: 24 | J47: 0 | K47: 15 | L47: 360 | M47: 2011-08-06 | N47: Federal Shipping | O47: natural products | P47: 8 | Q47: 2011 | S47: Buchanan | T47: 68739.75 | W47: 8 | X47: 9805.52 | Y47: 56836.19 | Z47: 0.172522472 | AH47: sales | AI47: shipping company
B48: 10262 | C48: Callahan | D48: Rattlesnake Canyon Grocery | E48: Albuquerque | F48: 87110 | G48: USA | H48: Chef Anton's Gumbo Mix | I48: 17 | J48: 0.2 | K48: 12 | L48: 163.2 | M48: 2011-08-06 | N48: Federal Shipping | O48: spices | P48: 8 | Q48: 2011 | W48: 9 | X48: 4894.57 | Y48: 47701.92 | Z48: 0.1026074003 | AH48: category | AI48: Federal Shipping | AJ48: Speedy Express | AK48: United Package
B49: 10263 | C49: Dodsworth | D49: Ernst Handel | E49: Graz | F49: 8010 | G49: Austria | H49: Guaraná Fantástica | I49: 3.6 | J49: 0 | K49: 28 | L49: 100.8 | M49: 2011-08-12 | N49: Federal Shipping | O49: beverages | P49: 8 | Q49: 2011 | W49: 10 | X49: 6708.15 | Y49: 55234.58 | Z49: 0.1214483753 | AH49: beverages | AI49: 91505.91 | AJ49: 57741.67 | AK49: 118620.58
B50: 10263 | C50: Dodsworth | D50: Ernst Handel | E50: Graz | F50: 8010 | G50: Austria | H50: Longlife Tofu | I50: 8 | J50: 0.25 | K50: 36 | L50: 216 | M50: 2011-08-12 | N50: Federal Shipping | O50: natural products | P50: 8 | Q50: 2011 | W50: 11 | X50: 7304.5 | Y50: 55123.1 | Z50: 0.1325125038 | AH50: cereals | AI50: 24711.75 | AJ50: 29587.51 | AK50: 41445.33
B51: 10263 | C51: Dodsworth | D51: Ernst Handel | E51: Graz | F51: 8010 | G51: Austria | H51: Nord-Ost Matjeshering | I51: 20.7 | J51: 0.25 | K51: 60 | L51: 931.5 | M51: 2011-08-12 | N51: Federal Shipping | O51: sea food | P51: 8 | Q51: 2011 | W51: 12 | X51: 7782.4 | Y51: 68279.38 | Z51: 0.1139787737 | AH51: meat | AI51: 47602.99 | AJ51: 31138.79 | AK51: 84280.59
B52: 10263 | C52: Dodsworth | D52: Ernst Handel | E52: Graz | F52: 8010 | G52: Austria | H52: Pavlova | I52: 13.9 | J52: 0.25 | K52: 60 | L52: 625.5 | M52: 2011-08-12 | N52: Federal Shipping | O52: sweets | P52: 8 | Q52: 2011 | V52: 2013 | W52: 1 | X52: 15733.65 | Y52: 64482.85 | Z52: 0.243997435 | AH52: milk products | AI52: 64693.6 | AJ52: 78517.76 | AK52: 91243.4
B53: 10264 | C53: Suyama | D53: Folk och fä HB | E53: Bräcke | F53: S-844 67 | G53: Sweden | H53: Chang | I53: 15.2 | J53: 0 | K53: 35 | L53: 532 | M53: 2011-09-04 | N53: Federal Shipping | O53: beverages | P53: 9 | Q53: 2011 | W53: 2 | X53: 34858 | Y53: 96962.66 | Z53: 0.3594992134 | AH53: natural products | AI53: 34038.8 | AJ53: 24226.03 | AK53: 41719.74
B54: 10264 | C54: Suyama | D54: Folk och fä HB | E54: Bräcke | F54: S-844 67 | G54: Sweden | H54: Jack's New England Clam Chowder | I54: 7.7 | J54: 0.15 | K54: 25 | L54: 163.62 | M54: 2011-09-04 | N54: Federal Shipping | O54: sea food | P54: 9 | Q54: 2011 | W54: 3 | X54: 20914.6 | Y54: 106116.21 | Z54: 0.1970914717 | AH54: sea food | AI54: 40459.34 | AJ54: 37687.72 | AK54: 53114.67
B55: 10265 | C55: Fuller | D55: Blondel père et fils | E55: Strasbourg | F55: 67000 | G55: France | H55: Outback Lager | I55: 12 | J55: 0 | K55: 20 | L55: 240 | M55: 2011-08-24 | N55: Speedy Express | O55: beverages | P55: 8 | Q55: 2011 | W55: 4 | X55: 28147.37 | Y55: 104920.98 | Z55: 0.2682720844 | AH55: spices | AI55: 27509.65 | AJ55: 39674.72 | AK55: 38862.7
B56: 10265 | C56: Fuller | D56: Blondel père et fils | E56: Strasbourg | F56: 67000 | G56: France | H56: Alice Mutton | I56: 31.2 | J56: 0 | K56: 30 | L56: 936 | M56: 2011-08-24 | N56: Speedy Express | O56: meat | P56: 8 | Q56: 2011 | W56: 5 | X56: 20877 | Y56: 103553.48 | Z56: 0.2016059721 | AH56: sweets | AI56: 52830.89 | AJ56: 50265.71 | AK56: 64260.59
B57: 10266 | C57: Leverling | D57: Wartian Herkku | E57: Oulu | F57: 90110 | G57: Finland | H57: Queso Manchego La Pastora | I57: 30.4 | J57: 0.05 | K57: 12 | L57: 346.56 | M57: 2011-08-12 | N57: Federal Shipping | O57: milk products | P57: 8 | Q57: 2011 | W57: 6 | X57: 591.5 | Y57: 2515.97 | Z57: 0.2350981927
B58: 10267 | C58: Peacock | D58: Frankenversand | E58: München | F58: 80805 | G58: Germany | H58: Lakkalikööri | I58: 14.4 | J58: 0.15 | K58: 15 | L58: 183.6 | M58: 2011-08-18 | N58: Speedy Express | O58: beverages | P58: 8 | Q58: 2011
B59: 10267 | C59: Peacock | D59: Frankenversand | E59: München | F59: 80805 | G59: Germany | H59: Raclette Courdavault | I59: 44 | J59: 0.15 | K59: 70 | L59: 2618 | M59: 2011-08-18 | N59: Speedy Express | O59: milk products | P59: 8 | Q59: 2011
B60: 10267 | C60: Peacock | D60: Frankenversand | E60: München | F60: 80805 | G60: Germany | H60: Boston Crab Meat | I60: 14.7 | J60: 0 | K60: 50 | L60: 735 | M60: 2011-08-18 | N60: Speedy Express | O60: sea food | P60: 8 | Q60: 2011 | V60: year | W60: month | X60: cereals | Y60: total | Z60: rel. share
B61: 10268 | C61: Callahan | D61: GROSELLA-Restaurante | E61: Caracas | F61: 1081 | G61: Venezuela | H61: Thüringer Rostbratwurst | I61: 99 | J61: 0 | K61: 10 | L61: 990 | M61: 2011-08-14 | N61: Federal Shipping | O61: meat | P61: 8 | Q61: 2011 | V61: 2011 | W61: 7 | X61: 416.06 | Y61: 12508.56 | Z61: 0.03326202217
B62: 10268 | C62: Callahan | D62: GROSELLA-Restaurante | E62: Caracas | F62: 1081 | G62: Venezuela | H62: Mozzarella di Giovanni | I62: 27.8 | J62: 0 | K62: 4 | L62: 111.2 | M62: 2011-08-14 | N62: Federal Shipping | O62: milk products | P62: 8 | Q62: 2011 | W62: 8 | X62: 840.8 | Y62: 23765.53 | Z62: 0.03537897114
B63: 10269 | C63: Buchanan | D63: White Clover Markets | E63: Seattle | F63: 98128 | G63: USA | H63: Geitost | I63: 2 | J63: 0.05 | K63: 60 | L63: 114 | M63: 2011-08-21 | N63: Speedy Express | O63: milk products | P63: 8 | Q63: 2011 | W63: 9 | X63: 1000.2 | Y63: 26042.48 | Z63: 0.03840648049
B64: 10269 | C64: Buchanan | D64: White Clover Markets | E64: Seattle | F64: 98128 | G64: USA | H64: Mozzarella di Giovanni | I64: 27.8 | J64: 0.05 | K64: 20 | L64: 528.2 | M64: 2011-08-21 | N64: Speedy Express | O64: milk products | P64: 8 | Q64: 2011 | W64: 10 | X64: 316.8 | Y64: 28586.21 | Z64: 0.01108226659
B65: 10270 | C65: Davolio | D65: Wartian Herkku | E65: Oulu | F65: 90110 | G65: Finland | H65: Ipoh Coffee | I65: 36.8 | J65: 0 | K65: 25 | L65: 920 | M65: 2011-08-14 | N65: Speedy Express | O65: beverages | P65: 8 | Q65: 2011 | W65: 11 | X65: 3122.16 | Y65: 34584.61 | Z65: 0.0902759927
B66: 10270 | C66: Davolio | D66: Wartian Herkku | E66: Oulu | F66: 90110 | G66: Finland | H66: Inlagd Sill | I66: 15.2 | J66: 0 | K66: 30 | L66: 456 | M66: 2011-08-14 | N66: Speedy Express | O66: sea food | P66: 8 | Q66: 2011 | W66: 12 | X66: 2636.3 | Y66: 57073.22 | Z66: 0.04619154132
B67: 10271 | C67: Suyama | D67: Split Rail Beer & Ale | E67: Lander | F67: 82520 | G67: USA | H67: Geitost | I67: 2 | J67: 0 | K67: 24 | L67: 48 | M67: 2011-09-11 | N67: United Package | O67: milk products | P67: 9 | Q67: 2011 | V67: 2012 | W67: 1 | X67: 4161.2 | Y67: 44819.42 | Z67: 0.09284368249
B68: 10272 | C68: Suyama | D68: Rattlesnake Canyon Grocery | E68: Albuquerque | F68: 87110 | G68: USA | H68: Gorgonzola Telino | I68: 10 | J68: 0 | K68: 40 | L68: 400 | M68: 2011-08-18 | N68: United Package | O68: milk products | P68: 8 | Q68: 2011 | W68: 2 | X68: 3923.2 | Y68: 45628.18 | Z68: 0.08598195238
B69: 10272 | C69: Suyama | D69: Rattlesnake Canyon Grocery | E69: Albuquerque | F69: 87110 | G69: USA | H69: Mozzarella di Giovanni | I69: 27.8 | J69: 0 | K69: 24 | L69: 667.2 | M69: 2011-08-18 | N69: United Package | O69: milk products | P69: 8 | Q69: 2011 | W69: 3 | X69: 4702.3 | Y69: 46072.6 | Z69: 0.1020628313
B70: 10272 | C70: Suyama | D70: Rattlesnake Canyon Grocery | E70: Albuquerque | F70: 87110 | G70: USA | H70: Sir Rodney's Marmalade | I70: 64.8 | J70: 0 | K70: 6 | L70: 388.8 | M70: 2011-08-18 | N70: United Package | O70: sweets | P70: 8 | Q70: 2011 | W70: 4 | X70: 2840.4 | Y70: 36887.22 | Z70: 0.07700227884
B71: 10273 | C71: Leverling | D71: QUICK-Stop | E71: Cunewalde | F71: 1307 | G71: Germany | H71: Lakkalikööri | I71: 14.4 | J71: 0.05 | K71: 33 | L71: 451.44 | M71: 2011-08-24 | N71: Federal Shipping | O71: beverages | P71: 8 | Q71: 2011 | W71: 5 | X71: 5471 | Y71: 48164.89 | Z71: 0.1135889649
B72: 10273 | C72: Leverling | D72: QUICK-Stop | E72: Cunewalde | F72: 1307 | G72: Germany | H72: Geitost | I72: 2 | J72: 0 | K72: 20 | L72: 40 | M72: 2011-08-24 | N72: Federal Shipping | O72: milk products | P72: 8 | Q72: 2011 | W72: 6 | X72: 6426.4 | Y72: 69411.92 | Z72: 0.09258352168
B73: 10273 | C73: Leverling | D73: QUICK-Stop | E73: Cunewalde | F73: 1307 | G73: Germany | H73: Gorgonzola Telino | I73: 10 | J73: 0.05 | K73: 15 | L73: 142.5 | M73: 2011-08-24 | N73: Federal Shipping | O73: milk products | P73: 8 | Q73: 2011 | W73: 7 | X73: 2802.5 | Y73: 30468.28 | Z73: 0.09198090604
B74: 10273 | C74: Leverling | D74: QUICK-Stop | E74: Cunewalde | F74: 1307 | G74: Germany | H74: Boston Crab Meat | I74: 14.7 | J74: 0.05 | K74: 60 | L74: 837.9 | M74: 2011-08-24 | N74: Federal Shipping | O74: sea food | P74: 8 | Q74: 2011 | W74: 8 | X74: 4967.25 | Y74: 56836.19 | Z74: 0.08739590039
B75: 10273 | C75: Leverling | D75: QUICK-Stop | E75: Cunewalde | F75: 1307 | G75: Germany | H75: Ikura | I75: 24.8 | J75: 0.05 | K75: 24 | L75: 565.44 | M75: 2011-08-24 | N75: Federal Shipping | O75: sea food | P75: 8 | Q75: 2011 | W75: 9 | X75: 6385.6 | Y75: 47701.92 | Z75: 0.1338646327
B76: 10274 | C76: Suyama | D76: Vins et alcools Chevalier | E76: Reims | F76: 51100 | G76: France | H76: Fløtemysost | I76: 17.2 | J76: 0 | K76: 20 | L76: 344 | M76: 2011-08-28 | N76: Speedy Express | O76: milk products | P76: 8 | Q76: 2011 | W76: 10 | X76: 2876.87 | Y76: 55234.58 | Z76: 0.0520845818
B77: 10274 | C77: Suyama | D77: Vins et alcools Chevalier | E77: Reims | F77: 51100 | G77: France | H77: Mozzarella di Giovanni | I77: 27.8 | J77: 0 | K77: 7 | L77: 194.6 | M77: 2011-08-28 | N77: Speedy Express | O77: milk products | P77: 8 | Q77: 2011 | W77: 11 | X77: 2762 | Y77: 55123.1 | Z77: 0.0501060354
B78: 10275 | C78: Davolio | D78: Magazzini Alimentari Riuniti | E78: Bergamo | F78: 24100 | G78: Italy | H78: Guaraná Fantástica | I78: 3.6 | J78: 0.05 | K78: 12 | L78: 41.04 | M78: 2011-08-21 | N78: Speedy Express | O78: beverages | P78: 8 | Q78: 2011 | W78: 12 | X78: 8871.7 | Y78: 68279.38 | Z78: 0.1299323456
B79: 10275 | C79: Davolio | D79: Magazzini Alimentari Riuniti | E79: Bergamo | F79: 24100 | G79: Italy | H79: Raclette Courdavault | I79: 44 | J79: 0.05 | K79: 6 | L79: 250.8 | M79: 2011-08-21 | N79: Speedy Express | O79: milk products | P79: 8 | Q79: 2011 | V79: 2013 | W79: 1 | X79: 4113.25 | Y79: 64482.85 | Z79: 0.06378827859
B80: 10276 | C80: Callahan | D80: Tortuga Restaurante | E80: México D.F. | F80: 5033 | G80: Mexico | H80: Ikura | I80: 24.8 | J80: 0 | K80: 15 | L80: 372 | M80: 2011-08-26 | N80: Federal Shipping | O80: sea food | P80: 8 | Q80: 2011 | W80: 2 | X80: 12169.49 | Y80: 96962.66 | Z80: 0.1255069735
B81: 10276 | C81: Callahan | D81: Tortuga Restaurante | E81: México D.F. | F81: 5033 | G81: Mexico | H81: Konbu | I81: 4.8 | J81: 0 | K81: 10 | L81: 48 | M81: 2011-08-26 | N81: Federal Shipping | O81: sea food | P81: 8 | Q81: 2011 | W81: 3 | X81: 3604.5 | Y81: 106116.21 | Z81: 0.03396747773
B82: 10277 | C82: Fuller | D82: Morgenstern Gesundkost | E82: Leipzig | F82: 4179 | G82: Germany | H82: Rössle Sauerkraut | I82: 36.4 | J82: 0 | K82: 20 | L82: 728 | M82: 2011-08-25 | N82: Federal Shipping | O82: natural products | P82: 8 | Q82: 2011 | W82: 4 | X82: 3231.6 | Y82: 104920.98 | Z82: 0.0308003223
B83: 10277 | C83: Fuller | D83: Morgenstern Gesundkost | E83: Leipzig | F83: 4179 | G83: Germany | H83: Tarte au sucre | I83: 39.4 | J83: 0 | K83: 12 | L83: 472.8 | M83: 2011-08-25 | N83: Federal Shipping | O83: sweets | P83: 8 | Q83: 2011 | W83: 5 | X83: 8006.5 | Y83: 103553.48 | Z83: 0.07731753679
B84: 10278 | C84: Callahan | D84: Berglunds snabbköp | E84: Luleå | F84: S-958 22 | G84: Sweden | H84: Raclette Courdavault | I84: 44 | J84: 0 | K84: 15 | L84: 660 | M84: 2011-08-28 | N84: United Package | O84: milk products | P84: 8 | Q84: 2011 | W84: 6 | X84: 96.51 | Y84: 2515.97 | Z84: 0.03835896294
B85: 10278 | C85: Callahan | D85: Berglunds snabbköp | E85: Luleå | F85: S-958 22 | G85: Sweden | H85: Röd Kaviar | I85: 12 | J85: 0 | K85: 25 | L85: 300 | M85: 2011-08-28 | N85: United Package | O85: sea food | P85: 8 | Q85: 2011
B86: 10278 | C86: Callahan | D86: Berglunds snabbköp | E86: Luleå | F86: S-958 22 | G86: Sweden | H86: Gula Malacca | I86: 15.5 | J86: 0 | K86: 16 | L86: 248 | M86: 2011-08-28 | N86: United Package | O86: spices | P86: 8 | Q86: 2011
B87: 10278 | C87: Callahan | D87: Berglunds snabbköp | E87: Luleå | F87: S-958 22 | G87: Sweden | H87: Vegie-spread | I87: 35.1 | J87: 0 | K87: 8 | L87: 280.8 | M87: 2011-08-28 | N87: United Package | O87: spices | P87: 8 | Q87: 2011
B88: 10279 | C88: Callahan | D88: Lehmanns Marktstand | E88: Frankfurt a.M. | F88: 60528 | G88: Germany | H88: Alice Mutton | I88: 31.2 | J88: 0.25 | K88: 15 | L88: 351 | M88: 2011-08-28 | N88: United Package | O88: meat | P88: 8 | Q88: 2011
B89: 10280 | C89: Fuller | D89: Berglunds snabbköp | E89: Luleå | F89: S-958 22 | G89: Sweden | H89: Guaraná Fantástica | I89: 3.6 | J89: 0 | K89: 12 | L89: 43.2 | M89: 2011-09-24 | N89: Speedy Express | O89: beverages | P89: 9 | Q89: 2011
B90: 10280 | C90: Fuller | D90: Berglunds snabbköp | E90: Luleå | F90: S-958 22 | G90: Sweden | H90: Rhönbräu Klosterbier | I90: 6.2 | J90: 0 | K90: 30 | L90: 186 | M90: 2011-09-24 | N90: Speedy Express | O90: beverages | P90: 9 | Q90: 2011
B91: 10280 | C91: Fuller | D91: Berglunds snabbköp | E91: Luleå | F91: S-958 22 | G91: Sweden | H91: Pâté chinois | I91: 19.2 | J91: 0 | K91: 20 | L91: 384 | M91: 2011-09-24 | N91: Speedy Express | O91: meat | P91: 9 | Q91: 2011
B92: 10281 | C92: Peacock | D92: Romero y tomillo | E92: Madrid | F92: 28001 | G92: Spain | H92: Guaraná Fantástica | I92: 3.6 | J92: 0 | K92: 6 | L92: 21.6 | M92: 2011-09-02 | N92: Speedy Express | O92: beverages | P92: 9 | Q92: 2011
B93: 10281 | C93: Peacock | D93: Romero y tomillo | E93: Madrid | F93: 28001 | G93: Spain | H93: Steeleye Stout | I93: 14.4 | J93: 0 | K93: 4 | L93: 57.6 | M93: 2011-09-02 | N93: Speedy Express | O93: beverages | P93: 9 | Q93: 2011
B94: 10281 | C94: Peacock | D94: Romero y tomillo | E94: Madrid | F94: 28001 | G94: Spain | H94: Teatime Chocolate Biscuits | I94: 7.3 | J94: 0 | K94: 1 | L94: 7.3 | M94: 2011-09-02 | N94: Speedy Express | O94: sweets | P94: 9 | Q94: 2011
B95: 10282 | C95: Peacock | D95: Romero y tomillo | E95: Madrid | F95: 28001 | G95: Spain | H95: Ravioli Angelo | I95: 15.6 | J95: 0 | K95: 2 | L95: 31.2 | M95: 2011-09-02 | N95: Speedy Express | O95: cereals | P95: 9 | Q95: 2011
B96: 10282 | C96: Peacock | D96: Romero y tomillo | E96: Madrid | F96: 28001 | G96: Spain | H96: Nord-Ost Matjeshering | I96: 20.7 | J96: 0 | K96: 6 | L96: 124.2 | M96: 2011-09-02 | N96: Speedy Express | O96: sea food | P96: 9 | Q96: 2011
B97: 10283 | C97: Leverling | D97: LILA-Supermercado | E97: Barquisimeto | F97: 3508 | G97: Venezuela | H97: Camembert Pierrot | I97: 27.2 | J97: 0 | K97: 35 | L97: 952 | M97: 2011-09-04 | N97: Federal Shipping | O97: milk products | P97: 9 | Q97: 2011
B98: 10283 | C98: Leverling | D98: LILA-Supermercado | E98: Barquisimeto | F98: 3508 | G98: Venezuela | H98: Mozzarella di Giovanni | I98: 27.8 | J98: 0 | K98: 3 | L98: 83.4 | M98: 2011-09-04 | N98: Federal Shipping | O98: milk products | P98: 9 | Q98: 2011
B99: 10283 | C99: Leverling | D99: LILA-Supermercado | E99: Barquisimeto | F99: 3508 | G99: Venezuela | H99: Genen Shouyu | I99: 12.4 | J99: 0 | K99: 20 | L99: 248 | M99: 2011-09-04 | N99: Federal Shipping | O99: spices | P99: 9 | Q99: 2011
B100: 10283 | C100: Leverling | D100: LILA-Supermercado | E100: Barquisimeto | F100: 3508 | G100: Venezuela | H100: Teatime Chocolate Biscuits | I100: 7.3 | J100: 0 | K100: 18 | L100: 131.4 | M100: 2011-09-04 | N100: Federal Shipping | O100: sweets | P100: 9 | Q100: 2011
B101: 10284 | C101: Peacock | D101: Lehmanns Marktstand | E101: Frankfurt a.M. | F101: 60528 | G101: Germany | H101: Laughing Lumberjack Lager | I101: 11.2 | J101: 0.25 | K101: 5 | L101: 42 | M101: 2011-09-08 | N101: Speedy Express | O101: beverages | P101: 9 | Q101: 2011
B102: 10284 | C102: Peacock | D102: Lehmanns Marktstand | E102: Frankfurt a.M. | F102: 60528 | G102: Germany | H102: Camembert Pierrot | I102: 27.2 | J102: 0.25 | K102: 20 | L102: 408 | M102: 2011-09-08 | N102: Speedy Express | O102: milk products | P102: 9 | Q102: 2011
B103: 10284 | C103: Peacock | D103: Lehmanns Marktstand | E103: Frankfurt a.M. | F103: 60528 | G103: Germany | H103: Gula Malacca | I103: 15.5 | J103: 0 | K103: 21 | L103: 325.5 | M103: 2011-09-08 | N103: Speedy Express | O103: spices | P103: 9 | Q103: 2011
B104: 10284 | C104: Peacock | D104: Lehmanns Marktstand | E104: Frankfurt a.M. | F104: 60528 | G104: Germany | H104: Schoggi Schokolade | I104: 35.1 | J104: 0.25 | K104: 15 | L104: 394.88 | M104: 2011-09-08 | N104: Speedy Express | O104: sweets | P104: 9 | Q104: 2011
B105: 10285 | C105: Davolio | D105: QUICK-Stop | E105: Cunewalde | F105: 1307 | G105: Germany | H105: Chai | I105: 14.4 | J105: 0.2 | K105: 45 | L105: 518.4 | M105: 2011-09-07 | N105: United Package | O105: beverages | P105: 9 | Q105: 2011
B106: 10285 | C106: Davolio | D106: QUICK-Stop | E106: Cunewalde | F106: 1307 | G106: Germany | H106: Perth Pasties | I106: 26.2 | J106: 0.2 | K106: 36 | L106: 754.56 | M106: 2011-09-07 | N106: United Package | O106: meat | P106: 9 | Q106: 2011
B107: 10285 | C107: Davolio | D107: QUICK-Stop | E107: Cunewalde | F107: 1307 | G107: Germany | H107: Boston Crab Meat | I107: 14.7 | J107: 0.2 | K107: 40 | L107: 470.4 | M107: 2011-09-07 | N107: United Package | O107: sea food | P107: 9 | Q107: 2011
B108: 10286 | C108: Callahan | D108: QUICK-Stop | E108: Cunewalde | F108: 1307 | G108: Germany | H108: Steeleye Stout | I108: 14.4 | J108: 0 | K108: 100 | L108: 1440 | M108: 2011-09-11 | N108: Federal Shipping | O108: beverages | P108: 9 | Q108: 2011
B109: 10286 | C109: Callahan | D109: QUICK-Stop | E109: Cunewalde | F109: 1307 | G109: Germany | H109: Tarte au sucre | I109: 39.4 | J109: 0 | K109: 40 | L109: 1576 | M109: 2011-09-11 | N109: Federal Shipping | O109: sweets | P109: 9 | Q109: 2011
B110: 10287 | C110: Callahan | D110: Ricardo Adocicados | E110: Rio de Janeiro | F110: 02389-890 | G110: Brasilia | H110: Sasquatch Ale | I110: 11.2 | J110: 0 | K110: 20 | L110: 224 | M110: 2011-09-09 | N110: Federal Shipping | O110: beverages | P110: 9 | Q110: 2011
B111: 10287 | C111: Callahan | D111: Ricardo Adocicados | E111: Rio de Janeiro | F111: 02389-890 | G111: Brasilia | H111: Spegesild | I111: 9.6 | J111: 0.15 | K111: 15 | L111: 122.4 | M111: 2011-09-09 | N111: Federal Shipping | O111: sea food | P111: 9 | Q111: 2011
B112: 10287 | C112: Callahan | D112: Ricardo Adocicados | E112: Rio de Janeiro | F112: 02389-890 | G112: Brasilia | H112: Pavlova | I112: 13.9 | J112: 0.15 | K112: 40 | L112: 472.6 | M112: 2011-09-09 | N112: Federal Shipping | O112: sweets | P112: 9 | Q112: 2011
B113: 10288 | C113: Peacock | D113: Reggiani Caseifici | E113: Reggio Emilia | F113: 42100 | G113: Italy | H113: Tourtière | I113: 5.9 | J113: 0.1 | K113: 10 | L113: 53.1 | M113: 2011-09-15 | N113: Speedy Express | O113: meat | P113: 9 | Q113: 2011
B114: 10288 | C114: Peacock | D114: Reggiani Caseifici | E114: Reggio Emilia | F114: 42100 | G114: Italy | H114: Scottish Longbreads | I114: 10 | J114: 0.1 | K114: 3 | L114: 27 | M114: 2011-09-15 | N114: Speedy Express | O114: sweets | P114: 9 | Q114: 2011
B115: 10289 | C115: King | D115: B's Beverages | E115: London | F115: EC2 5NT | G115: Great Britain | H115: Wimmers gute Semmelknödel | I115: 26.6 | J115: 0 | K115: 9 | L115: 239.4 | M115: 2011-09-09 | N115: Federal Shipping | O115: cereals | P115: 9 | Q115: 2011
B116: 10289 | C116: King | D116: B's Beverages | E116: London | F116: EC2 5NT | G116: Great Britain | H116: Aniseed Syrup | I116: 8 | J116: 0 | K116: 30 | L116: 240 | M116: 2011-09-09 | N116: Federal Shipping | O116: spices | P116: 9 | Q116: 2011
B117: 10290 | C117: Callahan | D117: Comércio Mineiro | E117: São Paulo | F117: 05432-043 | G117: Brasilia | H117: Thüringer Rostbratwurst | I117: 99 | J117: 0 | K117: 15 | L117: 1485 | M117: 2011-09-15 | N117: Speedy Express | O117: meat | P117: 9 | Q117: 2011
B118: 10290 | C118: Callahan | D118: Comércio Mineiro | E118: São Paulo | F118: 05432-043 | G118: Brasilia | H118: Chef Anton's Gumbo Mix | I118: 17 | J118: 0 | K118: 20 | L118: 340 | M118: 2011-09-15 | N118: Speedy Express | O118: spices | P118: 9 | Q118: 2011
B119: 10290 | C119: Callahan | D119: Comércio Mineiro | E119: São Paulo | F119: 05432-043 | G119: Brasilia | H119: Original Frankfurter grüne Soße | I119: 10.4 | J119: 0 | K119: 10 | L119: 104 | M119: 2011-09-15 | N119: Speedy Express | O119: spices | P119: 9 | Q119: 2011
B120: 10290 | C120: Callahan | D120: Comércio Mineiro | E120: São Paulo | F120: 05432-043 | G120: Brasilia | H120: Maxilaku | I120: 16 | J120: 0 | K120: 15 | L120: 240 | M120: 2011-09-15 | N120: Speedy Express | O120: sweets | P120: 9 | Q120: 2011
B121: 10291 | C121: Suyama | D121: Que Delícia | E121: Rio de Janeiro | F121: 02389-673 | G121: Brasilia | H121: Manjimup Dried Apples | I121: 42.4 | J121: 0.1 | K121: 2 | L121: 76.32 | M121: 2011-09-16 | N121: United Package | O121: natural products | P121: 9 | Q121: 2011
B122: 10291 | C122: Suyama | D122: Que Delícia | E122: Rio de Janeiro | F122: 02389-673 | G122: Brasilia | H122: Konbu | I122: 4.8 | J122: 0.1 | K122: 20 | L122: 86.4 | M122: 2011-09-16 | N122: United Package | O122: sea food | P122: 9 | Q122: 2011
B123: 10291 | C123: Suyama | D123: Que Delícia | E123: Rio de Janeiro | F123: 02389-673 | G123: Brasilia | H123: Gula Malacca | I123: 15.5 | J123: 0.1 | K123: 24 | L123: 334.8 | M123: 2011-09-16 | N123: United Package | O123: spices | P123: 9 | Q123: 2011
B124: 10292 | C124: Davolio | D124: Tradição Hipermercados | E124: São Paulo | F124: 05634-030 | G124: Brasilia | H124: Sir Rodney's Marmalade | I124: 64.8 | J124: 0 | K124: 20 | L124: 1296 | M124: 2011-09-14 | N124: United Package | O124: sweets | P124: 9 | Q124: 2011
B125: 10293 | C125: Davolio | D125: Tortuga Restaurante | E125: México D.F. | F125: 5033 | G125: Mexico | H125: Guaraná Fantástica | I125: 3.6 | J125: 0 | K125: 10 | L125: 36 | M125: 2011-09-23 | N125: Federal Shipping | O125: beverages | P125: 9 | Q125: 2011
B126: 10293 | C126: Davolio | D126: Tortuga Restaurante | E126: México D.F. | F126: 5033 | G126: Mexico | H126: Rhönbräu Klosterbier | I126: 6.2 | J126: 0 | K126: 6 | L126: 37.2 | M126: 2011-09-23 | N126: Federal Shipping | O126: beverages | P126: 9 | Q126: 2011
B127: 10293 | C127: Davolio | D127: Tortuga Restaurante | E127: México D.F. | F127: 5033 | G127: Mexico | H127: Carnarvon Tigers | I127: 50 | J127: 0 | K127: 12 | L127: 600 | M127: 2011-09-23 | N127: Federal Shipping | O127: sea food | P127: 9 | Q127: 2011
B128: 10293 | C128: Davolio | D128: Tortuga Restaurante | E128: México D.F. | F128: 5033 | G128: Mexico | H128: Vegie-spread | I128: 35.1 | J128: 0 | K128: 5 | L128: 175.5 | M128: 2011-09-23 | N128: Federal Shipping | O128: spices | P128: 9 | Q128: 2011
B129: 10294 | C129: Peacock | D129: Rattlesnake Canyon Grocery | E129: Albuquerque | F129: 87110 | G129: USA | H129: Chai | I129: 14.4 | J129: 0 | K129: 18 | L129: 259.2 | M129: 2011-09-17 | N129: United Package | O129: beverages | P129: 9 | Q129: 2011
B130: 10294 | C130: Peacock | D130: Rattlesnake Canyon Grocery | E130: Albuquerque | F130: 87110 | G130: USA | H130: Ipoh Coffee | I130: 36.8 | J130: 0 | K130: 15 | L130: 552 | M130: 2011-09-17 | N130: United Package | O130: beverages | P130: 9 | Q130: 2011
B131: 10294 | C131: Peacock | D131: Rattlesnake Canyon Grocery | E131: Albuquerque | F131: 87110 | G131: USA | H131: Rhönbräu Klosterbier | I131: 6.2 | J131: 0 | K131: 6 | L131: 37.2 | M131: 2011-09-17 | N131: United Package | O131: beverages | P131: 9 | Q131: 2011
B132: 10294 | C132: Peacock | D132: Rattlesnake Canyon Grocery | E132: Albuquerque | F132: 87110 | G132: USA | H132: Alice Mutton | I132: 31.2 | J132: 0 | K132: 15 | L132: 468 | M132: 2011-09-17 | N132: United Package | O132: meat | P132: 9 | Q132: 2011
B133: 10294 | C133: Peacock | D133: Rattlesnake Canyon Grocery | E133: Albuquerque | F133: 87110 | G133: USA | H133: Camembert Pierrot | I133: 27.2 | J133: 0 | K133: 21 | L133: 571.2 | M133: 2011-09-17 | N133: United Package | O133: milk products | P133: 9 | Q133: 2011
B134: 10295 | C134: Fuller | D134: Vins et alcools Chevalier | E134: Reims | F134: 51100 | G134: France | H134: Gnocchi di nonna Alice | I134: 30.4 | J134: 0 | K134: 4 | L134: 121.6 | M134: 2011-09-22 | N134: United Package | O134: cereals | P134: 9 | Q134: 2011
B135: 10296 | C135: Suyama | D135: LILA-Supermercado | E135: Barquisimeto | F135: 3508 | G135: Venezuela | H135: Gudbrandsdalsost | I135: 28.8 | J135: 0 | K135: 15 | L135: 432 | M135: 2011-09-23 | N135: Speedy Express | O135: milk products | P135: 9 | Q135: 2011
B136: 10296 | C136: Suyama | D136: LILA-Supermercado | E136: Barquisimeto | F136: 3508 | G136: Venezuela | H136: Queso Cabrales | I136: 16.8 | J136: 0 | K136: 12 | L136: 201.6 | M136: 2011-09-23 | N136: Speedy Express | O136: milk products | P136: 9 | Q136: 2011
B137: 10296 | C137: Suyama | D137: LILA-Supermercado | E137: Barquisimeto | F137: 3508 | G137: Venezuela | H137: Pavlova | I137: 13.9 | J137: 0 | K137: 30 | L137: 417 | M137: 2011-09-23 | N137: Speedy Express | O137: sweets | P137: 9 | Q137: 2011
B138: 10297 | C138: Buchanan | D138: Blondel père et fils | E138: Strasbourg | F138: 67000 | G138: France | H138: Chartreuse verte | I138: 14.4 | J138: 0 | K138: 60 | L138: 864 | M138: 2011-09-22 | N138: United Package | O138: beverages | P138: 9 | Q138: 2011
B139: 10297 | C139: Buchanan | D139: Blondel père et fils | E139: Strasbourg | F139: 67000 | G139: France | H139: Mozzarella di Giovanni | I139: 27.8 | J139: 0 | K139: 20 | L139: 556 | M139: 2011-09-22 | N139: United Package | O139: milk products | P139: 9 | Q139: 2011
B140: 10298 | C140: Suyama | D140: Hungry Owl All-Night Grocers | E140: Cork | G140: Ireland | H140: Chang | I140: 15.2 | J140: 0 | K140: 40 | L140: 608 | M140: 2011-09-23 | N140: United Package | O140: beverages | P140: 9 | Q140: 2011
B141: 10298 | C141: Suyama | D141: Hungry Owl All-Night Grocers | E141: Cork | G141: Ireland | H141: Raclette Courdavault | I141: 44 | J141: 0.25 | K141: 30 | L141: 990 | M141: 2011-09-23 | N141: United Package | O141: milk products | P141: 9 | Q141: 2011
B142: 10298 | C142: Suyama | D142: Hungry Owl All-Night Grocers | E142: Cork | G142: Ireland | H142: Inlagd Sill | I142: 15.2 | J142: 0.25 | K142: 40 | L142: 456 | M142: 2011-09-23 | N142: United Package | O142: sea food | P142: 9 | Q142: 2011
B143: 10298 | C143: Suyama | D143: Hungry Owl All-Night Grocers | E143: Cork | G143: Ireland | H143: Tarte au sucre | I143: 39.4 | J143: 0 | K143: 15 | L143: 591 | M143: 2011-09-23 | N143: United Package | O143: sweets | P143: 9 | Q143: 2011
B144: 10299 | C144: Peacock | D144: Ricardo Adocicados | E144: Rio de Janeiro | F144: 02389-890 | G144: Brasilia | H144: Outback Lager | I144: 12 | J144: 0 | K144: 20 | L144: 240 | M144: 2011-09-25 | N144: United Package | O144: beverages | P144: 9 | Q144: 2011
B145: 10299 | C145: Peacock | D145: Ricardo Adocicados | E145: Rio de Janeiro | F145: 02389-890 | G145: Brasilia | H145: Teatime Chocolate Biscuits | I145: 7.3 | J145: 0 | K145: 15 | L145: 109.5 | M145: 2011-09-25 | N145: United Package | O145: sweets | P145: 9 | Q145: 2011
B146: 10300 | C146: Fuller | D146: Magazzini Alimentari Riuniti | E146: Bergamo | F146: 24100 | G146: Italy | H146: Louisiana Hot Spiced Okra | I146: 13.6 | J146: 0 | K146: 30 | L146: 408 | M146: 2011-09-30 | N146: United Package | O146: spices | P146: 9 | Q146: 2011
B147: 10300 | C147: Fuller | D147: Magazzini Alimentari Riuniti | E147: Bergamo | F147: 24100 | G147: Italy | H147: Scottish Longbreads | I147: 10 | J147: 0 | K147: 20 | L147: 200 | M147: 2011-09-30 | N147: United Package | O147: sweets | P147: 9 | Q147: 2011
B148: 10301 | C148: Callahan | D148: Die Wandernde Kuh | E148: Stuttgart | F148: 70563 | G148: Germany | H148: Gnocchi di nonna Alice | I148: 30.4 | J148: 0 | K148: 20 | L148: 608 | M148: 2011-09-29 | N148: United Package | O148: cereals | P148: 9 | Q148: 2011
B149: 10301 | C149: Callahan | D149: Die Wandernde Kuh | E149: Stuttgart | F149: 70563 | G149: Germany | H149: Boston Crab Meat | I149: 14.7 | J149: 0 | K149: 10 | L149: 147 | M149: 2011-09-29 | N149: United Package | O149: sea food | P149: 9 | Q149: 2011
B150: 10302 | C150: Peacock | D150: Suprêmes délices | E150: Charleroi | F150: B-6000 | G150: Belgium | H150: Ipoh Coffee | I150: 36.8 | J150: 0 | K150: 12 | L150: 441.6 | M150: 2011-10-21 | N150: United Package | O150: beverages | P150: 10 | Q150: 2011
B151: 10302 | C151: Peacock | D151: Suprêmes délices | E151: Charleroi | F151: B-6000 | G151: Belgium | H151: Alice Mutton | I151: 31.2 | J151: 0 | K151: 40 | L151: 1248 | M151: 2011-10-21 | N151: United Package | O151: meat | P151: 10 | Q151: 2011
B152: 10302 | C152: Peacock | D152: Suprêmes délices | E152: Charleroi | F152: B-6000 | G152: Belgium | H152: Rössle Sauerkraut | I152: 36.4 | J152: 0 | K152: 28 | L152: 1019.2 | M152: 2011-10-21 | N152: United Package | O152: natural products | P152: 10 | Q152: 2011
B153: 10303 | C153: King | D153: Godos Cocina Típica | E153: Sevilla | F153: 41101 | G153: Spain | H153: Boston Crab Meat | I153: 14.7 | J153: 0.1 | K153: 40 | L153: 529.2 | M153: 2011-09-30 | N153: United Package | O153: sea food | P153: 9 | Q153: 2011
B154: 10303 | C154: King | D154: Godos Cocina Típica | E154: Sevilla | F154: 41101 | G154: Spain | H154: Louisiana Fiery Hot Pepper Sauce | I154: 16.8 | J154: 0.1 | K154: 30 | L154: 453.6 | M154: 2011-09-30 | N154: United Package | O154: spices | P154: 9 | Q154: 2011
B155: 10303 | C155: King | D155: Godos Cocina Típica | E155: Sevilla | F155: 41101 | G155: Spain | H155: Scottish Longbreads | I155: 10 | J155: 0.1 | K155: 15 | L155: 135 | M155: 2011-09-30 | N155: United Package | O155: sweets | P155: 9 | Q155: 2011
B156: 10304 | C156: Davolio | D156: Tortuga Restaurante | E156: México D.F. | F156: 5033 | G156: Mexico | H156: Fløtemysost | I156: 17.2 | J156: 0 | K156: 2 | L156: 34.4 | M156: 2011-09-29 | N156: United Package | O156: milk products | P156: 9 | Q156: 2011
B157: 10304 | C157: Davolio | D157: Tortuga Restaurante | E157: México D.F. | F157: 5033 | G157: Mexico | H157: Raclette Courdavault | I157: 44 | J157: 0 | K157: 10 | L157: 440 | M157: 2011-09-29 | N157: United Package | O157: milk products | P157: 9 | Q157: 2011
B158: 10304 | C158: Davolio | D158: Tortuga Restaurante | E158: México D.F. | F158: 5033 | G158: Mexico | H158: Maxilaku | I158: 16 | J158: 0 | K158: 30 | L158: 480 | M158: 2011-09-29 | N158: United Package | O158: sweets | P158: 9 | Q158: 2011
B159: 10305 | C159: Callahan | D159: Old World Delicatessen | E159: Anchorage | F159: 99508 | G159: USA | H159: Chartreuse verte | I159: 14.4 | J159: 0.1 | K159: 30 | L159: 388.8 | M159: 2011-10-21 | N159: Federal Shipping | O159: beverages | P159: 10 | Q159: 2011
B160: 10305 | C160: Callahan | D160: Old World Delicatessen | E160: Anchorage | F160: 99508 | G160: USA | H160: Thüringer Rostbratwurst | I160: 99 | J160: 0.1 | K160: 25 | L160: 2227.5 | M160: 2011-10-21 | N160: Federal Shipping | O160: meat | P160: 10 | Q160: 2011
B161: 10305 | C161: Callahan | D161: Old World Delicatessen | E161: Anchorage | F161: 99508 | G161: USA | H161: Carnarvon Tigers | I161: 50 | J161: 0.1 | K161: 25 | L161: 1125 | M161: 2011-10-21 | N161: Federal Shipping | O161: sea food | P161: 10 | Q161: 2011
B162: 10306 | C162: Davolio | D162: Romero y tomillo | E162: Madrid | F162: 28001 | G162: Spain | H162: Perth Pasties | I162: 26.2 | J162: 0 | K162: 10 | L162: 262 | M162: 2011-10-05 | N162: Federal Shipping | O162: meat | P162: 10 | Q162: 2011
B163: 10306 | C163: Davolio | D163: Romero y tomillo | E163: Madrid | F163: 28001 | G163: Spain | H163: Tourtière | I163: 5.9 | J163: 0 | K163: 5 | L163: 29.5 | M163: 2011-10-05 | N163: Federal Shipping | O163: meat | P163: 10 | Q163: 2011
B164: 10306 | C164: Davolio | D164: Romero y tomillo | E164: Madrid | F164: 28001 | G164: Spain | H164: Nord-Ost Matjeshering | I164: 20.7 | J164: 0 | K164: 10 | L164: 207 | M164: 2011-10-05 | N164: Federal Shipping | O164: sea food | P164: 10 | Q164: 2011
B165: 10307 | C165: Fuller | D165: Lonesome Pine Restaurant | E165: Portland | F165: 97219 | G165: USA | H165: Scottish Longbreads | I165: 10 | J165: 0 | K165: 3 | L165: 30 | M165: 2011-10-07 | N165: United Package | O165: sweets | P165: 10 | Q165: 2011
B166: 10307 | C166: Fuller | D166: Lonesome Pine Restaurant | E166: Portland | F166: 97219 | G166: USA | H166: Tarte au sucre | I166: 39.4 | J166: 0 | K166: 10 | L166: 394 | M166: 2011-10-07 | N166: United Package | O166: sweets | P166: 10 | Q166: 2011
B167: 10308 | C167: King | D167: Ana Trujillo Emparedados y helados | E167: México D.F. | F167: 5021 | G167: Mexico | H167: Outback Lager | I167: 12 | J167: 0 | K167: 5 | L167: 60 | M167: 2011-10-06 | N167: Federal Shipping | O167: beverages | P167: 10 | Q167: 2011
B168: 10308 | C168: King | D168: Ana Trujillo Emparedados y helados | E168: México D.F. | F168: 5021 | G168: Mexico | H168: Gudbrandsdalsost | I168: 28.8 | J168: 0 | K168: 1 | L168: 28.8 | M168: 2011-10-06 | N168: Federal Shipping | O168: milk products | P168: 10 | Q168: 2011
B169: 10309 | C169: Leverling | D169: Hungry Owl All-Night Grocers | E169: Cork | G169: Ireland | H169: Ipoh Coffee | I169: 36.8 | J169: 0 | K169: 20 | L169: 736 | M169: 2011-11-04 | N169: Speedy Express | O169: beverages | P169: 11 | Q169: 2011
B170: 10309 | C170: Leverling | D170: Hungry Owl All-Night Grocers | E170: Cork | G170: Ireland | H170: Singaporean Hokkien Fried Mee | I170: 11.2 | J170: 0 | K170: 2 | L170: 22.4 | M170: 2011-11-04 | N170: Speedy Express | O170: cereals | P170: 11 | Q170: 2011
B171: 10309 | C171: Leverling | D171: Hungry Owl All-Night Grocers | E171: Cork | G171: Ireland | H171: Fløtemysost | I171: 17.2 | J171: 0 | K171: 3 | L171: 51.6 | M171: 2011-11-04 | N171: Speedy Express | O171: milk products | P171: 11 | Q171: 2011
B172: 10309 | C172: Leverling | D172: Hungry Owl All-Night Grocers | E172: Cork | G172: Ireland | H172: Chef Anton's Cajun Seasoning | I172: 17.6 | J172: 0 | K172: 20 | L172: 352 | M172: 2011-11-04 | N172: Speedy Express | O172: spices | P172: 11 | Q172: 2011
B173: 10309 | C173: Leverling | D173: Hungry Owl All-Night Grocers | E173: Cork | G173: Ireland | H173: Grandma's Boysenberry Spread | I173: 20 | J173: 0 | K173: 30 | L173: 600 | M173: 2011-11-04 | N173: Speedy Express | O173: spices | P173: 11 | Q173: 2011
B174: 10310 | C174: Callahan | D174: The Big Cheese | E174: Portland | F174: 97201 | G174: USA | H174: Pavlova | I174: 13.9 | J174: 0 | K174: 10 | L174: 139 | M174: 2011-10-09 | N174: United Package | O174: sweets | P174: 10 | Q174: 2011
B175: 10310 | C175: Callahan | D175: The Big Cheese | E175: Portland | F175: 97201 | G175: USA | H175: Tarte au sucre | I175: 39.4 | J175: 0 | K175: 5 | L175: 197 | M175: 2011-10-09 | N175: United Package | O175: sweets | P175: 10 | Q175: 2011
B176: 10311 | C176: Davolio | D176: Du monde entier | E176: Nantes | F176: 44000 | G176: France | H176: Singaporean Hokkien Fried Mee | I176: 11.2 | J176: 0 | K176: 6 | L176: 67.2 | M176: 2011-10-08 | N176: Federal Shipping | O176: cereals | P176: 10 | Q176: 2011
B177: 10311 | C177: Davolio | D177: Du monde entier | E177: Nantes | F177: 44000 | G177: France | H177: Gudbrandsdalsost | I177: 28.8 | J177: 0 | K177: 7 | L177: 201.6 | M177: 2011-10-08 | N177: Federal Shipping | O177: milk products | P177: 10 | Q177: 2011
B178: 10312 | C178: Fuller | D178: Die Wandernde Kuh | E178: Stuttgart | F178: 70563 | G178: Germany | H178: Ipoh Coffee | I178: 36.8 | J178: 0 | K178: 24 | L178: 883.2 | M178: 2011-10-15 | N178: United Package | O178: beverages | P178: 10 | Q178: 2011
B179: 10312 | C179: Fuller | D179: Die Wandernde Kuh | E179: Stuttgart | F179: 70563 | G179: Germany | H179: Rhönbräu Klosterbier | I179: 6.2 | J179: 0 | K179: 10 | L179: 62 | M179: 2011-10-15 | N179: United Package | O179: beverages | P179: 10 | Q179: 2011
B180: 10312 | C180: Fuller | D180: Die Wandernde Kuh | E180: Stuttgart | F180: 70563 | G180: Germany | H180: Perth Pasties | I180: 26.2 | J180: 0 | K180: 20 | L180: 524 | M180: 2011-10-15 | N180: United Package | O180: meat | P180: 10 | Q180: 2011
B181: 10312 | C181: Fuller | D181: Die Wandernde Kuh | E181: Stuttgart | F181: 70563 | G181: Germany | H181: Rössle Sauerkraut | I181: 36.4 | J181: 0 | K181: 4 | L181: 145.6 | M181: 2011-10-15 | N181: United Package | O181: natural products | P181: 10 | Q181: 2011
B182: 10313 | C182: Fuller | D182: QUICK-Stop | E182: Cunewalde | F182: 1307 | G182: Germany | H182: Inlagd Sill | I182: 15.2 | J182: 0 | K182: 12 | L182: 182.4 | M182: 2011-10-16 | N182: United Package | O182: sea food | P182: 10 | Q182: 2011
B183: 10314 | C183: Davolio | D183: Rattlesnake Canyon Grocery | E183: Albuquerque | F183: 87110 | G183: USA | H183: Mascarpone Fabioli | I183: 25.6 | J183: 0.1 | K183: 40 | L183: 921.6 | M183: 2011-10-16 | N183: United Package | O183: milk products | P183: 10 | Q183: 2011
B184: 10314 | C184: Davolio | D184: Rattlesnake Canyon Grocery | E184: Albuquerque | F184: 87110 | G184: USA | H184: Escargots de Bourgogne | I184: 10.6 | J184: 0.1 | K184: 30 | L184: 286.2 | M184: 2011-10-16 | N184: United Package | O184: sea food | P184: 10 | Q184: 2011
B185: 10314 | C185: Davolio | D185: Rattlesnake Canyon Grocery | E185: Albuquerque | F185: 87110 | G185: USA | H185: Tarte au sucre | I185: 39.4 | J185: 0.1 | K185: 25 | L185: 886.5 | M185: 2011-10-16 | N185: United Package | O185: sweets | P185: 10 | Q185: 2011
B186: 10315 | C186: Peacock | D186: Island Trading | E186: Hedge End | F186: LA9 PX8 | G186: Great Britain | H186: Outback Lager | I186: 12 | J186: 0 | K186: 30 | L186: 360 | M186: 2011-10-15 | N186: United Package | O186: beverages | P186: 10 | Q186: 2011
B187: 10315 | C187: Peacock | D187: Island Trading | E187: Hedge End | F187: LA9 PX8 | G187: Great Britain | H187: Sasquatch Ale | I187: 11.2 | J187: 0 | K187: 14 | L187: 156.8 | M187: 2011-10-15 | N187: United Package | O187: beverages | P187: 10 | Q187: 2011
B188: 10316 | C188: Davolio | D188: Rattlesnake Canyon Grocery | E188: Albuquerque | F188: 87110 | G188: USA | H188: Jack's New England Clam Chowder | I188: 7.7 | J188: 0 | K188: 10 | L188: 77 | M188: 2011-10-20 | N188: Federal Shipping | O188: sea food | P188: 10 | Q188: 2011
B189: 10316 | C189: Davolio | D189: Rattlesnake Canyon Grocery | E189: Albuquerque | F189: 87110 | G189: USA | H189: Tarte au sucre | I189: 39.4 | J189: 0 | K189: 70 | L189: 2758 | M189: 2011-10-20 | N189: Federal Shipping | O189: sweets | P189: 10 | Q189: 2011
B190: 10317 | C190: Suyama | D190: Lonesome Pine Restaurant | E190: Portland | F190: 97219 | G190: USA | H190: Chai | I190: 14.4 | J190: 0 | K190: 20 | L190: 288 | M190: 2011-10-22 | N190: Speedy Express | O190: beverages | P190: 10 | Q190: 2011
B191: 10318 | C191: Callahan | D191: Island Trading | E191: Hedge End | F191: LA9 PX8 | G191: Great Britain | H191: Lakkalikööri | I191: 14.4 | J191: 0 | K191: 6 | L191: 86.4 | M191: 2011-10-16 | N191: United Package | O191: beverages | P191: 10 | Q191: 2011
B192: 10318 | C192: Callahan | D192: Island Trading | E192: Hedge End | F192: LA9 PX8 | G192: Great Britain | H192: Jack's New England Clam Chowder | I192: 7.7 | J192: 0 | K192: 20 | L192: 154 | M192: 2011-10-16 | N192: United Package | O192: sea food | P192: 10 | Q192: 2011
B193: 10319 | C193: King | D193: Tortuga Restaurante | E193: México D.F. | F193: 5033 | G193: Mexico | H193: Lakkalikööri | I193: 14.4 | J193: 0 | K193: 30 | L193: 432 | M193: 2011-10-23 | N193: Federal Shipping | O193: beverages | P193: 10 | Q193: 2011
B194: 10319 | C194: King | D194: Tortuga Restaurante | E194: México D.F. | F194: 5033 | G194: Mexico | H194: Alice Mutton | I194: 31.2 | J194: 0 | K194: 8 | L194: 249.6 | M194: 2011-10-23 | N194: Federal Shipping | O194: meat | P194: 10 | Q194: 2011
B195: 10319 | C195: King | D195: Tortuga Restaurante | E195: México D.F. | F195: 5033 | G195: Mexico | H195: Rössle Sauerkraut | I195: 36.4 | J195: 0 | K195: 14 | L195: 509.6 | M195: 2011-10-23 | N195: Federal Shipping | O195: natural products | P195: 10 | Q195: 2011
B196: 10320 | C196: Buchanan | D196: Wartian Herkku | E196: Oulu | F196: 90110 | G196: Finland | H196: Fløtemysost | I196: 17.2 | J196: 0 | K196: 30 | L196: 516 | M196: 2011-10-30 | N196: Federal Shipping | O196: milk products | P196: 10 | Q196: 2011
B197: 10321 | C197: Leverling | D197: Island Trading | E197: Hedge End | F197: LA9 PX8 | G197: Great Britain | H197: Steeleye Stout | I197: 14.4 | J197: 0 | K197: 10 | L197: 144 | M197: 2011-10-23 | N197: United Package | O197: beverages | P197: 10 | Q197: 2011
B198: 10322 | C198: King | D198: Pericles Comidas clásicas | E198: México D.F. | F198: 5033 | G198: Mexico | H198: Filo Mix | I198: 5.6 | J198: 0 | K198: 20 | L198: 112 | M198: 2011-11-04 | N198: Federal Shipping | O198: cereals | P198: 11 | Q198: 2011
B199: 10323 | C199: Peacock | D199: Königlich Essen | E199: Brandenburg | F199: 14776 | G199: Germany | H199: Chartreuse verte | I199: 14.4 | J199: 0 | K199: 4 | L199: 57.6 | M199: 2011-10-26 | N199: Speedy Express | O199: beverages | P199: 10 | Q199: 2011
B200: 10323 | C200: Peacock | D200: Königlich Essen | E200: Brandenburg | F200: 14776 | G200: Germany | H200: Genen Shouyu | I200: 12.4 | J200: 0 | K200: 5 | L200: 62 | M200: 2011-10-26 | N200: Speedy Express | O200: spices | P200: 10 | Q200: 2011
... 1981 more rows

Sheet Daten (3)
J1: 0
A2: 1 | B2: Data (3) | F2: Back to Start
A3: 2 | B3: Daten (3) | F3: Startseite
A4: 0

Sheet 01 Diagramm erstellen
J1: 0
A2: 1 | B2: 01 Create a chart | F2: Back to Start
A3: 2 | B3: 01 Diagramm erstellen | F3: Startseite
C5: branch | D5: total sales | I5: month | J5: beverages | K5: cereals | L5: meat
C6: Bremen | D6: 779137 | I6: 1 | J6: 4058.2 | K6: 4161.2 | L6: 7646.2
C7: Hamburg | D7: 1172780 | I7: 2 | J7: 21394.4 | K7: 3923.2 | L7: 5121.45
C8: Oldenburg | D8: 616390 | I8: 3 | J8: 3804 | K8: 4702.3 | L8: 8771.82
I9: 4 | J9: 8911.88 | K9: 2840.4 | L9: 1871.68
I10: 5 | J10: 12193.15 | K10: 5471 | L10: 6884.59
I11: 6 | J11: 10885.9 | K11: 6426.4 | L11: 4810.96
I12: 7 | J12: 3947.37 | K12: 2802.5 | L12: 3132.4
I13: 8 | J13: 9805.52 | K13: 4967.25 | L13: 8319.54
I14: 9 | J14: 4894.57 | K14: 6385.6 | L14: 1042.73
I15: 10 | J15: 6708.15 | K15: 2876.87 | L15: 9479.9
I16: 11 | J16: 7304.5 | K16: 2762 | L16: 15917.48
I17: 12 | J17: 7782.4 | K17: 8871.7 | L17: 4274.1
A36: 2 | C36: Ein Diagramm kann NIEMALS so bleiben, wie Excel es automatisch generiert hat!
A37: 2
A38: 2
A39: 2 | B39: SEHR | C39: Ist alles da?
A40: 2 | B40: SEHR | D40: Titel, Achsenbeschriftung, Maßeinheiten, Legende, ...
A41: 2 | B41: WICHTIG!! | C41: Kann was weg?
A42: 2 | D42: Kommastellen/Nullen, Achsenskalierung, Legende, …
A43: 2 | C43: Ist es "schön"?
A44: 2 | D44: Ist die Aussage des Diagramm schnell und eindeutig zu erkennen? Kein Schnickschnack? "Corporate identity"?
A45: 2
A46: 2
A47: 2 | C47: ACHTUNG: Beachten Sie den Kontrast bei der Auswahl der Farben! (wegen der s/w-Kopien!)
A48: 2
A49: 2
A50: 2
A51: 2 | C51: Bedenken Sie stets: Was soll das Diagramm ausdrücken?
A53: 1 | C53: A chart can NEVER remain as it was automatically generated by Excel!
A54: 1
A55: 1
A56: 1 | B56: VERY | C56: Is everything there?
A57: 1 | B57: VERY | D57: title, axis labels, measuring units, legend, …
A58: 1 | B58: IMPORTANT!! | C58: Can anything go?
A59: 1 | D59: decimals, axis scaling, legend, …
A60: 1 | C60: Is it "nice"?
A61: 1 | D61: Is the important message quickly visible? Is there no nick-nack? Have you considered the Corporate identity?
A62: 1
A63: 1
A64: 1 | C64: ATTENTION: Consider the contrast if you select the colors!! (because of the b/w-Copies!)
A65: 1
A66: 1
A67: 1
A68: 1 | C68: Always have in mind: What is the message of the chart?
I73: ===>>
I90: ===>>
I108: ===>>
I125: ===>>
A141: 2 | B141: Übung | C141: Erstellen Sie ein vorbildlich formatiertes Diagramm mit Daten von einem der "Daten"-Blätter!
A142: 1 | B142: Exercise | C142: Create a very well formatted chart using data from one of the "Data" worksheets!
A149: 0

Sheet 01 Diagramm erstellen_ (hidden)
B1: 2 | C1: 2 | D1: 2 | E1: 1 | F1: 1 | G1: 1 | H1: 0
A2: 1 | B2: 01 Create a chart_ | F2: =B2 -> 01 Create a chart_
A3: 2 | B3: 01 Diagramm erstellen_
A4: 0
B5: 1 | C5: In Excel ist es sehr einfach, aus einer Datenliste ein Diagramm zu erstellen. Ich vermute stark, dass Sie das schon wissen - aber ich will mal ganz einfach anfangen. Sie können sehr viele unterschiedliche Diagramme erstellen - am einfachsten und naheliegendsten ist es meistens, auf "Empfohlene Diagramme" zu klicken. Wie gesagt - meistens. Es gibt aber auch einige Fälle, wo das nicht funktioniert. Erstellen wir also zunächst zwei typische Diagramme: Säule und Linie. ACHTUNG: Ein von Excel erstelltes Diagramm kann NIEMALS (NIEMALS!) so bleiben, wie Excel es generiert hat. Es muss immer noch nachbearbeitet werden. | E5: 1 | F5: In Excel it is very easy to create a chart from a data list. I strongly suspect that you already know this - but let me start very simply. You can create many different charts - the easiest and most obvious way is usually to click on "Recommended charts". As I said - mostly. But there are also some cases where this does not work. So let's first create two typical chart types: Bar and line. ATTENTION: A chart created by Excel can NEVER (NEVER!) remain as Excel has generated it. It still needs to be reworked. Translated with www.DeepL.com/Translator (free version)
B6: =IF(C6<>"",B5+1,"") -> 2 | C6: (Un?)glücklicherweise gibt es zahllose Möglichkeiten für die Bearbeitung eines Diagramms. Die kann man sich unmöglich alle merken. Was Sie sich aber merken sollten, sind folgende drei Fragen, die Sie sich bei jedem Ihrer Diagramme immer stellen müssen: - IST ALLES DA? - KANN WAS WEG? - IST ES „SCHÖN“? ACHTUNG: Mit „SCHÖN“ ist nicht „knallbunt“ gemeint, sondern „Ist die Aussage des Diagramms für den Betrachter schnell und eindeutig erkennbar?“ Dazu gehören auch solche Dinge wie Schriftgröße und Farbkontrast (blau auf grün?). | E6: =IF(F6<>"",E5+1,"") -> 2 | F6: (Un?)fortunately there are countless possibilities for editing a chart It is impossible to remember them all. What you should remember, however, are the following three questions that you must always ask yourself with each of your diagrams: - IS EVERYTHING THERE? - CAN ANYTHING GO? - IS IT "NICE"? ATTENTION: "NICE" does not mean "brightly coloured", but "Is the message of the chart quickly and clearly recognisable to the observer?". This includes such things as font size and colour contrast (blue on green?).
B7: =IF(C7<>"",B6+1,"") -> 3 | C7: Also zunächst: (1) Diagrammtitel bearbeiten und formatieren (Farbe, Schriftart) (2) x- und y-Achse formatieren (Farbe, Schriftart) Der Diagrammtitel sollte immer kurz – aber vollständig und verständlich - aussagen, welche Daten im Diagramm dargestellt werden. Dazu gehört im Allgemeinen eine Zeitangabe. Die Achsenbeschriftungen bekommen die richtige Schriftart, -farbe und –größe sowie evtl. ein bestimmtes Zahlenformat (nicht zu viele Nullen!). Für Werte im Millionenbereich gibt es das benutzerdefinierte Format 0,0.." Mio €";;0. (Details zu benutzerdefinierten Formaten finden Sie in meiner Übungsdatei „Basics“). | E7: =IF(F7<>"",E6+1,"") -> 3 | F7: Well - first of all: (1) Edit and format the chart title (color, font) (2) Format the x and y axis (color, font) The chart title should always state briefly - but completely and understandably - which data are presented in the diagram. This generally includes a time specification. The axis labels are given the correct font, colour and size and possibly a certain number format (not too many zeros!). For values in the million range there is the custom format 0,0...". Mio €";;0. (Details about custom formats can be found in my exercise file "Basics")
B8: 4 | C8: Rechtsklick auf die y-Achse + "Achse formatieren / Achsenoptionen / Zahl" - Rubrik: "Benutzerdefiniert" - Typ: 0,0.." Mio €";;0 oder 0. "T€";;0 - Sollte dieser Typ bei Ihnen noch nicht existieren, können Sie ihn im Feld "Formatcode" eingeben und mit dem Klick auf "Hinzufügen" speichern! (siehe auch "Excel-Basics": -> "Benutzerdefinierte Formate" -> "Währungsformate") Rechtsklick auf die y-Achse + "Achse formatieren / Achsenoptionen" - Maximum: 1,2E6 (= 1.200.000) Rechtsklick auf die horizontalen Linien + "Gitternetzlinien formatieren" (-> schwarz) Ganz wichtig: Die Maßeinheiten! Sind es Euro, Tonnen oder Kilometer? | E8: 4 | F8: Right click on the y axis + "Format Axis / Axis Options / Number" - Category: "Custom" - Format Code: 0,0.." Mio €";;0 or 0. "T€";;0 - "Add" (see also "Excel-Basics":-> "Custom formats" -> "Currency formats") Right click on the y axis + "Format Axis / Axis Options" - Maximum: 1.2E6 (= 1,200,000) Right click on the horizontal gridlines + "Format gridlines" (->black) Very important: The measurement units! Are they euros, tonnes or kilometres?
B9: 5 | C9: Zu guter Letzt kommt die Farbe. Ich betone nochmals: Mit „Ist es „schön“?“ meine ich nicht „knallbunt“! In erster Linie sollten Sie natürlich die von der Corporate Identity Ihrer Firma vorgegebenen Farben benutzen. Sie können - den Diagrammbereich - die Zeichnungsfläche - die Säulenfläche (bzw. Linienfarbe) färben. Achten Sie dabei wieder auf guten Kontrast in der schwarz/weiß-Version! - Rechtsklick links oben über der y-Achse + "Füllung" - Rechtsklick im Diagramm + "Füllung" - Rechtsklick auf eine der Säulen + "Füllung" | E9: 5 | F9: Last but not least, there is the colour. I emphasize again: With "Is it 'nice'?" I do not mean "gaudy"! First and foremost, of course, you should use the colours prescribed by your company's corporate identity. You can colour - the chart area - the drawing area - the column area (or line colour) Again, make sure you get good contrast in the black and white version! - right click top left above the y axis + "Fill" - right click inside the chart + "Fill" - right click on one of the columns + "Fill
B10: 6 | C10: Zur Farbgebung gehört auch unbedingt, an die möglicherweise angefertigten schwarz/weiß-Drucke bzw.-kopien zu denken. Dann wird nämlich aus blau grau, aus grün grau und aus rot auch! Also macht man im Liniendiagramm die blaue Linie durchgezogen, die grüne gestrichelt und die rote gepunktet! | E10: 6 | F10: It is also essential to consider the black and white prints or copies that may have been made. Then blue becomes grey, green becomes grey and red too! So in the line chart, you make the blue line solid, the green line dashed and the red line dotted!
B11: 7 | C11: Wenn die Beschriftung der x-Achse sehr viele oder sehr lange Wörter enthält, können Sie diese schräg stellen. Oft macht Excel das automatisch - wenn nicht, dann: Rechtsklick + "Achse formatieren / Ausrichtung / Benutzerdefinierter Winkel" Geben Sie einen NEGATIVEN Wert für den Winkel ein! | E11: 7 | F11: If there are many labels at the x axis (or very long ones) it makes sense to align them diagonally. Sometimes Excel does this automatically - if not, then: right click to the x axis + "Format axis / Alignment / Custom angle" Enter a NEGATIVE value for the angle!

Sheet 02 Diagramm ändern
J1: 0
A2: 1 | B2: 02 Change a chart | F2: Back to Start
A3: 2 | B3: 02 Diagramm ändern | F3: Startseite
A5: 2 | B5: Ändern
A6: 1 | B6: Change
A7: 2 | B7: Hinzufügen
A8: 1 | B8: Add
A9: 2 | B9: Kopieren
A10: 1 | B10: Copy
A28: 2 | B28: Layout übertragen
A29: 1 | B29: Transfer layout
C31: branch | D31: total sales | F31: branch | G31: nr of orders
C32: Bremen | D32: 779137 | F32: Aral | G32: 863
C33: Hamburg | D33: 1172780 | F33: Esso | G33: 690
C34: Oldenburg | D34: 616390 | F34: Shell | G34: 461
I39: ===>>
A62: 2 | B62: Übung | C62: Erstellen Sie mit Daten von einem der "Daten"-Blätter in dieser Datei ein Diagramm und üben Sie daran die Basistechniken!
A63: 2
A64: 1 | B64: Exercise | C64: Create a diagram with data from one of the "data" sheets in this file and practice the basic techniques on it!
A65: 1
A87: 0

Sheet 02 Diagramm ändern_ (hidden)
B1: 2 | C1: 2 | D1: 2 | E1: 1 | F1: 1 | G1: 1 | H1: 0
A2: 1 | B2: 02 Change a chart_ | F2: =B2 -> 02 Change a chart_
A3: 2 | B3: 02 Diagramm ändern_
A4: 0
B5: 1 | C5: Mit „Diagramm ändern“ meine ich im Wesentlichen zwei Sachen: Sie wollen - ein Diagramm verändern - einem Diagramm etwas hinzufügen Wenn Sie an einem vorhandenen Diagramm etwas ändern wollen, müssen Sie das Diagramm mit der rechten Maustaste anklicken. Je nachdem, wo Sie im Diagramm hin geklickt haben, gibt es im Kontextmenü einen Eintrag "… formatieren" (z.B. "Diagrammbereich formatieren", "Zeichnungsfläche formatieren", "Datenreihen formatieren"). Wenn Sie diesen Eintrag anklicken, erscheint rechts das Formatieren-Menü. | E5: 1 | F5: With "Change a chart" I essentially mean two things: You want - change a chart - add something to a chart If you want to change something in an existing chart, you have to click on the chart with the right mouse button. Depending on where you clicked in the chart there is an entry "... format" in the context menu (e.g. "Format chart area", "Format drawing area", "Format data series"). If you click on this entry, the Format menu appears on the right.
B6: =IF(C6<>"",B5+1,"") -> 2 | C6: So lange, wie Sie an Ihrem Diagramm arbeiten, sollten Sie das Formatieren-Menu am rechten Fensterrand ständig geöffnet lassen. Wenn Sie einen anderen Teil Ihres Diagramms bearbeiten wollen, brauchen Sie ihn nur mit der linken Maustaste anzuklicken. Sie können andere Teile Ihres Diagramms auch direkt im „Formatieren“-Menü auswählen. Fast überall gibt es drei oder vier Unterkategorien und darunter weitere Unter-Unterkategorien. | E6: =IF(F6<>"",E5+1,"") -> 2 | F6: As long as you are working on your chart, you should leave the "Format" menu on the right-hand side of the window open at all times. If you want to edit another part of your chart, you only need to click on it with the left mouse button. You can also select other parts of your chart directly from the "Format" menu. Almost everywhere there are three or four sub-categories and below them may be more sub-sub-categories.
B7: =IF(C7<>"",B6+1,"") -> 3 | C7: Wenn Sie zu einem vorhandenen Diagramm etwas hinzufügen wollen (z.B. eine Legende oder eine Achsenbeschriftung), müssen Sie das Diagramm mit der linken Maustaste anklicken. Daraufhin erscheint oben das Menü „Diagrammtools / Entwurf“. Darin gibt es die Funktion "Diagrammelement hinzufügen" | E7: =IF(F7<>"",E6+1,"") -> 3 | F7: If you want to add something to an existing chart (e.g. a legend or an axis label), you have to click on the chart with the left mouse button. Then the menu "Chart tools / Draft" appears at the top. There is the function "Add chart element".
B8: 4 | C8: Dieselbe Wirkung erreichen Sie auch, wenn Sie nach dem Linksklick auf Ihr Diagramm das große Pluszeichen rechts daneben anklicken. Wenn Sie jetzt den Mauszeiger über einen Menü-Eintrag halten (ohne zu klicken!) wird Ihnen eine Vorschau angezeigt. Beachten Sie, dass alle Menü-Einträge noch Untermenüs haben, die Sie über einen Klick auf das kleine schwarze Dreieck erreichen. Zum Ausprobieren sollten Sie auch hier im Untermenü nicht sofort klicken, sondern den Mauszeiger erst einmal nur auf den Menüeintrag halten. Es beschleunigt Ihre Arbeit enorm, wenn Sie all diese kleinen Tricks kennen und nutzen! | E8: 4 | F8: You can achieve the same effect by clicking on the large plus sign to the right of your chart after left-clicking. If you now hold the mouse pointer over a menu item (without clicking!) a preview will be displayed. Please note that all menu items still have submenus, which you can reach by clicking on the small black triangle. To try them out, you should not click immediately in the sub-menu, but hold the mouse pointer over the menu item for the time being. It will speed up your work enormously if you know and use all these little tricks!
B9: 5 | C9: Für das Kopieren eines Diagramms gibt es einen kleinen, aber wichtigen Trick: Wenn Sie ein Diagramm kopieren wollen … … klicken Sie das Diagramm mit der linken Maustaste an … drücken Sie Strg-C … klicken Sie mit der linken Maustaste die Zielzelle an … drücken Sie Strg-V ACHTUNG: Drücken Sie NICHT Strg-C und Strg-V unmittelbar nacheinander! Sie müssen nach dem Strg-C ERST die Zielzelle anklicken! Wenn Sie Strg-C und Strg-V unmittelbar hintereinander drücken, wird das Diagramm in sich selbst hinein kopiert. Wofür braucht man das? … kommt jetzt … | E9: 5 | F9: There is a small but important trick for copying a chart: If you want to copy a chart ... ... click on the chart with the left mouse button ... press Ctrl-C ... click with the left mouse button on the target cell ... press Ctrl-V ATTENTION: DO NOT press Ctrl-C and Ctrl-V immediately after each other! You must FIRST click on the target cell after Ctrl-C! If you press Ctrl-C and Ctrl-V immediately after each other, the chart is copied into itself. What do you need it for? ... comes now...
B10: 6 | C10: Vielleicht kommt Ihnen folgende Situation bekannt vor: Sie haben bereits eine Datentabelle benutzt, um ein Diagramm zu erstellen. Jetzt möchten Sie mit einer weiteren, identisch aufgebauten Datentabelle ein weiteres Diagramm mit demselben Layout erstellen. Dann können Sie sich die mühselige Arbeit am Layout des zweiten Diagramms folgendermaßen ersparen: | E10: 6 | F10: Perhaps the following situation is familiar to you: You have already used a data table to create a chart. Now you want to create another chart with the same layout using another data table with the same structure. Then you can save yourself the tedious work on the layout of the second chart as follows:
B11: 7 | C11: … erstellen Sie eine Kopie des ersten Diagramms (Aaaah … jetzt braucht man das also!), … klicken mit der rechten Maustaste in das kopierte Diagramm, … und wählen "Daten auswählen". … Dann klicken Sie die Datenreihe an, … wählen "Bearbeiten", … und legen fest, woher der Name und die Werte der Datenreihe geholt werden sollen. ACHTUNG: Die beiden Eingabefelder für den Namen und die Werte werden häufig verwechselt! Dasselbe wiederholen Sie mit der x-Achse ("Rubriken") | E11: 7 | F11: ... create a copy of the first chart (Aaaah ... so now you need that!), ... click with the right mouse button into the copied chart, ... and select "Select data". ... Then click on the data series, ... select "Edit", ... and define where the name and the values of the data series are to be retrieved from. ATTENTION: The two input fields for the name and the values are often confused! Repeat the same with the x-axis ("columns")
B12: 8 | C12: Ich hoffe, Sie wundern sich nicht, warum im Diagramm nichts zu sehen ist! Im vorliegenden Fall sind die neuen Werte sehr viel kleiner als die alten. Es könnte auch umgekehrt sein. Die y-Achse muss also neu skaliert werden! | E12: 8 | F12: I hope you are not wondering why there is nothing to see in the chart! In this case, the new values are much smaller than the old ones. It could also be the other way round. So the y-axis must be rescaled!

Sheet 03 Diagramm gestalten
J1: 0
A2: 1 | B2: 03 Design a chart | F2: Back to Start
A3: 2 | B3: 03 Diagramm gestalten | F3: Startseite
C5: branch | D5: total sales | F5: branch | G5: nr of orders
C6: Bremen | D6: 779137 | F6: Bremen | G6: 863
C7: Hamburg | D7: 1172780 | F7: Hamburg | G7: 690
C8: Oldenburg | D8: 616390 | F8: Oldenburg | G8: 461
A26: 2 | B26: Einen einzelnen Datenpunkt hervorheben
A27: 1 | B27: Highlight one single data point
I31: ===>>
A44: 2 | B44: Datenbeschriftungen hinzufügen
A45: 1 | B45: Add data labels
I49: ===>>
A63: 2 | B63: Ein Bild als Hintergrund einfügen
A64: 1 | B64: Add a background picture
I68: ===>>
A81: 2 | B81: Die Säulen als gestapelte Bilder darstellen
A82: 1 | B82: Columns as stacked images
I86: ===>>
A100: 2 | B100: Eine Quellenangabe einfügen
A101: 1 | B101: Add a reference
I105: ===>>
A120: 2 | B120: Den Mittelwert darstellen
A121: 1 | B121: Display the average
C122: branch | D122: total sales | F122: branch | G122: total sales | H122: average
C123: Bremen | D123: 779137 | F123: Bremen | G123: 779137 | H123: =AVERAGE($G$123:$G$125) -> 856102.3333
C124: Hamburg | D124: 1172780 | F124: Hamburg | G124: 1172780 | H124: =AVERAGE($G$123:$G$125) -> 856102.3333
C125: Oldenburg | D125: 616390 | F125: Oldenburg | G125: 616390 | H125: =AVERAGE($G$123:$G$125) -> 856102.3333
I130: ===>>
A143: 2 | B143: Die Datenquelle ändern
A144: 1 | B144: Change the data source
A145: 2 | C145: von: | F145: nach:
A146: 1 | C146: from: | F146: to:
C147: branch | D147: total sales | F147: branch | G147: nr of orders
C148: Bremen | D148: 779137 | F148: Aral | G148: 863
C149: Hamburg | D149: 1172780 | F149: Esso | G149: 690
C150: Oldenburg | D150: 616390 | F150: Shell | G150: 461
I154: ===>>
A169: 2 | B169: Datentabelle hinzufügen
A170: 1 | B170: Add the data table
C172: branch | D172: beverages | E172: sweets
C173: Bremen | D173: 779137 | E173: 547887
C174: Hamburg | D174: 1172780 | E174: 745611
C175: Oldenburg | D175: 616390 | E175: 870991
I179: ===>>
A195: 2 | B195: Übung | C195: Üben Sie diese Techniken mit Daten von einem der "Daten"-Blätter!
A196: 1 | B196: Exercise | C196: Train these techniques with data from one of the "Data" worksheets!
A201: 0

Sheet 03 Diagramm gestalten_ (hidden)
B1: 2 | C1: 2 | D1: 2 | E1: 1 | F1: 1 | G1: 1 | H1: 0
A2: 1 | B2: 03 Design a chart_ | F2: =B2 -> 03 Design a chart_
A3: 2 | B3: 03 Diagramm gestalten_
A4: 0
B5: 1 | C5: Sie haben Ihr Diagramm jetzt so weit optimiert, dass Sie mit den Antworten auf die drei Fragen - IST ALLES DA? - KANN WAS WEG? - IST ES SCHÖN? zufrieden sind? Gut! Was können wir jetzt noch Schönes mit unserem Diagramm machen? | E5: 1 | F5: Do you have optimised your chart to such an extent that you can now be satisfied with the answers to the three questions - IS EVERYTHING THERE? - CAN ANYTHING GO? - IS IT BEAUTIFUL? ? Good! Now which other nice things can we do with our chart?
B6: =IF(C6<>"",B5+1,"") -> 2 | C6: Einen einzelnen Datenpunkt hervorheben: LANGSAMER Doppelklick mit der linken Maustaste auf dem Datenpunkt (ACHTUNG: Bei einem schnellen Doppelklick erscheint das Seitenmenü „Datenreihen formatieren“!) Rechtsklick + „Füllung“ bzw. "Rahmen" | E6: =IF(F6<>"",E5+1,"") -> 2 | F6: Highlight one single data point: SLOW double click with the left mouse button on the data point (ATTENTION: If you double click quickly, the side menu "Format data series" appears!) right click / "Format Data Point" "Fill" / "Outline"
B7: =IF(C7<>"",B6+1,"") -> 3 | C7: Datenbeschriftungen hinzufügen: Rechtsklick auf eine Säule + "Datenbeschriftungen hinzufügen / Datenbeschriftungen hinzufügen" ACHTUNG: Evtl. muss die y-Achse neu skaliert werden! | E7: =IF(F7<>"",E6+1,"") -> 3 | F7: Add data labels: right click to one column + "Add Data Labels / Add Data Labels" ATTENTION: Perhaps a new scaling of the y axis is necessary!
B8: 4 | C8: Ein Bild als Hintergrund einfügen: Rechtsklick auf die Zeichnungsfläche + "Zeichnungsfläche formatieren" „Füllung / Bild- oder Texturfüllung / Datei“ Transparenz einstellen (z.B. 70%) | E8: 4 | F8: Add a background picture: right click to the plot area + "Format Plot Area" "Fill / Picture or texture fill / File" Adjust transparency (e.g. 70%)
B9: 5 | C9: Die Säulen als gestapelte Bilder darstellen: Rechtsklick auf eine der Säulen + "Datenreihen formatieren" "Füllung / Bild- oder Texturfüllung / Datei" "Stapeln" aktivieren | E9: 5 | F9: Columns as stacked images: right click to one of the columns + "Format Data Series" "Fill / Picture or Texture Fill / File" activate "Stack"
B10: 6 | C10: Eine Quellenangabe einfügen: Diagrammfläche in der Höhe vergrößern Zeichnungsfläche in der Höhe verkleinern Linksklick auf das Diagramm „Diagrammtools / Format / Formen einfügen / Textfeld" | E10: 6 | F10: Add a reference: enlarge the hight of the chart area reduce the hight of the plot area left click to the chart „Chart tools / Format / Insert Shapes / Text Box"
B11: 7 | C11: Den Mittelwert darstellen: Datentabelle um Mittelwert erweitern Rechtsklick auf das Diagramm + "Daten auswählen / Hinzufügen" Datenreihe mit dem Mittelwert auswählen eine zweite Säulenreihe erscheint Rechtsklick auf die zweite Säulenreihe + "Datenreihen-Diagrammtyp ändern" unten bei "average" auswählen: "Linie" Rechtsklick auf die Linie + "Datenreihe formatieren" (Farbe, Stärke, Strichtyp) | E11: 7 | F11: Display the average: add a data series with the average right click to the chart + "Select Data / Add" select the data series with the average a second series of columns appears right click to this series + "Change Series Chart Type" select "Line" for the average
B12: 8 | C12: Die Datenquelle ändern: Rechtsklick auf das Diagramm + "Daten auswählen" "Legendeneinträge (Reihen) / Bearbeiten" "Horizontale Achsenbeschriftungen (Rubrik) / Bearbeiten" Rechtsklick auf die y-Achse + "Achse formatieren" „Achsenoptionen / Maximum = 1000" „Zahl / Rubrik = Zahl" und "Dezimalstellen = 0" Diagrammtitel ändern | E12: 8 | F12: Change the data source: right click to the chart + "Select Data" "Legend Entries (Series) / Edit" "Horizontal (Category) Axis Labels / Edit" right click to the y axis + "Format Axis" „Axis options / Maximum = 1000" „Number / Category = Number" and "Decimal places = 0" change the chart title
B13: 9 | C13: Datentabelle hinzufügen: Wenn Sie dem Betrachter zusätzlich zum Diagramm auch die dazugehörigen Zahlen zeigen möchten, klicken Sie das Diagramm an und wählen Sie „Diagrammtools / Entwurf / Diagrammelement hinzufügen / Datentabelle“ | E13: 9 | F13: Add the data table: If you want to show in addition to the chart also the numbers, you have to click on the chart and then select „Chart Tools / Design / Add Chart Element / Data Table"

Sheet 04 Fortgeschrittene Techniken
J1: 0
A2: 1 | B2: 04 Advanced techniques | F2: Back to Start
A3: 2 | B3: 04 Fortgeschrittene Techniken | F3: Startseite
C5: branch | D5: total sales
C6: Bremen | D6: 779137
C7: Hamburg | D7: 1172780
C8: Oldenburg | D8: 616390
A26: 2 | B26: "Unter/über Mittelwert"
A27: 1 | B27: "Below / above average"
E45: (1) | F45: (2) | G45: (3) | H45: (4)
A46: 1 | C46: branch | D46: total sales | E46: average | F46: total sales 2 | G46: "red" | H46: "green"
A47: 2 | C47: Niederlassung | D47: Umsatz | E47: Mittelwert | F47: Umsatz 2 | G47: "rot" | H47: "grün"
C48: Bremen | D48: 779137 | E48: =ROUND(AVERAGE($D$48:$D$50),0) -> 856102 | F48: =IF(D48<E48,D48,E48) -> 779137 | G48: =IF(D48<=E48,E48-D48,#N/A) -> 76965 | H48: =IF(D48>E48,D48-E48,#N/A) -> 
C49: Hamburg | D49: 1172780 | E49: =ROUND(AVERAGE($D$48:$D$50),0) -> 856102 | F49: =IF(D49<E49,D49,E49) -> 856102 | G49: =IF(D49<=E49,E49-D49,#N/A) ->  | H49: =IF(D49>E49,D49-E49,#N/A) -> 316678
C50: Oldenburg | D50: 616390 | E50: 856102 | F50: =IF(D50<E50,D50,E50) -> 616390 | G50: =IF(D50<=E50,E50-D50,#N/A) -> 239712 | H50: =IF(D50>E50,D50-E50,#N/A) -> 
A52: 2 | D52: Formeln:
A53: 2 | C53: (1): | D53: RUNDEN(MITTELWERT($D$48:$D$50);0)
A54: 2 | C54: (2): | D54: WENN(D48<E48;D48;E48)
A55: 2 | C55: (3): | D55: WENN(D48<=E48;E48-D48;#NV)
A56: 2 | C56: (4): | D56: WENN(D48>E48;D48-E48;#NV)
A57: 1 | D57: Formulas:
A58: 1 | C58: (1): | D58: ROUND(AVERAGE($D$48:$D$50);0)
A59: 1 | C59: (2): | D59: IF(D48<E48;D48;E48)
A60: 1 | C60: (3): | D60: IF(D48<=E48;E48-D48;#N/A)
A61: 1 | C61: (4): | D61: IF(D48>E48;D48-E48;#N/A)
H66: ===>>
H83: ===>>
H100: ===>>
A115: 2 | B115: Übung | C115: Üben Sie diese Techniken mit Daten von einem der "Daten"-Blätter!
A116: 1 | B116: Exercise | C116: Train these techniques with data from one of the "Data" worksheets!
A121: 0

Sheet 04 Fortgeschrittene Techniken_ (hidden)
B1: 2 | C1: 2 | D1: 2 | E1: 1 | F1: 1 | G1: 1 | H1: 0
A2: 1 | B2: 04 Advanced techniques_ | F2: =B2 -> 04 Advanced techniques_
A3: 2 | B3: 04 Fortgeschrittene Techniken_
A4: 0
B5: 1 | C5: "Unter/über Mittelwert": Wir zeichnen in unser Diagramm eine Linie ein, die den Mittelwert markiert und möchten dann, dass - für Werte, die kleiner sind als der Mittelwert, der Abstand zum Mittelwert rot gefärbt wird – bzw. dass - für Werte, die größer sind als der Mittelwert, soll Abstand zum Mittelwert grün gefärbt wird. So soll es dann also aussehen: | E5: 1 | F5: "Below / above average": We draw a line in our chart that marks the average and then we want - for values that are smaller than the average, the distance to the average is coloured red - or that - for values that are greater than the average, distance to the average should be coloured green. So this is how it should look like:
B6: =IF(C6<>"",B5+1,"") -> 2 | C6: Unser Plan sieht daher so aus: Wir brauchen vier Datenreihen - (1) eine, die den Mittelwert darstellt. (2) eine, die den realen Wert darstellt - ABER: Für Werte, die größer sind als der Mittelwert, darf die Säule aber nicht höher sein als der Mittelwert. (3) eine, die den Abstand zum Mittelwert nach oben ("rot") darstellt. (4) eine, die den Abstand zum Mittelwert nach unten darstellt ("grün"). | E6: =IF(F6<>"",E5+1,"") -> 2 | F6: Our plan is therefore as follows: We need four data series - (1) one for the average. (2) one for the real value - BUT: For values larger than the average, the column must not be higher than the average! (3) one for the distance to the average above the real value ("red") (4) one for the distance to the average below the real value ("green")
B7: =IF(C7<>"",B6+1,"") -> 3 | C7: (1) Wir berechnen zunächst den Mittelwert und runden ihn auf volle Euros. (2) Wir begrenzen mit Hilfe einer WENN-Formel die angezeigten Werte beim Mittelwert: „WENN der Umsatz kleiner ist als der Mittelwert, DANN wird der Umsatz angezeigt – SONST der Mittelwert.“ (3) WENN der Umsatz kleiner oder gleich dem Mittelwert ist, DANN wird die Differenz aus Mittelwert und Umsatz berechnet – SONST wird der Fehlerwert #NV ausgegeben. (4) WENN der Umsatz größer als der Mittelwert ist, DANN wird die Differenz aus Umsatz und Mittelwert berechnet – SONST wird der Fehlerwert #NV ausgegeben. Stellt man diese vier Datenreihen in einem Diagramm dar, so sieht es zunächst so aus: | E7: =IF(F7<>"",E6+1,"") -> 3 | F7: (1) We first calculate the average value and round it up to full Euros. (2) We use an IF formula to limit the values displayed at the mean value: "IF the turnover is less than the mean value, THEN the turnover is displayed - ELSE the mean value". (3) IF the turnover is less than or equal to the average, THEN the difference between the average and the turnover is calculated - ELSE the error value #NV is displayed. (4) IF the turnover is greater than the mean value, THEN the difference between the turnover and the mean value is calculated - ELSE the error value #NV is displayed. If these four data series are displayed in a diagram, it looks like this at first:
B8: 4 | C8: Zur weiteren Bearbeitung des Diagramms machen wir folgendes: Rechtsklick auf eine Datenreihe + "Datenreihen-Diagrammtyp ändern" Diagrammtyp: (1): gestapelte Säulen (2): gestapelte Säulen (3): gestapelte Säulen (4): Linie ACHTUNG: Die "Minus"-Datenreihe (rot gestrichelt) wird ohne Füllung dargestellt. Ansonsten könnte der Eindruck entstehen, dass dort noch "etwas ist". Aber es soll ja gerade dargestellt werden, dass dort nichts ist - es fehlt etwas bis zum Mittelwert! | E8: 4 | F8: For further processing of the chart we do the following: Right click on a data series + "Change series chart type" Chart type: (1): stacked columns (2): stacked columns (3): stacked columns (4): line ATTENTION: The "minus" data series (red dotted line) is displayed without filling. Otherwise the impression could arise that there is still "something". But it should be shown that there is nothing - something is missing up to the mean value!
B9: 5 | C9: … und zuletzt noch zwei Verschönerungen: Rechtsklick auf die y-Achse + "Achse formatieren / Maximum" = 1,4E6“ Rechtsklick auf die "+/-" Datenreihen + "Datenbeschriftungen hinzufügen" | E9: 5 | F9: ... and finally two embellishments: Right click to the y axis + "Format axis / Maximum = 1.4E6“ Right click to the "+/-" data series + "Add Data Labels"

Sheet 05 Zeitreihe
J1: 0
A2: 1 | B2: 05 Time series | F2: Back to Start
A3: 2 | B3: 05 Zeitreihe | F3: Startseite
C5: sales | D5: quarter
C6: branch | D6: 1 | E6: 2 | F6: 3 | G6: 4 | H6: Total
C7: Bremen | D7: 192961 | E7: 210492 | F7: 183961 | G7: 191723 | H7: 779137
C8: Hamburg | D8: 360589 | E8: 347180 | F8: 337822 | G8: 127189 | H8: 1172780
C9: Oldenburg | D9: 154367 | E9: 146723 | F9: 159509 | G9: 155791 | H9: 616390
C10: Total | D10: 707917 | E10: 704395 | F10: 681292 | G10: 474703 | H10: 2568307
C13: quarter | D13: Bremen | E13: Hamburg | F13: Oldenburg
C14: 1 | D14: 192961 | E14: 360589 | F14: 154367
C15: 2 | D15: 210492 | E15: 347180 | F15: 146723
C16: 3 | D16: 183961 | E16: 337822 | F16: 159509
C17: 4 | D17: 191723 | E17: 127189 | F17: 155791
H38: ===>>
H55: ===>>
O74: ===>>
I105: ===>>
I123: ===>>
I141: ===>>
A157: 2 | B157: Übung | C157: Erstellen Sie ein "schönes" Zeitreihen-Diagramm mit Daten von einem der "Daten"-Blätter!
A158: 1 | B158: Exercise | C158: Create a "nice" time series diagramm using the data from one of the "Data" worksheets!
A166: 0

Sheet 05 Zeitreihe_ (hidden)
B1: 2 | C1: 2 | D1: 2 | E1: 1 | F1: 1 | G1: 1 | H1: 0
A2: 1 | B2: 05 Time series_ | F2: =B2 -> 05 Time series_
A3: 2 | B3: 05 Zeitreihe_
A4: 0
B5: 1 | C5: Häufig werden Diagramme benutzt, um Zeitreihen darzustellen – also zu zeigen, wie sich ein Wert (Umsatz, Dollarkurs, Ölpreis, …) über mehrere Wochen, Monate oder Jahre hinweg entwickelt hat. Als Diagrammtyp ist hierfür das Liniendiagramm zu empfehlen. Beginnen wir mit einer kleinen Zeitreihe über vier Quartale. | E5: 1 | F5: Charts are often used to show time series - i.e. how a value (turnover, dollar exchange rate, oil price, ...) has developed over several weeks, months or years. The line chart is the recommended chart type for this purpose. Let us start with a small time series over four quarters.
B6: =IF(C6<>"",B5+1,"") -> 2 | C6: In dieser Tabelle (Kopie einer Pivot-Tabelle!) stehen die Werte der Quartale NEBENEINANDER. Wir könnten sie so zur Erstellung eines Liniendiagramms benutzen. Ich möchte aber gleich auch noch eine besondere Art des Kopierens demonstrieren: Das transponierte Kopieren! Damit können wir die Werte sehr schnell in eine Liste UNTEREINANDER stehender Werte überführen: - Bereich C6:G9 markieren + Strg-C (=Kopieren) - Klick in eine andere Zelle - „Start / Zwischenablage / Einfügen / Transponieren" | E6: =IF(F6<>"",E5+1,"") -> 2 | F6: This table (copy of a pivot table!) contains the values of the quarters SIDE BY SIDE. We could use it to create a line chart. But I would like to demonstrate a special way of copying: The transposed copying! With this we can very quickly transfer the values into a list of values ONE BELOW THE OTHER: - highlight the range C6:G9 + Ctrl-C (=copy) - click in another cell - „Home / Clip board / Paste / Transpose"
B7: =IF(C7<>"",B6+1,"") -> 3 | C7: Sowohl aus der horizontalen als auch aus der vertikalen Liste können wir jetzt sehr schnell ein Diagramm erstellen: „Einfügen / Diagramme / Empfohlene Diagramme" Das Ergebnis mag für den Eigengebrauch, für die schnelle Orientierung ausreichen – aber nicht für den Einsatz in einer Präsentation oder einem Bericht. Dafür kann ein Diagramm niemals (NIEMALS!) so bleiben, wie Excel es erzeugt hat!! | E7: =IF(F7<>"",E6+1,"") -> 3 | F7: From both the horizontal and vertical list we can now create a diagram very quickly: „Insert / Charts / Recommended Charts" The result may be sufficient for personal use, for quick orientation - but not for use in a presentation or report. For these purposes a chart can never (NEVER!) remain as Excel has created it!
B8: 4 | C8: Also beginnen wir, das Diagramm „schön“ zu machen! Zunächst bekommt das Diagramm einen Titel, der kurz und verständlich ausdrückt, welche Daten hier dargestellt werden. Dazu gehört im allgemeinen eine Zeitangabe! Alle Textformate werden auf Arial 11 schwarz umgestellt – oder Ihren persönlichen Lieblings-Schrifttyp. Auf jeden Fall muss alles gut zu lesen sein – groß genug und mit genügend Kontrast zum Hintergrund. Wenn Sie irgendwo ins Diagramm klicken, erscheint ein neues Menü: „Diagrammtools“. Dort wählen wir: "Entwurf / Diagrammelement hinzufügen / Achsentitel / Primär horizontal" Wenn im Diagramm noch genug Platz ist, empfehle ich, die Legende dorthin zu verschieben. | E8: 4 | F8: So we start to make the diagram "nice"! First of all, the diagram is given a title that briefly and clearly expresses what data is presented here. This generally includes a time specification! All text formats are changed to Arial 11 black - or your personal favourite font. In any case, everything must be easy to read - large enough and with sufficient contrast to the background. If you click anywhere in the diagram, a new menu will appear: "Diagram tools". There we choose: "Design / Add Chart Element / Axis Titles / Primary Horizontal". If there is enough space left in the diagram, I recommend moving the legend there.
B9: 5 | C9: Jetzt verändern wir den Diagrammtyp: Rechtsklick + „Diagrammtyp ändern" / "Linie mit Datenpunkten" Warum? Eine durchgezogene Linie suggeriert einen kontinuierlichen Datenverlauf. Das stimmt aber nicht. Es existieren nur vier Werte - dazwischen (wo die Linie verläuft) - gibt es keine Daten. Die Linie ist nur eine GEDACHTE Verbindung zwischen den Datenpunkten! Darum: Große Datenpunkte und eine dünne Linie! Das sollten Sie sich generell merken: Eine durchgezogene Linie (=einen kontinuierlichen Datenverlauf) gibt es nur in der Mathematik. Für die Darstellung realer Daten ist fast immer die Linie mit Datenpunkten zu empfehlen! | E9: 5 | F9: Now we change the diagram type: Right click + "Change Chart Type" / "Line with Markers" Why? A solid line suggests a continuous data flow. But this is not true. There are only four values - in between (where the line runs) there is no data. The line is only a IMAGINARY connection between the data points! Therefore: Large markers and a thin line! You should generally keep this in mind: A solid line (=a continuous data line) exists only in mathematics. For the representation of real data the line with markers is almost always recommended!
B10: 6 | C10: Statt durch Farben werden die Linien durch unterschiedliche Strichtypen gekennzeichnet. Warum? … denken Sie mal an die s/w-Kopien … | E10: 6 | F10: Instead of different colors different line types are use to differentiate the data series. Why? … please think of the b/w copies!
B11: 7 | C11: Wenn Sie genau hinschauen, werden Sie entdecken, dass die Reihenfolge "Bremen - Hamburg - Oldenburg" in der Legende nicht mit der Reihenfolge im Diagramm übereinstimmt. Wenn Sie das ändern wollen: Rechtsklick ins Diagramm + "Daten auswählen" eine Datenreihe anklicken und sie mit den beiden Buttons mit den Dreiecken darauf verschieben | E11: 7 | F11: If you look very attentively to the chart you will see, that the sequence "Bremen - Hamburg - Oldenburg" does not correspond to the sequence of lines in the chart. If you want to change that: right click to the chart + "Select Data" click on a data series and move it with the two buttons with the triangles on them.
B12: 8 | C12: Erinnern Sie sich noch an meine drei Diagrammfragen? - Ist alles da? - Kann etwas weg? - Ist es "schön"? Und? Kann etwas weg? Ich denke ja: Die vielen Nullen an der y-Achse! Wir stellen diese also um auf ein spezielles benutzerdefiniertes Format: 0. "T€";;0 für Zahlen bis 1 Million 0,0.. "Mio €";;0 für Zahlen über 1 Million siehe auch "Excel-Basics": -> "Benutzerdefinierte Formate" -> "Währungsformate" | E12: 8 | F12: Do you remember my three chart questions? - Is everything there? - Can anything go? - Is it "nice"? So? Can anything go? I think so: The many zeros on the y-axis! So we change them over to a special custom format: 0. "T€";;0 for numbers up to 1 Million 0,0.. "Mio €";;0 for numbers above 1 Million see also "Excel-Basics": -> "Custom formats" -> "Currency formats"
B13: 9 | C13: … und jetzt fehlt nur noch die finale Verschönerung des Diagramms durch etwas Farbe. Denken Sie dabei an die Corporate Identity Ihrer Firma! | E13: 9 | F13: ... and now all that is missing is the final embellishment of the diagram with a little colour. Think about the corporate identity of your company!

Sheet 06 Anteile (1)
J1: 0
A2: 1 | B2: 06 Shares (1) | F2: Back to Start
A3: 2 | B3: 06 Anteile (1) | F3: Startseite
C5: branch | D5: total sales
C6: Bremen | D6: 779137
C7: Hamburg | D7: 1172780
C8: Oldenburg | D8: 616390
I12: ===>>
I28: ===>>
I45: ===>>
I62: ===>>
I79: ===>>
B94: "Explosion"
I97: ===>>
I114: ===>>
A130: 2 | B130: Übung | C130: Erstellen Sie ein Kreis-Diagramm mit Daten von einem der "Daten"-Blätter!
A131: 1 | B131: Exercise | C131: Create a pie chart using data from one of the "Data" worksheets!
A136: 0

Sheet 06 Anteile (1)_ (hidden)
B1: 2 | C1: 2 | D1: 2 | E1: 1 | F1: 1 | G1: 1 | H1: 0
A2: 1 | B2: 06 Shares (1)_ | F2: =B2 -> 06 Shares (1)_
A3: 2 | B3: 06 Anteile (1)_
A4: 0
B5: 1 | C5: Neben den Zeitreihen ist die Darstellung von Anteilen (am Umsatz, am Export, am Transportvolumen, …) eine beliebte Anwendung von Diagrammen. Hierfür ist das Kreisdiagramm besonders geeignet. „Einfügen / Empfohlene Diagramme / Kreis" Das Ergebnis mag für den Eigengebrauch, für die schnelle Orientierung ausreichen – aber nicht für den Einsatz in einer Präsentation oder einem Bericht. Dafür kann ein Diagramm niemals (NIEMALS!) so bleiben, wie Excel es erzeugt hat!! (1) Die Legende ist völlig unbrauchbar, weil die Farbmuster viel zu klein sind. (2) In der s/w-Kopie sind die Farben schlecht bzw. gar nicht unterscheidbar. | E5: 1 | F5: In addition to time series, the presentation of shares (in turnover, export, transport volume, ...) is a popular application of diagrams. The pie chart is particularly suitable for this purpose. "Insert / Recommended Charts / Pie" The result may be sufficient for personal use, for quick orientation - but not for use in a presentation or report. For these purposes a chart can never (NEVER!) remain as Excel has created it! (1) The legend is completely unusable because the colour samples are much too small. (2) In the b/w copy the colours are poorly or not at all distinguishable.
B6: =IF(C6<>"",B5+1,"") -> 2 | C6: Also beginnen wir, das Diagramm „schön“ zu machen! Zunächst bekommt das Diagramm einen Titel, der kurz und verständlich ausdrückt, welche Daten hier dargestellt werden. Dazu gehört im allgemeinen eine Zeitangabe! Das Textformat wird auf Arial schwarz umgestellt – oder Ihren persönlichen Lieblings-Schrifttyp. Auf jeden Fall muss alles gut zu lesen sein – groß genug und mit genügend Kontrast zum Hintergrund. | E6: =IF(F6<>"",E5+1,"") -> 2 | F6: So we start to make the diagram "nice"! First of all, the diagram is given a title that briefly and clearly expresses what data is presented here. This generally includes a time specification! The text format is changed to Arial black - or your personal favourite font. In any case, everything must be easy to read - large enough and with sufficient contrast to the background.
B7: =IF(C7<>"",B6+1,"") -> 3 | C7: Dann wird die nutzlose Legende entfernt und … … Rechtsklick auf den Kreis + "Datenbeschriftungen hinzufügen" und … … "Datenbeschriftungen hinzufügen" oder … "Datenlegenden hinzufügen" Rechtsklick auf eine Datenbeschriftung bzw. Datenlegende + "Datenbeschriftungen formatieren / Rubrikenname + Wert + Prozentsatz + Führungslinien anzeigen“ Wenn in den Kreissektoren genügend Platz ist, können Sie die Beschriftung darin belassen – ansonsten ziehen Sie sie nach außen. | E7: =IF(F7<>"",E6+1,"") -> 3 | F7: XXX Then the useless legend is removed and ... … right click on the circle + "Add Data Labels" and … … "Add Data Labels" or … "Add Data Callouts" right click on a data label or data callout + "Format Data Labels / Rubrikenname + Wert + Prozentsatz + Führungslinien anzeigen" If there is enough space in the circle sectors, you can leave the labels inside - otherwise pull it outwards.
B8: =IF(C8<>"",B7+1,"") -> 4 | C8: Um eine einzelne Beschriftung zu verschieben: Ein langsamer Doppelklick mit der linken Maustaste! Dann erscheint auch ein gelber Marker an der Spitze des Zeigers, mit dem diese bewegt werden kann! Sie können den Zeiger an der Legende entfernen, indem Sie seine Spitze mit Hilfe des gelben Markers ins Innere der Legende schieben! Die Legende wird als solche völlig unsichtbar, wenn Sie sie in der Hintergrundfarbe färben. | E8: =IF(F8<>"",E7+1,"") -> 4 | F8: To move one single data label: Make a slow double click with the left mouse button Then there will be also a small yellow marker at the tip of the pointer, which can be used to move it. You can remove the pointer of a data callout by moving it into the inner area of the callout. The callout becomes invisible, if you color it witht the background color.
B9: =IF(C9<>"",B8+1,"") -> 5 | C9: … und jetzt fehlt nur noch die finale Verschönerung des Diagramms durch etwas Farbe. Denken Sie dabei an die Corporate Identity Ihrer Firma! Wenn Sie die Kreissegmente mit dicken hellen Linien umranden, können Sie auf deren unterschiedliche Färbung verzichten! Das Diagramm ist dann auch in s/w noch "schön"! | E9: =IF(F9<>"",E8+1,"") -> 5 | F9: ... and now all that is missing is the final embellishment of the diagram with a little colour. Think about the corporate identity of your company! If you border the circle segments with thick light lines, you can do without their different colouring! Then the chart is also "nice" in b/w!
B10: =IF(C10<>"",B9+1,"") -> 6 | C10: Wenn Sie einen Kreissektor mit der linken Maustaste anklicken, die Taste gedrückt HALTEN und nach außen ziehen, verändert sich das Diagramm so: Wenn Sie einen Kreissektor mit der linken Maustaste anklicken, die Taste LOSLASSEN, erneut drücken und nach außen ziehen, verändert sich das Diagramm so: | E10: =IF(F10<>"",E9+1,"") -> 6 | F10: If you click a sector, HOLD the mouse button down and move it outwards, the chart changes as follows: If you click a sector, RELEASE the mouse button, click it again and move it outwards, the chart changes as follows:

Sheet 07 Anteile (2)
J1: 0
A2: 1 | B2: 07 Shares (2) | F2: Back to Start
A3: 2 | B3: 07 Anteile (2) | F3: Startseite
C5: country | D5: total sales
C6: USA | D6: 245584.59
C7: Germany | D7: 229351.11
C8: Austria | D8: 128003.83
C9: Brasilia | D9: 106925.78
C10: France | D10: 81305.81
C11: Great Britain | D11: 58971.31
C12: Venezuela | D12: 56810.63
C13: Sweden | D13: 54495.14
C14: Canada | D14: 51129.79
C15: Ireland | D15: 49979.91
C16: Belgium | D16: 33824.85
C17: Danmark | D17: 32661.02
C18: Switzerland | D18: 31692.64
C19: Mexico | D19: 23582.07
C20: Finland | D20: 18810.05
C21: Spain | D21: 17983.2
C22: Italy | D22: 15770.15
C23: Portugal | D23: 11472.36
C24: Argentina | D24: 8119.1
C25: Norway | D25: 5735.15
C26: Poland | D26: 3531.95
K29: ===>>
K52: ===>>
K74: ===>>
A95: 2 | B95: Übung | C95: Erstellen Sie ein Kreis-aus-Kreis-Diagramm mit Daten von einem der "Daten"-Blätter!
A96: 1 | B96: Exercise | C96: Create a "Pie of Pie" chart using data from one of the "Data" worksheets!
A102: 0

Sheet 07 Anteile (2)_ (hidden)
B1: 2 | C1: 2 | D1: 2 | E1: 1 | F1: 1 | G1: 1 | H1: 0
A2: 1 | B2: 07 Shares (2)_ | F2: =B2 -> 07 Shares (2)_
A3: 2 | B3: 07 Anteile (2)_
A4: 0
B5: 1 | C5: Das Beispiel zeigt sehr deutlich: Wenn es viele kleine Anteile gibt, ist deren Darstellung in einem Kreisdiagramm nicht sinnvoll. Die Legende ist so sinnlos wie nur irgendwas! Für diesen Fall gibt es den Diagrammtyp „Kreis aus Kreis“. Also: (1) Legende entfernen (2) Rechtsklick auf den Kreis + "Datenreihen-Diagrammtyp ändern / Kreis aus Kreis" (3) Rechtsklick auf einen der Kreise + "Datenreihen formatieren" - "Reihen aufteilen mit" … "Prozentwert" - "Werte kleiner als" wählen (4%) - "Abstandsbreite" wählen (125%) - "Zweite Zeichnungsfläche" wählen (64%) | E5: 1 | F5: The example shows very clearly: If there are many small shares, it is not useful to show them in a pie chart. The legend is completely meaningless! For this case there is the chart type "pie of pie". So: (1) remove the legend (2) right click on the circle + "Change Series Chart Type / Pie of Pie" (3) right click on one of the circles + "Format Data Series" - "Split Series by" … "Percentage value" - select "Value less than" (4%) - select "Gap Width" (125%) - select "Second Plot Size" (64%)
B6: =IF(C6<>"",B5+1,"") -> 2 | C6: An Stelle der Legende benutzen wir lieber Datenbeschriftungen: Rechtsklick auf einen Kreis + "Datenbeschriftungen hinzufügen / Datenlegenden hinzufügen" - Schriftart: Arial 7 schwarz Für die Aussage des Diagramms ist es nicht unbedingt erforderlich, die Sektoren zu färben. Entscheidend ist, dass der Betrachter erkennt, von welchen Rubriken (hier: Länder) die größten Anteile kommen und um wieviel sie größer sind als die kleinen Anteile! | E6: =IF(F6<>"",E5+1,"") -> 2 | F6: Instead of a legend we prefer data labels: right click on one circle + "Add Data Labels / Add Data Callouts" - font: Arial 7 black For the message of the chart it is not necessary to color the sectors. It is only important, that the viewer recognizes, how the shares are distributed among the countries and how large one share is in comparison to another share.
B7: =IF(C7<>"",B6+1,"") -> 3 | C7: Ansonsten gilt auch hier natürlich wieder: Achten Sie bei der Farbgebung auf den Kontrast, damit das Diagramm auch in s/w noch gut zu erkennen ist! | E7: =IF(F7<>"",E6+1,"") -> 3 | F7: Otherwise, the following applies here again of course: Pay attention to the contrast in the colouring so that the chart is still clearly visible in b/w!

Sheet 08 Sekundärachse
J1: 0
A2: 1 | B2: 08 Secondary axis | F2: Back to Start
A3: 2 | B3: 08 Sekundärachse | F3: Startseite
C5: quarter | D5: sales for Shell in Hamburg | E5: overall sales | F5: rel. share of Shell in Hamburg
C6: 1 | D6: 78176 | E6: 284917 | F6: =D6/E6 -> 0.274381662
C7: 2 | D7: 82789 | E7: 292395 | F7: =D7/E7 -> 0.2831409566
C8: 3 | D8: 88111 | E8: 221292 | F8: 0.3981662238
C9: 4 | D9: 94512 | E9: 204703 | F9: 0.4617030527
A12: 2 | B12: absolute Werte und relative Werte
A13: 1 | B13: absolute and relative values
C14: quarter | D14: sales for Shell in Hamburg | E14: overall sales | F14: rel. share of Shell in Hamburg
C15: 1 | D15: 78176 | E15: 284917 | F15: =D15/E15 -> 0.274381662
C16: 2 | D16: 82789 | E16: 292395 | F16: =D16/E16 -> 0.2831409566
C17: 3 | D17: 88111 | E17: 221292 | F17: 0.3981662238
C18: 4 | D18: 94512 | E18: 204703 | F18: 0.4617030527
I40: ===>>
I56: ===>>
A71: 2 | B71: Filiale vs. Konzern
A72: 1 | B72: Branche vs. Corporation
C73: quarter | D73: sales for Shell in Hamburg | E73: overall sales | F73: rel. share of Shell in Hamburg
C74: 1 | D74: 78176 | E74: 284917 | F74: =D74/E74 -> 0.274381662
C75: 2 | D75: 82789 | E75: 292395 | F75: =D75/E75 -> 0.2831409566
C76: 3 | D76: 88111 | E76: 221292 | F76: 0.3981662238
C77: 4 | D77: 94512 | E77: 204703 | F77: 0.4617030527
I100: ===>>
I116: ===>>
I133: ===>>
A150: 2 | B150: Der "Säulentrick"
A151: 1 | B151: The "column trick"
C153: quarter | D153: sales for Shell in Hamburg | E153: overall sales | F153: rel. share of Shell in Hamburg
C154: 1 | D154: 78176 | E154: 284917 | F154: =D154/E154 -> 0.274381662
C155: 2 | D155: 82789 | E155: 292395 | F155: =D155/E155 -> 0.2831409566
C156: 3 | D156: 88111 | E156: 221292 | F156: 0.3981662238
C157: 4 | D157: 94512 | E157: 204703 | F157: 0.4617030527
I161: ===>>
I179: ===>>
A197: 2 | B197: Übung | C197: Erstellen Sie Diagramme mit Sekundärachse mit Daten von einem der "Daten"-Blätter!
A198: 1 | B198: Exercise | C198: Create charts with a secondary axis using the data from one of the "Data" worksheets!
A203: 0

Sheet 08 Sekundärachse_ (hidden)
B1: 2 | C1: 2 | D1: 2 | E1: 1 | F1: 1 | G1: 1 | H1: 0
A2: 1 | B2: 08 Secondary axis_ | F2: =B2 -> 08 Secondary axis_
A3: 2 | B3: 08 Sekundärachse_
A4: 0
B5: 1 | C5: Idee: Es sollen zwei Datenreihen mit sehr unterschiedlich großen Werten und / oder unterschiedlichen Maßeinheiten in einem Diagramm dargestellt werden. Problem: Die Datenreihe mit den kleinen Werten wäre fast unsichtbar. Plan: Wir richten das Diagramm so ein, dass es für jede Datenreihe eine eigene y-Achse gibt - eine links (="Primärachse") und eine rechts (="Sekundärachse") | E5: 1 | F5: Idea: Two data series with very different values / with different measuring units (e.g. € and %) shall be displayed in one chart. Problem: The data series with the smaller values would be nearly invisible. Plan: We use a special chart layout with two y axes - one left (primary axis) and one right (secondary axis).
B6: =IF(C6<>"",B5+1,"") -> 2 | C6: Wir markieren zunächst die benötigten Spalten. ACHTUNG: Achten Sie darauf, die Strg-Taste richtig einzusetzen – also NICHT Strg-markieren-markieren, SONDERN markieren-Strg-markieren!! Dann: „Einfügen / Diagramme / Empfohlene Diagramme" Es wird automatisch ein Diagramm mit Sekundärachse empfohlen! | E6: =IF(F6<>"",E5+1,"") -> 2 | F6: We first mark the required columns. ATTENTION: Make sure that you use the Ctrl key correctly - i.e. DO NOT mark Ctrl, BUT mark-Ctrl mark! Then: "Insert / Charts / Recommended Charts" Excel recommends automatically a chart with a secondary axis!
B7: =IF(C7<>"",B6+1,"") -> 3 | C7: Die rote Linie im Diagramm suggeriert einen kontinuierlichen Datenverlauf, den es aber gar nicht gibt. Tatsächlich gibt es nur vier Datenpunkte. Daher wird der Diagrammtyp geändert: große Marker und eine dünne Linie Rechtsklick auf die Linie + "Datenreihen-Diagrammtyp ändern" Format der y-Achse: - 0. "T€";;0 für Zahlen bis 1 Million - 1. 0,0.. "Mio €";;0 für Zahlen über 1 Million Außerdem führen wir all die Änderungen durch, die schon auf den Blättern „Diagramm erstellen“, „… ändern“ und „… gestalten“ erläutert wurden. | E7: =IF(F7<>"",E6+1,"") -> 3 | F7: The red line in the chart suggests a continuous data trend - which does not exist. There are only four data points! Therefore we change the line type: big markers and a thin line right click on the line + "Change Series Chart Type" Format of the y axis: - 0. "T€";;0 for numbers up to 1 Million - 0,0.. "Mio €";;0 for numbers above 1 Million We also make all the changes that have already been explained on the sheets "Create a chart", "Change a chart" and "Design a chart".
B8: =IF(C8<>"",B7+1,"") -> 4 | C8: Achten Sie darauf, dass die Primär- und die Sekundärachse gleich viele Unterteilungen haben! Sonst stehen die Zahlen der Sekundärachse nicht an den horizontalen Linien. | E8: =IF(F8<>"",E7+1,"") -> 4 | F8: Take care, that the primary axis and the secondary axis have the equal number of divisions. Otherwise the numbers of the secondary axis are not placed at the grid lines!
B9: =IF(C9<>"",B8+1,"") -> 5 | C9: Im ersten Beispiel wollten wir zwei Datenreihen mit extrem unterschiedlichen Werten und mit unterschiedlichen Maßeinheiten im Diagramm darstellen. Im zweiten Beispiel haben beide Datenreihen dieselbe Maßeinheit und die Werte sind nicht ganz so extrem unterschiedlich. Nach dem Klick auf „Einfügen / Diagramme / Empfohlene Diagramme“ wird jetzt von Excel kein Diagramm mit Sekundärachse empfohlen. Wir müssen es also selbst gestalten. | E9: =IF(F9<>"",E8+1,"") -> 5 | F9: In the first example we wanted to display two data series with extremely different values and with different measurement units in the chart. In the second example, both data series have the same measurement unit and the values are not so extremely different. Now after clicking on "Insert / Charts / Recommended Charts" Excel does not recommend a chart with secondary axis. So we have to design it ourselves.
B10: =IF(C10<>"",B9+1,"") -> 6 | C10: Rechtsklick auf die Datenreihe mit den größeren Werten + "Datenreihen formatieren" "Reihenoptionen / Sekundärachse" die beiden Säulenreihen liegen jetzt übereinander - daher: Rechtsklick + "Datenreihen-Diagrammtyp ändern / Linie mit Datenpunkten" | E10: =IF(F10<>"",E9+1,"") -> 6 | F10: right click on the data series with the larger values + "Format Data Series" "Series options / Secondary Axis" the columns are located on top of each other - therefore: right click + "Change Series Chart Type / Line with markers"
B11: 7 | C11: Die Primärachse und die Sekundärachse haben unterschiedlich viele Teilungen (5 bzw. 7). Daher stehen die Zahlen der Sekundärachse nicht an den horizontalen Linien! Das muss geändert werden! Rechtsklick auf die Achse + "Achse formatieren Achsenoptionen / Intervalle / Hauptintervall" Format der y-Achse: 0. "T€";;0 für Zahlen bis 1 Million 0,0.. "Mio €";;0 für Zahlen über 1 Million | E11: 7 | F11: The primary axis and the secondary axis have a different number of divisions (5 left and 7 right). Therefore the numbers of the secondary axis are not positioned at the gridlines. That must be changed! right click on the axis + "Format Axis / Axis options / Units / Major" format of the y axis: 0. "T€";;0 for numbers up to 1 Million 0,0.. "Mio €";;0 for numbers above 1 Million
B12: 8 | C12: Abschließend erfolgt dann die finale Verschönerung des Diagramms! | E12: 8 | F12: Finally, the final embellishment of the diagram follows!
B13: 9 | C13: Der „Säulentrick“ Die Benutzung der Sekundärachse ermöglicht auch einen besonderen Trick mit Säulen. Die Säulen zweier Datenreihen werden nämlich normalerweise entweder gestapelt (=übereinander) oder gruppiert (=nebeneinander). Mit Hilfe der Sekundärachse können Sie sie aber auch HINTEREINANDER anordnen! Dazu starten wir wieder mit gruppierten Säulen für den Umsatz in Hamburg und den Gesamtumsatz. | E13: 9 | F13: The „column trick“ The usage of the seconary axis makes a special trick with columns possible. Usually, the columns of two data series are displayed either stacked (=one on top of the other) or grouped (=side by side). Using the secondary axis you can also display the two data series one BEHIND the other! Let us start again with grouped columns for the turnover in Hamburg and the total turnover.
B14: 10 | C14: Dann: Rechtsklick auf die Datenreihe mit dem Hamburger Umsatz (d.h. die Datenreihe mit den KLEINEREN Werten!) + "Datenreihe formatieren / Reihenoptionen / Sekundärachse" Das Maximum beider y-Achsen gleich groß einstellen!! Linksklick auf die Sekundärachse und "Entf"-Taste drücken … und "schön" machen | E14: 10 | F14: Then: right click to the series with the Hamburg turnover (i.e. the data series with the SMALLER values!) + "Format Data Series / Series options / Secondary Axis" Make the maximum of both y axes equal!! Left click to the secondary axis and press the "Del" key … and make it "nice"

Sheet 09 Pareto-Diagramm
J1: 0
A2: 1 | B2: 09 Pareto chart | F2: Back to Start
A3: 2 | B3: 09 Pareto-Diagramm | F3: Startseite
C5: category | D5: total sales | E5: relative share | F5: cumulated relative share
C6: beverages | D6: 267868.16 | E6: =D6/SUM($D$6:$D$13) -> 0.2116296134 | F6: =SUM($D$6:D6)/SUM($D$6:D$13) -> 0.2116296134 | G6: =_xlfn.FORMULATEXT(F6) -> =SUMME($D$6:D6)/SUMME($D$6:D$13)
C7: milk products | D7: 234454.76 | E7: =D7/SUM($D$6:$D$13) -> 0.1852313101 | F7: =SUM($D$6:D7)/SUM($D$6:D$13) -> 0.3968609236 | G7: =_xlfn.FORMULATEXT(F7) -> =SUMME($D$6:D7)/SUMME($D$6:D$13)
C8: sweets | D8: 167357.19 | E8: 0.1322207814 | F8: =SUM($D$6:D8)/SUM($D$6:D$13) -> 0.5290817049 | G8: =SUMME($D$6:D8)/SUMME($D$6:D$13)
C9: meat | D9: 163022.37 | E9: 0.1287960508 | F9: =SUM($D$6:D9)/SUM($D$6:D$13) -> 0.6578777557 | G9: =SUMME($D$6:D9)/SUMME($D$6:D$13)
C10: sea food | D10: 131261.73 | E10: 0.1037035129 | F10: =SUM($D$6:D10)/SUM($D$6:D$13) -> 0.7615812686 | G10: =SUMME($D$6:D10)/SUMME($D$6:D$13)
C11: spices | D11: 106047.07 | E11: 0.08378263556 | F11: =SUM($D$6:D11)/SUM($D$6:D$13) -> 0.8453639042 | G11: =SUMME($D$6:D11)/SUMME($D$6:D$13)
C12: natural products | D12: 99984.57 | E12: 0.07899294898 | F12: =SUM($D$6:D12)/SUM($D$6:D$13) -> 0.9243568531 | G12: =SUMME($D$6:D12)/SUMME($D$6:D$13)
C13: cereals | D13: 95744.59 | E13: 0.07564314687 | F13: =SUM($D$6:D13)/SUM($D$6:D$13) -> 1 | G13: =SUMME($D$6:D13)/SUMME($D$6:D$13)
I35: ===>>
I55: ===>>
C73: category | D73: total sales | E73: relative share | F73: cumulated relative share | G73: 50% limit
C74: beverages | D74: 267868.16 | E74: =D74/SUM($D$74:$D$81) -> 0.2116296134 | F74: =SUM($E$74:E74)/SUM($E$74:$E$81) -> 0.2116296134 | G74: 0.5
C75: milk products | D75: 234454.76 | E75: =D75/SUM($D$74:$D$81) -> 0.1852313101 | F75: =SUM($E$74:E75)/SUM($E$74:$E$81) -> 0.3968609236 | G75: 0.5
C76: sweets | D76: 167357.19 | E76: 0.1322207814 | F76: =SUM($E$74:E76)/SUM($E$74:$E$81) -> 0.5290817049 | G76: 0.5
C77: meat | D77: 163022.37 | E77: 0.1287960508 | F77: =SUM($E$74:E77)/SUM($E$74:$E$81) -> 0.6578777557 | G77: 0.5
C78: sea food | D78: 131261.73 | E78: 0.1037035129 | F78: =SUM($E$74:E78)/SUM($E$74:$E$81) -> 0.7615812686 | G78: 0.5
C79: spices | D79: 106047.07 | E79: 0.08378263556 | F79: =SUM($E$74:E79)/SUM($E$74:$E$81) -> 0.8453639042 | G79: 0.5
C80: natural products | D80: 99984.57 | E80: 0.07899294898 | F80: =SUM($E$74:E80)/SUM($E$74:$E$81) -> 0.9243568531 | G80: 0.5
C81: cereals | D81: 95744.59 | E81: 0.07564314687 | F81: =SUM($E$74:E81)/SUM($E$74:$E$81) -> 1 | G81: 0.5
I86: ===>>
I107: ===>>
A127: 2 | B127: Übung | C127: Erstellen Sie ein Pareto-Diagramm mit Daten von einem der "Daten"-Blätter!
A128: 1 | B128: Exercise | C128: Create a Pareto chart using data from one of the "Data" worksheets!
A134: 0

Sheet 09 Pareto-Diagramm_ (hidden)
B1: 2 | C1: 2 | D1: 2 | E1: 1 | F1: 1 | G1: 1 | H1: 0
A2: 1 | B2: 09 Pareto chart_ | F2: =B2 -> 09 Pareto chart_
A3: 2 | B3: 09 Pareto-Diagramm_
A4: 0
B5: 1 | C5: "kumulieren" bedeutet, dass jeweils die ersten zwei, die ersten drei, die ersten vier, … Werte einer Liste addiert werden. (Die entsprechende Formel wird in der Datei "Basics" auf dem Blatt "absol.-relativ-kumul." erläutert!) Dadurch erhält man z.B. die Aussage: "Wir machen mit den drei umsatzstärksten Kategorien Getränke, Milchprodukte und Süßigkeiten die Hälfte unseres Umsatzes." ACHTUNG: Diese Aussage ist nur möglich und sinnvoll, wenn man die Liste vorher ABSTEIGEND sortiert! Stellt man - die absoluten und - die kumulierten relativen Werte in einem Diagramm dar, so wird das als "Pareto-Diagramm" bezeichnet. | E5: 1 | F5: "to cumulate" means, to add up the first two, the first three, the first four, … values of a data list. (The corresponding formula is explained in the file "Basics" on the sheet "absol.-relative-cumul."!) Then you can say, for example: "We generate half of our sales with the three top-selling categories - beverages, milk products and sweets" ATTENTION: This statement is only possible and useful if the list is sorted in DESCENDING order first! If you display - the absolute values and - the relativly cumulated values in one chart, it is called a "Pareto chart".
B6: =IF(C6<>"",B5+1,"") -> 2 | C6: Für das Diagramm brauchen wir die erste, zweite und vierte Spalte unserer Datenliste. ACHTUNG: Es kommt hier wieder darauf an, richtig zu markieren - also NICHT Strg-markieren-markieren, SONDERN markieren-Strg-markieren! Dann: „Einfügen / Empfohlene Diagramme / Gruppierte Säulen" Dieses von Excel empfohlene Diagramm stellt - die absoluten Werte als Säulen auf der Primärachse und - die kumulierten relativen Werte als Linie auf der Sekundärachse dar. | E6: =IF(F6<>"",E5+1,"") -> 2 | F6: For the chart we need the first, second and fourth column of our data list. ATTENTION: Again, it is important to mark correctly - i.e. DO NOT mark-Ctrl-mark, BUT mark-Ctrl-mark! Then: „Insert / Recommended Charts / Clustered Column" This chart recommended by Excel represents - the absolute values as columns on the primary axis, and - the cumulated relative values as a line on the secondary axis.
B7: =IF(C7<>"",B6+1,"") -> 3 | C7: Jetzt kommt natürlich wieder die übliche Nachbearbeitung des von Excel generierten Diagramms: - Diagrammtitel bearbeiten - Schriftart, -größe und -farbe - Zahlen an den Achsen formatieren (Primärachse: Benutzerdefiniert / 0. "T€";;0) - Legende ins Diagramm verschieben Achten Sie darauf, dass die Primär- und die Sekundärachse gleich viele Unterteilungen haben! Sonst stehen die Zahlen der Sekundärachse nicht an den horizontalen Linien. | E7: =IF(F7<>"",E6+1,"") -> 3 | F7: Now, of course, the usual post-processing of the chart generated by Excel comes again: - edit chart title - font type, size and color - format the numbers on the axes (primary axis: 0. "T€";;0) - move the legend into the chart Take care, that the primary axis and the secondary axis have the equal number of divisions. Otherwise the numbers of the secondary axis are not placed at the grid lines!
B8: =IF(C8<>"",B7+1,"") -> 4 | C8: Wenn wir die 50%-Grenze markieren wollen, brauchen wir eine zusätzliche Datenreihe. Rechtsklick + "Daten auswählen / Hinzufügen" Um die 50%-Linie nicht in der Legende anzuzeigen, müssen Sie die Legende etwas schmaler machen. | E8: =IF(F8<>"",E7+1,"") -> 4 | F8: If we want to mark the 50% limit, we need an additional data series. right click + "Select Data / Add" If you don't want to show the 50% limit in the legend, you only have to make it a bit narrower.
B9: 5 | C9: … und dann kommt wieder die finale Verschönerung: - Änderung des Linientyps („mit Datenpunkten“) DENN: Die Linie suggeriert einen kontinuierlichen Datenverlauf, den es aber gar nicht gibt. Tatsächlich gibt es nur acht Datenpunkte. - Farben definieren - einzelne Datenpunkte markieren und beschriften - Format Datenbeschriftung: 000.000 "€" (ohne Cents) - Format Primärachse: 0. "T€";;0 (siehe auch "Excel-Basics": "Benutzerdefinierte Formate" und "Währungsformate") | E9: 5 | F9: ... and then comes again the final embellishment: - change the line type („with markers“) BECAUSE: The line suggests a continuous data trend - which does not exist. There are only eight data points! -define the colors - highlight and label the first three data points - format data label: 000.000 "€" (without Cents) - format primary axis: 0. "T€";;0 (see also "Excel-Basics": "Custom formats" and "Currency formats")

Sheet 10 Punkt (XY)-Diagramm
J1: 0
A2: 1 | B2: 10 Scatter chart | F2: Back to Start
A3: 2 | B3: 10 Punkt (XY)-Diagramm | F3: Startseite
A21: 2 | B21: ABC-Analyse
A22: 1 | B22: ABC analysis
A24: 2 | C24: Produkt | D24: Einzelpreis | E24: Menge | F24: Umsatz | G24: Mengen-anteil | H24: Mengen-anteil (kumuliert) | I24: Wertanteil | J24: Wertanteil (kumuliert)
A25: 1 | C25: product | D25: unit price | E25: quantity | F25: turnover | G25: quantity share | H25: quantity share (cumulated) | I25: value share | J25: value share (cumulated)
C26: P01 | D26: 77.45 | E26: 4700 | F26: =D26*E26 -> 364015 | G26: =E26/SUM($E$26:$E$35) -> 0.04709418838 | H26: =SUM($E$26:E26)/SUM($E$26:$E$35) -> 0.04709418838 | I26: =F26/SUM($F$26:$F$35) -> 0.360173747 | J26: =SUM($F$26:F26)/SUM($F$26:$F$35) -> 0.360173747
C27: P09 | D27: 66.85 | E27: 5200 | F27: 347620 | G27: =E27/SUM($E$26:$E$35) -> 0.05210420842 | H27: =SUM($E$26:E27)/SUM($E$26:$E$35) -> 0.09919839679 | I27: =F27/SUM($F$26:$F$35) -> 0.3439517545 | J27: =SUM($F$26:F27)/SUM($F$26:$F$35) -> 0.7041255015
C28: P03 | D28: 11.5 | E28: 6500 | F28: 74750 | G28: 0.06513026052 | H28: =SUM($E$26:E28)/SUM($E$26:$E$35) -> 0.1643286573 | I28: 0.07396120376 | J28: =SUM($F$26:F28)/SUM($F$26:$F$35) -> 0.7780867053
C29: P07 | D29: 10.7 | E29: 6300 | F29: 67410 | G29: 0.06312625251 | H29: =SUM($E$26:E29)/SUM($E$26:$E$35) -> 0.2274549098 | I29: 0.0666986588 | J29: =SUM($F$26:F29)/SUM($F$26:$F$35) -> 0.8447853641
C30: P04 | D30: 8.1 | E30: 7100 | F30: 57510 | G30: 0.07114228457 | H30: =SUM($E$26:E30)/SUM($E$26:$E$35) -> 0.2985971944 | I30: 0.05690312814 | J30: =SUM($F$26:F30)/SUM($F$26:$F$35) -> 0.9016884922
C31: P05 | D31: 1.4 | E31: 19000 | F31: 26600 | G31: 0.1903807615 | H31: =SUM($E$26:E31)/SUM($E$26:$E$35) -> 0.4889779559 | I31: 0.02631930462 | J31: =SUM($F$26:F31)/SUM($F$26:$F$35) -> 0.9280077968
C32: P08 | D32: 1.5 | E32: 14000 | F32: 21000 | G32: 0.1402805611 | H32: =SUM($E$26:E32)/SUM($E$26:$E$35) -> 0.629258517 | I32: 0.02077839838 | J32: =SUM($F$26:F32)/SUM($F$26:$F$35) -> 0.9487861952
C33: P02 | D33: 1.3 | E33: 16000 | F33: 20800 | G33: 0.1603206413 | H33: =SUM($E$26:E33)/SUM($E$26:$E$35) -> 0.7895791583 | I33: 0.02058050887 | J33: =SUM($F$26:F33)/SUM($F$26:$F$35) -> 0.9693667041
C34: P06 | D34: 2.2 | E34: 9000 | F34: 19800 | G34: 0.09018036072 | H34: =SUM($E$26:E34)/SUM($E$26:$E$35) -> 0.879759519 | I34: 0.01959106133 | J34: =SUM($F$26:F34)/SUM($F$26:$F$35) -> 0.9889577654
C35: P10 | D35: 0.93 | E35: 12000 | F35: 11160 | G35: 0.120240481 | H35: =SUM($E$26:E35)/SUM($E$26:$E$35) -> 1 | I35: 0.01104223457 | J35: =SUM($F$26:F35)/SUM($F$26:$F$35) -> 1
K39: ===>>
A55: 2 | B55: RICHTIG: Punkt (XY)-Diagramm
A56: 1 | B56: RIGHT: Scatter chart
A74: 2 | B74: FALSCH: Liniendiagramm (Kategorien auf der x-Achse!)
A75: 1 | B75: WRONG: Line chart (categories on the x axis!)
A93: 2 | B93: Übung | C93: Erstellen Sie ein "schönes" Diagramm mit den kumulierten Mengen- bzw. Wert-Anteilen aus folgender Tabelle:
A94: 2
A95: 1 | B95: Exercise | C95: Create a "nice" chart with the cumulated quantity and value shares, respectively, from the following table:
A96: 1
A98: 2 | C98: Produkt | D98: Einzelpreis | E98: Menge | F98: Umsatz | G98: Mengenanteil | H98: Mengenanteil (kumuliert) | I98: Wertanteil | J98: Wertanteil (kumuliert)
A99: 1 | C99: product | D99: unit price | E99: quantity | F99: turnover | G99: quantity share | H99: quantity share (cumulated) | I99: value share | J99: value share (cumulated)
C100: P01 | D100: 72 | E100: 3900 | F100: 280800 | G100: 0.03849950642 | H100: 0.03849950642 | I100: 0.3322015451 | J100: 0.3322015451
C101: P09 | D101: 39 | E101: 5500 | F101: 214500 | G101: 0.05429417572 | H101: 0.09279368213 | I101: 0.2537650691 | J101: 0.5859666142
C102: P03 | D102: 22 | E102: 6300 | F102: 138600 | G102: 0.06219151037 | H102: 0.1549851925 | I102: 0.1639712755 | J102: 0.7499378897
C103: P07 | D103: 9 | E103: 6400 | F103: 57600 | G103: 0.0631786772 | H103: 0.2181638697 | I103: 0.06814390668 | J103: 0.8180817963
C104: P04 | D104: 8 | E104: 5200 | F104: 41600 | G104: 0.05133267522 | H104: 0.2694965449 | I104: 0.04921504371 | J104: 0.8672968401
C105: P05 | D105: 1.8 | E105: 22000 | F105: 39600 | G105: 0.2171767029 | H105: 0.4866732478 | I105: 0.04684893584 | J105: 0.9141457759
C106: P08 | D106: 1.7 | E106: 15000 | F106: 25500 | G106: 0.1480750247 | H106: 0.6347482725 | I106: 0.03016787535 | J106: 0.9443136513
A107: 0 | C107: P02 | D107: 1.25 | E107: 15000 | F107: 18750 | G107: 0.1480750247 | H107: 0.7828232971 | I107: 0.02218226129 | J107: 0.9664959125
C108: P06 | D108: 2 | E108: 8000 | F108: 16000 | G108: 0.0789733465 | H108: 0.8617966436 | I108: 0.01892886297 | J108: 0.9854247755
C109: P10 | D109: 0.88 | E109: 14000 | F109: 12320 | G109: 0.1382033564 | H109: 1 | I109: 0.01457522448 | J109: 1

Sheet 10 Punkt (XY)-Diagramm_ (hidden)
B1: 2 | C1: 2 | D1: 2 | E1: 1 | F1: 1 | G1: 1 | H1: 0
A2: 1 | B2: 10 Scatter chart_ | F2: =B2 -> 10 Scatter chart_
A3: 2 | B3: 10 Punkt (XY)-Diagramm_
A4: 0
B5: 1 | C5: In den meisten Diagrammen werden auf der x-Achse sogenannte Kategorien abgebildet, d.h. "Werte zwischen denen es nichts gibt" - z.B. "Bremen" / "Hamburg" / "Oldenburg" / ... . Zwischen Bremen und Hamburg gibt es zwar eine Menge schöne Landschaft - datentechnisch aber gibt es zwischen dem Wert für Bremen und dem Wert für Hamburg keinen weiteren Wert. Es gibt nur zwei Werte - einen für Bremen und einen für Hamburg, die z.B. durch entsprechende Säulen über den Wörtern "Bremen" und "Hamburg" dargestellt werden. Ein Punkt dazwischen ist sinnlos. Wenn wir also z.B. drei Städte betrachten, gibt es auch nur drei Stellen auf der x-Achse, an denen es überhaupt Werte geben kann, die man auf der y-Achse darstellen kann. Im Gegensatz gibt es natürlich auf der y-Achse beliebig viele mögliche Werte. Unser Umsatz in Bremen kann 234.857,78€ betragen, aber auch 265.453,92€ oder 251.719,45€ oder ... oder ... Die Höhe der Säule über dem Wort "Bremen" ist also völlig beliebig. | E5: 1 | F5: The most charts show categories on their x axis, i.e. "values between them is nothing" - e.g. "Bremen" / "Hamburg" / "Berlin" / … . Certainly there is a nice landscape between Bremen and Hamburg - but from the viewpoint of data management there is no value between the values for Bremen and for Hambrg. There are only two values - one for Bremen and one for Hamburg, which are presented by two columns above the words "Bremen" and "Hamburg". A point between them is useless. If we investigate e.g. three cities, then there are only three positions on the x axis, where there are values, which can be displayed on the y axis. On the contrary, there are of course any number of possible values on the y axis. Our turnover in Bremen may be 234.857,78€ or 265.453,92€ or 251.719,45€ or ... or ... The height of the column above the word "Bremen" is completely random.
B6: =IF(C6<>"",B5+1,"") -> 2 | C6: Es gibt aber auch andere Datenreihen, für die es auch auf der x-Achse beliebige Werte geben kann - z.B. bei der ABC-Analyse (für genauere Erläuterungen siehe Excel-Datei "Statistics"!). Kurz zusammengefasst (siehe Tabelle): Bei der 2-Faktoren-ABC-Analyse werden auf der x-Achse die kumulierten Mengenanteile und auf der y-Achse die kumulierten Wertanteile dargestellt. Hierbei kann der x-Wert JEDEN BELIEBIGEN ZAHLENWERT annehmen - also 4,5% oder 14,7% oder 46,8% oder ... Es kann also im Unterschied zu den Kategorien "Bremen" und "Hamburg" zwischen zwei Werten sehr wohl noch beliebig viele weitere Werte geben! | E6: =IF(F6<>"",E5+1,"") -> 2 | F6: But there are also other data series, which may have any number of values on the x axis - e.g. the ABC analysis (for details see the Excel file "Statistics"!). Shortly summarized (see table): The 2-Factor-ABC-Analysis displays the cumulated quantity shares on the x axis and the cumulated values hares on the y axis. Here the x vaues can have ANY VALUE - may be 4,5% or 14,7% or 46,8% or whatever. In contrast to the categories "Bremen" and "Hamburg" there may be any number of further values between two values!
B7: =IF(C7<>"",B6+1,"") -> 3 | C7: In diesem Fall müssen Sie eine besondere Diagrammform benutzen: Das "Punkt (XY)"-Diagramm! Es entspricht dem, was Sie aus der Mathematik als Koordinatensystem kennen. Dort können Sie an beliebiger Stelle einen Punkt machen und seine Lage durch die Angabe der x- und y-Koordinate angeben. ACHTUNG: ALLE ANDEREN DIAGRAMMTYPEN IN EXCEL SIND KATEGORIEN-DIAGRAMME! Das XY-Diagramm ist ein GANZ BESONDERER Diagrammtyp! | E7: =IF(F7<>"",E6+1,"") -> 3 | F7: In this case you have to use a special type of chart: The "Scatter" chart! It corresponds to them, what you know from mathematics as a co-ordinate system. There you can make a point at any position and characterize it by giving its x and y co-ordinate. ATTENTION: ALL OTHER CAHRT TYPES IN EXCEL ARE CATEGORY CHARTS!! The scatter chart is a VERY SPECIAL chart type!
B8: =IF(C8<>"",B7+1,"") -> 4 | C8: ACHTUNG: Achten Sie bei der Markierung der benötigten Spalten wieder auf den richtigen Gebrauch der Strg-Taste: NICHT Strg-markieren-markieren-markieren, SONDERN markieren-Strg-markieren-markieren! Anschließend wird das Diagramm natürlich wieder "schön" gemacht ... | E8: =IF(F8<>"",E7+1,"") -> 4 | F8: ATTENTION: Make sure you use the Ctrl key correctly when marking the required columns: DO NOT Ctrl-mark-mark-mark, BUT mark-Ctrl-mark-mark! Afterwards the diagram is of course made "nice" again ...
B9: =IF(C9<>"",B8+1,"") -> 5 | C9: Für diese Art von Datenreihe ist der Diagrammtyp "Linie" FALSCH! Dort stehen nämlich die x-Werte als Kategorien an der x-Achse. Der Abstand zwischen den Werten bei 4,7% und 9,9% (=5,2%) ist dadurch genau so groß wie der Abstand zwischen den Werten bei 29,9% und 48,9% (=19%). Die Form der Kurve wird dadurch verfälscht! | E9: 5 | F9: For this type of data series the chart type "Line" is WRONG! There, the x-values are displayed as categories on the x-axis. The distance between the values at 4.7% and 9.9% (=5.2%) is therefore just as large as the distance between the values at 29.9% and 48.9% (=19%). The shape of the curve is thereby distorted!
B10: =IF(C10<>"",B9+1,"") -> 

Sheet 11 3D-Diagramm
J1: 0
A2: 1 | B2: 11 3D chart | F2: Back to Start
A3: 2 | B3: 11 3D-Diagramm | F3: Startseite
C5: sales | D5: customer
C6: branch | D6: Aral | E6: Esso | F6: Shell
C7: Bremen | E7: 480884 | F7: 298253
C8: Hamburg | D8: 146379 | E8: 682813 | F8: 343588
C9: Oldenburg | D9: 139198 | F9: 477192
I31: ===>>
I49: ===>>
A63: 2 | B63: Übung | C63: Erstellen Sie ein 3D-Diagramm mit Daten von einem der "Daten"-Blätter!
A64: 1 | B64: Exercise | C64: Create a 3D chart using data from one of the "Data" worksheets!
A67: 0

Sheet 11 3D-Diagramm_ (hidden)
B1: 2 | C1: 2 | D1: 2 | E1: 1 | F1: 1 | G1: 1 | H1: 0
A2: 1 | B2: 11 3D chart_ | F2: =B2 -> 11 3D chart_
A3: 2 | B3: 11 3D-Diagramm_
A4: 0
B5: 1 | C5: Wenn Sie eine Datentabelle haben, in denen die Werte von zwei Parametern abhängen (z.B. „Umsatz pro Niederlassung und Kunde“), können Sie zur Darstellung ein 3D-Diagramm benutzen. Dieser Diagrammtyp wird Ihnen unter „Empfohlene Diagramme“ nicht vorgeschlagen – Sie müssen also klicken: „Einfügen / Diagramme / Säulen / 3D-Säulen“ | E5: 1 | F5: If you have a data table in which the values depend on two parameters (e.g. "turnover per branch and customer"), you can use a 3D chart for representation. This type of chart is not suggested under "Recommended charts" - so you have to click: "Insert / Charts / Columns / 3D Columns"
B6: =IF(C6<>"",B5+1,"") -> 2 | C6: Die Legende ist überflüssig und kann entfernt werden. (Denken Sie an meine berühmten drei Fragen: "Kann was weg?") - Einstellung Schriftart, - farbe und -größe - Optimierung der Blickrichtung über Rechtsklick + "3D-Drehung" … X-Drehung … Y-Drehung … Tiefe ... Perspektive (vorher "rechtwinklige Achsen" deaktivieren!) | E6: =IF(F6<>"",E5+1,"") -> 2 | F6: The legend is needless and can be removed. (Do you remember my famous three questions? "Can anything go?") - define font type, size and color - optimize the viewing angle by right click + "3-D Rotation" … X Rotation … Y Rotation ... Depth … Perspective (deactivate "Right Angle Axes" first!)
B7: =IF(C7<>"",B6+1,"") -> 3 | C7: Die Säulen werden nicht gefärbt, sondern durch Muster unterschieden. Warum? Wegen der s/w-Kopien! OK … ich gebe zu … übermäßig schön sieht's nicht aus. Fällt Ihnen etwas Besseres ein? | E7: =IF(F7<>"",E6+1,"") -> 3 | F7: The columns are not coloured, but distinguished by textures. Why? Because of the b/w copies! OK ... I admit ... it does not look overly beautiful. Can you think of something better?

Sheet Bevor Sie weitermachen … (1)
J1: 0
A2: 1 | B2: Before you continue … (1) | F2: Back to Start
A3: 2 | B3: Bevor Sie weitermachen … (1) | F3: Startseite
A6: 1 | C6: … please work through the worksheets "Scroll bars" and "Check boxes" in the file "Excel-Controls"!
A7: 1
A8: 1
A9: 1
A10: 1
A11: 2 | C11: … arbeiten Sie bitte die Arbeitsblätter "Bildlaufleisten" und "Kontrollkästchen" in der Datei "Excel-Controls" durch!
A12: 2
A13: 2
A14: 2
A15: 2
A22: 0

Sheet 12 Dynamische Diagramme
J1: 0
A2: 1 | B2: 12 Dynamic charts | F2: Back to Start
A3: 2 | B3: 12 Dynamische Diagramme | F3: Startseite
A5: 2 | B5: "Messlatte"
A6: 1 | B6: "Yardstick"
J7: LinkedCell: | K7: 304
C9: branch | D9: total sales | H9: branch | I9: total sales | J9: yardstick
C10: Bremen | D10: 779137 | H10: Bremen | I10: 779137 | J10: =MIN($I$10:$I$12)+($K$7/1000)*(MAX($I$10:$I$12)-MIN($I$10:$I$12)) -> 785532.56 | K10: =_xlfn.FORMULATEXT(J10) -> =MIN($I$10:$I$12)+($K$7/1000)*(MAX($I$10:$I$12)-MIN($I$10:$I$12))
C11: Hamburg | D11: 1172780 | H11: Hamburg | I11: 1172780 | J11: =MIN($I$10:$I$12)+($K$7/1000)*(MAX($I$10:$I$12)-MIN($I$10:$I$12)) -> 785532.56 | L11: =Min + x/1000 * (Max - Min)
C12: Oldenburg | D12: 616390 | H12: Oldenburg | I12: 616390 | J12: =MIN($I$10:$I$12)+($K$7/1000)*(MAX($I$10:$I$12)-MIN($I$10:$I$12)) -> 785532.56
H17: ===>>
A32: 2 | B32: Auswahl der anzuzeigenden Daten (1)
A33: 1 | B33: Select data for display (1)
A35: 2 | C35: Originaltabelle:
A36: 1 | C36: Original table:
C37: branch | D37: total sales
C38: Bremen | D38: 779137
C39: Hamburg | D39: 1172780
C40: Oldenburg | D40: 616390
A42: 2 | C42: Datenbasis für das Diagramm: (mit WENN-Funktionen)
A43: 1 | C43: Data basis for the chart: (with IF functions)
C44: LinkedCells | E44: TRUE | F44: TRUE | G44: TRUE
C45: branch | D45: total sales | E45: maximum | F45: minimum | G45: average
C46: =IF(B46,C38,"") ->  | E46: =IF($E$44,MAX($D$38:$D$40),#N/A) -> 1172780 | F46: =IF($F$44,MIN($D$38:$D$40),#N/A) -> 616390 | G46: =IF($G$44,AVERAGE($D$38:$D$40),#N/A) -> 856102.3333
B47: TRUE | C47: =IF(B47,C39,"") -> Hamburg | D47: =IF(B47,D39,#N/A) -> 1172780 | E47: =IF($E$44,MAX($D$38:$D$40),#N/A) -> 1172780 | F47: =IF($F$44,MIN($D$38:$D$40),#N/A) -> 616390 | G47: =IF($G$44,AVERAGE($D$38:$D$40),#N/A) -> 856102.3333
B48: TRUE | C48: Oldenburg | D48: =IF(B48,D40,#N/A) -> 616390 | E48: 1172780 | F48: 616390 | G48: 856102.3333
H54: ===>>
H71: ===>>
A86: 2 | B86: Auswahl der anzuzeigenden Daten (2)
A87: 1 | B87: Select data for display (2)
A89: 2 | C89: Originaltabelle:
A90: 1 | C90: Original table:
E91: quarter
E92: I | F92: II | G92: III | H92: IV
C93: 1 | D93: Bremen | E93: 51834 | F93: 67618 | G93: 80887 | H93: 63051
C94: 2 | D94: Hamburg | E94: 58150 | F94: 50159 | G94: 79480 | H94: 46447
C95: 3 | D95: Lübeck | E95: 40386 | F95: 53779 | G95: 93650 | H95: 62716
C96: 4 | D96: Rostock | E96: 92250 | F96: 93413 | G96: 45110 | H96: 90583
C97: 5 | D97: Stralsund | E97: 33149 | F97: 70014 | G97: 53152 | H97: 54163
C98: 6 | D98: Greifswald | E98: 36946 | F98: 74300 | G98: 73397 | H98: 56716
A100: 2 | C100: Datenbasis für das Diagramm: (mit SVERWEISen)
A101: 1 | C101: Data basis for the chart: (with VLOOKUPs)
D102: Average | E102: =AVERAGE(E93:E98) -> 52119.16667 | F102: =AVERAGE(F93:F98) -> 68213.83333 | G102: 70946 | H102: 62279.33333
C103: 3 | D103: ="Quarterly turnover in " &VLOOKUP($C$103,$C$93:$H$98,2,FALSE) & " in 2019" -> Quarterly turnover in Lübeck in 2019 | E103: =VLOOKUP($C$103,$C$93:$H$98,3,FALSE) -> 40386 | F103: =VLOOKUP($C$103,$C$93:$H$98,4,FALSE) -> 53779 | G103: =VLOOKUP($C$103,$C$93:$H$98,5,FALSE) -> 93650 | H103: =VLOOKUP($C$103,$C$93:$H$98,6,FALSE) -> 62716 | I103: =VLOOKUP(C103,C93:D98,2,FALSE) -> Lübeck
H107: ===>>
H126: ===>>
H143: ===>>
A160: 2 | B160: Hervorheben von Datenpunkten
A161: 1 | B161: Highlighting of data points
A163: 2 | C163: Originaltabelle:
A164: 1 | C164: Original table:
C165: branch | D165: total sales
C166: Bremen | D166: 779137
C167: Hamburg | D167: 1172780
C168: Oldenburg | D168: 616390
A170: 2 | C170: Datenbasis für das Diagramm: (mit WENN-Funktionen)
A171: 1 | C171: Data basis for the chart: (with IF functions)
B172: LinkedCells:
C173: branch | D173: total sales | E173: normal | F173: highlighted
C174: Bremen | D174: 779137 | E174: =IF(B174,#N/A,D174) -> 779137 | F174: =IF(B174,D174,#N/A) -> 
B175: TRUE | C175: Hamburg | D175: 1172780 | E175: =IF(B175,#N/A,D175) ->  | F175: =IF(B175,D175,#N/A) -> 1172780
B176: FALSE | C176: Oldenburg | D176: 616390 | E176: 616390
G180: ===>>
G196: ===>>
A211: 2 | B211: Übung | C211: Üben Sie diese Techniken mit Daten von einem der "Daten"-Blätter!
A212: 1 | B212: Exercise | C212: Train these techniques with data from one of the "Data" worksheets!
A215: 0

Sheet 12 Dynamische Diagramme_ (hidden)
B1: 2 | C1: 2 | D1: 2 | E1: 1 | F1: 1 | G1: 1 | H1: 0
A2: 1 | B2: 12 Dynamic charts_ | F2: =B2 -> 12 Dynamic charts_
A3: 2 | B3: 12 Dynamische Diagramme_
A4: 0
B5: 1 | C5: Mit dem Begriff "Dynamische Diagramme" meine ich, dass Sie mit Hilfe eines Steuerelements (Scrollbalken, Checkbox o.ä.) einstellen können, welche Daten im Diagramm dargestellt werden sollen. Bei Betätigung des Steuerelements beginnt das Diagramm zu "leben". Solche Diagramme können Sie einsetzen bei Präsentationen oder bei Gruppendiskussionen, bei denen Sie unterschiedliche Aspekte eines Problems darstellen wollen. Sie können damit schnell erkennen, was passiert, wenn ein bestimmter Parameter (z.B. Dollarkurs, Ölpreis, ...) sich ändert. | E5: 1 | F5: With the term "dynamic charts" I mean that you can use a control (scroll bar, checkbox or similar) to define which data should be displayed in the chart. When you manipulate the control the chart starts to "live". Such charts can be used for presentations or group discussions where you want to show different aspects of a problem. You can quickly see what happens if a certain parameter (e.g. dollar exchange rate, oil price, ...) changes.
B6: =IF(C6<>"",B5+1,"") -> 2 | C6: Eine "Messlatte" ============================= Idee: Es soll einen Scrollbalken geben, mit dem eine horizontale Linie vertikal verschoben werden kann. Damit wird eine "Messlatte" definiert und man kann sehen, welcher Wert darüber bzw. darunter liegt. Plan: Wir fügen einen Scrollbalken ein. Damit verändern wir die Werte einer zusätzlichen Datenreihe. Diese enthält - ähnlich wie beim Diagramm mit Mittelwert (siehe "Diagramm gestalten"!) - lauter identische Werte und wird als Linie dargestellt. | E6: =IF(F6<>"",E5+1,"") -> 2 | F6: A "Yardstick" ============================= Idea: We want to have a scroll bar, which moves a horizontal line up and down. This defines a kind of "yardstick", so that it can be seen, which values are above and below it. Plan: We insert a scroll bar. It changes the values of an additional data series. This series contains - similar to the display of the average (see "Modify the chart"!) - identical values and is displayed as a horizontal line.
B7: =IF(C7<>"",B6+1,"") -> 3 | C7: Voraussetzung: Wir brauchen die Registerkarte Entwicklertools: „Datei / Optionen / Menüband anpassen" "Entwicklertools" aktivieren ACHTUNG - FALLE: Wenn Sie ein Steuerelement angeklickt haben (beim Scrollbar daran erkennbar, dass der Schieber blinkt) öffnet sich das "Optionen"-Fenster nicht! Sie müssen erst einmal in eine beliebige Excel-Zelle klicken! | E7: =IF(F7<>"",E6+1,"") -> 3 | F7: Precondition: We need the menu "Developer": "File / Options / Customize Ribbon" activate "Developer" ATTENTION - TRAP: If you have clicked on a control element (indicated by the flashing slider in the scrollbar) the "Options" window does not open! You must first click into any Excel cell!
B8: 4 | C8: Leider verschwindet dieses Textfenster, wenn ich den Entwurfsmodus einschalte. Daher muss ich jetzt umschalten. Dann: „Entwicklertools / Steuerelemente / Einfügen / ActiveX-Steuerelemente / Scrollleiste" (Die Benutzung von Steuerelementen wird detailliert in meiner Übungsdatei „Excel-Controls“ beschrieben) Rechtsklick auf den Scrollbalken + "Eigenschaften" "Min" = 0 "Max" = 1000 "SmallChange" = 1 "LargeChange" = 10 "LinkedCell" = K7 | E8: =IF(F8<>"",E7+1,"") -> 4 | F8: Unfortunately, this text window disappears when I switch to developer mode. Therefore I have to use Notepad now. Then: "Developer / Controls / Insert / ActiveX Controls / Scroll Bar" (The usage of controls is explained in detail in my exercise file "Excel-Controls") right click to the scroll bar + "Properties" "Min" = 0 "Max" = 1000 "SmallChange" = 1 "LargeChange" = 10 "LinkedCell" = K7
B9: 5 | C9: Damit der Scrollbalken sich zwischen dem kleinsten und größten Wert der Datenreihe in Spalte I bewegt, muss die entsprechende Datenreihe in Spalte J so berechnet werden: Minimum + x/1000 * (Maximum - Minimum) Warum? Wir addieren zum Minimum einen Bruchteil (in Tausendsteln) des Abstandes zwischen Minimum und Maximum! | E9: 5 | F9: Because the scroll bar shall move between the smallest and the largest value, the corresponding data series must be calculated as follows: Minimum + x/1000 * (Maximum - Minimum) Why? We add to the minimum a fraction (in thousandths) of the distance between minimum and maximum!
B10: 6 | C10: Trick 17: Sie können einen Scrollbalken horizontal oder vertikal einfügen. Horizontal hat er links sein Minimum - das ist auch ok. Vertikal hat er aber oben sein Minimum - das ist für den Benutzer irritierend, denn er erwartet oben „mehr“ und unten „weniger“. Darum müssen Sie bei der Eingabe der Eigenschaften des Scrollbalkens den größten Wert bei „Minimum“ und den kleinsten bei „Maximum“ eintragen. | E10: 6 | F10: Trick 17: You can insert a scrollbar horizontally or vertically. Horizontally it has its minimum on the left - that's ok. Vertically, however, it has its minimum at the top - this is irritating for the user, because he expects "more" at the top and "less" at the bottom. Therefore, when entering the properties of the scrollbar, you must enter the highest value at "minimum" and the lowest at "maximum".
B11: 7 | C11: Die „Messlatte“ wird dem Diagramm als weitere Datenreihe hinzugefügt und als Linie dargestellt. Es wird nur ein einzelner Datenpunkt der Messlatte beschriftet - nämlich der ganz rechte. Füllen Sie die Beschriftung mit der Hintergrundfarbe. ACHTUNG: Evtl. müssen Sie „Datei / Optionen / Formeln / Berechnungsoptionen = Automatisch" aktivieren! | E11: 7 | F11: The "yardstick" is added to chart as an additional data series and presented as aline. Only one data point of the "yardstick" is labelled - the right one. Fill the label with the background color. ATTENTION: Possibly you must activate "File / Options / Formulas / Workbook Calculation = Automatic"
B12: 8 | C12: Bitte beobachten Sie genau, was passiert, wenn ich den Schieber des Scrollbalkens bewege: (1) der Wert der LinkedCell ändert sich (2) die Werte in Spalte J ändern sich (3) die Linie im Diagramm verschiebt sich. | E12: 8 | F12: Please pay attention to what happens when I move the slider of the scrollbar: (1) the value of the LinkedCell changes (2) the values in column J change (3) the line in the diagram shifts.
B13: 9 | C13: Auswahl der anzuzeigenden Daten (1) ============================= Idee: Wir wollen mit Kontrollkästchen ("Checkboxen") auswählen können, welche Daten im Diagramm angezeigt werden. Plan: Die Checkbox schreibt WAHR oder FALSCH in ihre LinkedCell. Das benutzen wir, um mit einer WENN-Funktion zu steuern, ob in der Datentabelle des Diagramms Zahlen oder #NV (=keine Anzeige im Diagramm) stehen. | E13: 9 | F13: Select data for display (1) ============================= Idea: We want to use check boxes to select, which data shall be displayed in the chart. Plan: The checkbox writes TRUE or FALSE in its LinkedCell. This is used for an IF function, which decides whether the data or #NV (=nothing) is displayed in the chart.
B14: 10 | C14: Voraussetzung: Wir brauchen die Registerkarte Entwicklertools: „Datei / Optionen / Menüband anpassen" "Entwicklertools" aktivieren ACHTUNG - FALLE: Wenn Sie ein Steuerelement angeklickt haben (beim Scrollbar daran erkennbar, dass der Schieber blinkt) öffnet sich das "Optionen"-Fenster nicht! Sie müssen erst einmal in eine beliebige Excel-Zelle klicken! | E14: 10 | F14: Precondition: We need the Developer menu: "File / Options / Customize Ribbon" activate "Developer" ATTENTION - TRAP: If you have clicked on a control element (indicated by the flashing slider in the scrollbar) the "Options" window does not open! You must first click into any Excel cell!
B15: 11 | C15: Leider verschwindet dieses Textfenster, wenn ich den Entwurfsmodus einschalte. Daher muss ich jetzt umschalten. Dann: „Entwicklertools / Steuerelemente / Einfügen / ActiveX-Steuerelemente / Kontrollkästchen" Rechtsklick auf die Checkbox + "Eigenschaften" "LinkedCell" eintragen WENN-Formeln eintragen "Einfügen / Empfohlene Diagramme / Gruppierte Säule-Linie" Legende entfernen Rechtsklick auf eine Säule + "Datenreihendiagrammtyp ändern" Maximum: Linie Minimum: Linie | E15: 11 | F15: Unfortunately, this text window disappears when I switch to developer mode. Therefore I have to use Notepad now. Then: "Developer / Controls / Insert / ActiveX-Controls / Check Box" right click to the check box + "Properties" enter a value for "LinkedCell" enter IF formulas "Insert / Recommended Charts / Clustered Column-Line" remove legend right click on a column + "Change Series Chart Type" Maximum: Line Minimum: Line
B16: 12 | C16: Für eine Präsentation sollten Sie die Checkboxen ins Diagramm verschieben und die Datentabelle unsichtbar machen. Dann sieht der Betrachter nichts von der Technik und kann sich ganz auf die Darstellung konzentrieren! | E16: 12 | F16: For a presentation you should move the check boxes into the diagramm and make the data table invisible. Then the viewer doesn't see the technique and can concentrate himself completely on the presentation!
B17: 13 | C17: Bitte beobachten Sie genau, was passiert, wenn ich eine Checkbox anklicke: (1) der Wert der LinkedCell ändert sich (WAHR / FALSCH) (2) die Werte in einer Zeile oder Spalte ändern sich (3) die Säule bzw. Linie im Diagramm verschwindet bzw. erscheint. | E17: 13 | F17: Please watch carefully what happens when I click on a checkbox: (1) the LinkedCell value changes (TRUE / FALSE) (2) the values in a row or column change (3) the column or line in the diagram disappears or appears.
B18: 14 | C18: Auswahl der anzuzeigenden Daten (2) ============================= Idee: Wir wollen mit einem Scrollbalken auswählen können, welche Daten im Diagramm angezeigt werden. Plan: Der Scrollbalken schreibt ganze Zahlen 1, 2, 3, … in eine Zelle. Damit wird jeweils die erste, zweite, dritte, .. Zeile bzw. Spalte einer Datentabelle ausgewählt. | E18: 14 | F18: Select data for display (2) ============================= Idea: We want to use a scroll bar to select, which data shall be displayed in the chart. Plan: The scrollbar writes integer numbers 1, 2, 3, … into a cell. This is used to select the first, second, third, … row of a data list.
B19: =IF(C19<>"",B18+1,"") -> 15 | C19: Voraussetzung: Wir brauchen die Registerkarte Entwicklertools: „Datei / Optionen / Menüband anpassen" "Entwicklertools" aktivieren ACHTUNG - FALLE: Wenn Sie ein Steuerelement angeklickt haben (beim Scrollbar daran erkennbar, dass der Schieber blinkt) öffnet sich das "Optionen"-Fenster nicht! Sie müssen erst einmal in eine beliebige Excel-Zelle klicken! | E19: 15 | F19: Precondition: We need the menu "Developer": "File / Options / Customize Ribbon" activate "Developer" ATTENTION - TRAP: If you have clicked on a control element (indicated by the flashing slider in the scrollbar) the "Options" window does not open! You must first click into any Excel cell!
B20: =IF(C20<>"",B19+1,"") -> 16 | C20: Leider verschwindet dieses Textfenster, wenn ich den Entwurfsmodus einschalte. Daher muss ich jetzt umschalten. Dann: „Entwicklertools / Steuerelemente / Einfügen / ActiveX-Steuerelemente / Scrollleiste" (Die Benutzung von Steuerelementen wird detailliert in meiner Übungsdatei „Excel-Controls“ beschrieben) Rechtsklick auf den Scrollbalken + "Eigenschaften" "Min" = 1 "Max" = 6 "SmallChange" = 1 "LargeChange" = 1 "LinkedCell" = C103 | E20: 16 | F20: Unfortunately, this text window disappears when I switch to developer mode. Therefore I have to use Notepad now. Then: "Developer / Controls / Insert / ActiveX Controls / Scroll Bar" (The usage of controls is explained in detail in my exercise file "Excel-Controls") right click to the scroll bar + "Properties" "Min" = 1 "Max" = 6 "SmallChange" = 1 "LargeChange" = 1 "LinkedCell" = C103
B21: =IF(C21<>"",B20+1,"") -> 17 | C21: Der mit dem Scrollbalken eingestellte Wert in C103 wird jetzt benutzt, um mit SVERWEISen die entsprechenden Werte aus der Originaltabelle in die Datenbasis für das Diagramm zu kopieren. Letztendlich werden die Daten aus den Zeilen 102 und 103 im Diagramm dargestellt – der Mittelwert als Linie mit Datenpunkten, die Einzelumsätze als Säulen. | E21: 17 | F21: The value in C103 set with the scroll bar is now used to copy the corresponding values from the original table into the database for the chart. Finally, the data from rows 102 and 103 are displayed in the chart - the mean value as a line with data points, the individual sales as columns.
B22: 18 | C22: ACHTUNG: Ein besonderer Trick ist erforderlich, um auch den Diagrammtitel variabel zu gestalten. Man kann nämlich dort keine Formel hineinschreiben, sondern nur eine Zelladresse. Der Titel muss also mittels Formel in einer Zelle erstellt werden, auf die man sich dann im Diagrammtitel beziehen kann. Ich habe eine ganze Weile gebraucht, um herauszukriegen, dass das nur funktioniert, wenn man den Blattnamen dazu schreibt und die Formel nicht direkt im Titel, sondern in der Bearbeitungsleiste eingibt!!! Außerdem muss die automatische Skalierung der y-Achse durch eine feste Einstellung des Maximalwertes verhindert werden. | E22: 18 | F22: ATTENTION: A special trick is required to make the chart title variable as well. You cannot write a formula in it, but only a cell address. The title must therefore be created using a formula in a cell, which can then be referred to in the chart title. It took me quite a while to find out that this only works if you write the name of the sheet and do not enter the formula directly in the title, but in the edit bar! Furthermore the automatic scaling of the y-axis must be prevented by a fixed setting of the maximum value.
B23: 19 | C23: … und dann kommt natürlich wie immer noch die finale Verschönerung … Bitte beobachten Sie genau, was passiert, wenn ich den Schieber des Scrollbalkens bewege: (1) der Wert der LinkedCell C103 ändert sich (2) die Werte in Zeile 103 ändern sich (3) die Säulen im Diagramm ändern sich (4) der Diagrammtitel ändert sich. | E23: 19 | F23: ... and then, of course, there is the final embellishment, as always... Please watch carefully what happens when I move the slider of the scrollbar: (1) the value of the LinkedCell C103 changes (2) the values in line 103 change (3) the columns in the diagram change (4) the diagram title changes.
B24: 20 | C24: Hervorheben von Datenpunkten ============================= Idee: Wir wollen mit Kontrollkästchen (=Checkboxen) steuern, welche Datenpunkte hervorgehoben werden sollen - z.B. durch eine andere Färbung. Plan: Die Checkbox schreibt WAHR oder FALSCH in ihre LinkedCell. Das benutzen wir, um mit einer WENN-Funktion zu steuern, ob in der Datentabelle des Diagramms Zahlen oder #NV (=keine Anzeige im Diagramm) stehen. | E24: 20 | F24: Highlighting of data points ============================= Idea: We want to use check boxes to decide, which data points shall be highlighted - e.g. by coloring. Plan: The checkbox writes TRUE or FALSE in its LinkedCell. This is used for an IF function, which decides whether the data or #NV (=nothing) is displayed in the chart.
B25: 21 | C25: Voraussetzung: Wir brauchen die Registerkarte Entwicklertools: „Datei / Optionen / Menüband anpassen" "Entwicklertools" aktivieren ACHTUNG - FALLE: Wenn Sie ein Steuerelement angeklickt haben (beim Scrollbar daran erkennbar, dass der Schieber blinkt) öffnet sich das "Optionen"-Fenster nicht! Sie müssen erst einmal in eine beliebige Excel-Zelle klicken! | E25: 21 | F25: Precondition: We need the Developer menu: File / "Options" / "Customize Ribbon" activate "Developer" ATTENTION - TRAP: If you have clicked on a control element (indicated by the flashing slider in the scrollbar) the "Options" window does not open! You must first click into any Excel cell!
B26: 22 | C26: Leider verschwindet dieses Textfenster, wenn ich den Entwurfsmodus einschalte. Daher muss ich jetzt umschalten. Dann: „Entwicklertools / Steuerelemente / Einfügen / ActiveX-Steuerelemente / Kontrollkästchen" Rechtsklick auf die Checkbox + "Eigenschaften" "LinkedCell" eintragen Eingabe der WENN-Funktionen „Einfügen / Empfohlene Diagramme / Gestapelte Säulen" (ACHTUNG: NICHT „Gruppierte Säulen!) Legende entfernen | E26: 22 | F26: Unfortunately, this text window disappears when I switch to developer mode. Therefore I have to use Notepad now. Then: „Developer / Controls / Insert / ActiveX-Controls / Check Box" right click to the check box + "Properties" enter a value in "LinkedCell" enter the IF functions „Insert / Recommended Charts / Stacked columns" (ATTENTION: NOT „Grouped columns“!) remove legend
B27: 23 | C27: Für eine Präsentation sollten Sie die Checkboxen ins Diagramm verschieben und die Datentabelle unsichtbar machen. Dann sieht der Betrachter nichts von der Technik und kann sich ganz auf die Darstellung konzentrieren! | E27: 23 | F27: For a presentation you should move the check boxes into the chart and make the data table invisible. Then the viewer doesn't see the technique and can concentrate himself completely on the presentation!
B28: 24 | C28: … und dann kommt natürlich wie immer noch die finale Verschönerung … Bitte beobachten Sie genau, was passiert, wenn ich eine Checkbox anklicke: (1) der Wert der LinkedCell ändert sich (WAHR / FALSCH) (2) die Werte in in den Datenreihen ändern sich (3) die Säulen im Diagramm werden bzw. werden nicht hervorgehoben. | E28: 24 | F28: ... and then, of course, there is the final embellishment, as always... Please watch carefully what happens when I click on a checkbox: (1) the LinkedCell value changes (TRUE / FALSE) (2) the values in the data series change (3) the columns in the chart are highlighted or not highlighted.

Sheet 13 Blasendiagramm (1)
J1: 0
A2: 1 | B2: 13 Bubble chart (1) | F2: Back to Start
A3: 2 | B3: 13 Blasendiagramm (1) | F3: Startseite
C5: transport carrier | D5: operating range (km) | E5: consumption (l/100km) | F5: loading capacity (t)
C6: railway | D6: 3000 | E6: 80 | F6: 200
C7: truck | D7: 1000 | E7: 25 | F7: 80
C8: airplane | D8: 5000 | E8: 200 | F8: 30
I29: ===>>
I58: ===>>
I75: ===>>
A88: 2 | B88: Übung | C88: Erstellen Sie ein Blasen-Diagramm mit eigenen Daten!
A89: 1 | B89: Exercise | C89: Create a bubble chart with own data!
A94: 0

Sheet 13 Blasendiagramm (1)_ (hidden)
B1: 2 | C1: 2 | D1: 2 | E1: 1 | F1: 1 | G1: 1 | H1: 0
A2: 1 | B2: 13 Bubble chart (1)_ | F2: =B2 -> 13 Bubble chart (1)_
A3: 2 | B3: 13 Blasendiagramm (1)_
A4: 0
B5: 1 | C5: Im 3D-Diagramm konnten wir einen y-Wert darstellen, der von zwei x-Werten abhängt ("Umsatz (=y) pro Niederlassung (=x1) und Kunde (=x2)"). Im Blasendiagramm können wir drei y-Werte darstellen, die zu einem x-Wert gehören. Wir haben hier zum Beispiel eine Tabelle, die jeweils drei Werte (Reichweite, Kraftstoffverbrauch und Ladekapazität) für jeweils ein Transportmittel enthält. Zu dem x-Wert "Bahn" gehören also die drei y-Werte "3.000km", "80l/100km" und "200t". Beachten Sie, dass diese Werte auch alle unterschiedliche Maßeinheiten haben! | E5: 1 | F5: In the 3D chart we were able to display a y-value that depends on two x-values ("turnover (=y) per branch (=x1) and customer (=x2)"). In the bubble chart we were able to represent three y-values that belong to one x-value. For example, here we have a table that contains three values (range, fuel consumption and load capacity) for each means of transport. So the x-value "railway" includes the three y-values "3,000km", "80l/100km" and "200t". Note that these values all have different units of measurement!
B6: =IF(C6<>"",B5+1,"") -> 2 | C6: Im Blasendiagramm wird nun ein"x-Wert" auf der horizontalen Achse und einer auf der vertikalen Achse aufgetragen. Und was machen wir mit dem dritten "x-Wert"? Für ihn zeichnen wir am Schnittpunkt von x1-Wert und x2-Wert keinen Punkt, sondern einen Kreis, dessen Durchmesser den dritten "x-Wert" repräsentiert. Ein Verkehrsmittel mit einer großen Ladekapazität (=Bahn) bekommt also einen großen Kreis, ein Verkehrsmittel mit einer kleinen Ladekapazität (=Flugzeug) bekommt einen kleinen Kreis. | E6: =IF(F6<>"",E5+1,"") -> 2 | F6: In the bubble chart, one "x-value" is now plotted on the horizontal axis and one on the vertical axis. And what do we do with the third "x-value"? For it we don't draw a point at the intersection of x1-value and x2-value, but a circle, whose diameter represents the third "x-value". So a means of transport with a large load capacity (=train) gets a large circle, a means of transport with a small load capacity (=airplane) gets a small circle.
B7: =IF(C7<>"",B6+1,"") -> 3 | C7: Wenn die Datentabelle richtig aufgebaut ist, erzeugt Excel automatisch das richtige Blasendiagramm. "Richtig aufgebaut" heißt: x-Werte in einer Spalte, y-Werte in einer Spalte, Blasengröße in einer Spalte. Notfalls müssen Sie mit Rechtsklick + "Daten auswählen / Bearbeiten" von Hand nacharbeiten. Das ist merkwürdigerweise der Fall, wenn Sie das Diagramm nicht über "Empfohlene Diagramme", sondern direkt über "Blase" einfügen. | E7: =IF(F7<>"",E6+1,"") -> 3 | F7: If the data table is structured correctly, Excel automatically generates the correct bubble chart. "Correctly constructed" means: x-values in a column, y-values in a column, bubble size in a column. If necessary, you must rework by hand with Right click + "Select data / Edit". Strangely enough, this is the case if you do not insert the chart via "Recommended charts" but directly via "Bubble".
B8: =IF(C8<>"",B7+1,"") -> 4 | C8: Dann: Rechtsklick auf eine Blase + "Datenbeschriftungen hinzufügen / Datenbeschriftungen hinzufügen" Rechtsklick auf eine Datenbeschriftung + "Datenbeschriftungen formatieren" "Beschriftungsoptionen" + "Beschriftung enthält" + "Wert aus Zellen": "Bereich auswählen" = C6:C8 Linksklick + "Diagrammtools / Entwurf / Diagrammelement hinzufügen": - "Achsentitel" / "Primär vertikal" - "Achsentitel" / "Primär horizontal" | E8: =IF(F8<>"",E7+1,"") -> 4 | F8: Then: right click on a bubble + "Add Data Labels / Add Data Labels" right click on a data label + "Format Data Labels" "Label options" + "Label Contains" + "Value fom Cells" + "Select Range" = C6:C8 left click + "Chart tools / Design / Add Chart Element": - "Axis Titles" / "Primary Vertical" - "Axis Titles" / "Primary Horizontal"
B9: 5 | C9: Abschließend kommt natürlich wieder die finale "Verschönerung". Füllen Sie die Datenbeschriftung mit der Hintergrundfarbe. | E9: 5 | F9: ... and then comes again the final embellishment. Fill the data label with the background coclor!

Sheet 14 Blasendiagramm (2)
J1: 0
A2: 1 | B2: 14 Bubble chart (2) | F2: Back to Start
A3: 2 | B3: 14 Blasendiagramm (2) | F3: Startseite
C5: branch | D5: Aral | E5: Esso | F5: Shell
C6: Bremen | E6: 480884 | F6: 298253
C7: Hamburg | D7: 146379 | E7: 682813 | F7: 343588
C8: Oldenburg | D8: 139198 | F8: 477192
C27: branch | D27: customer | E27: branch | F27: customer | G27: sales
C28: Bremen | D28: Aral | E28: 1 | F28: 1 | G28: 0
C29: Bremen | D29: Esso | E29: 1 | F29: 2 | G29: 480884
C30: Bremen | D30: Shell | E30: 1 | F30: 3 | G30: 298253
C31: Hamburg | D31: Aral | E31: 2 | F31: 1 | G31: 146379
C32: Hamburg | D32: Esso | E32: 2 | F32: 2 | G32: 715490
C33: Hamburg | D33: Shell | E33: 2 | F33: 3 | G33: 343588
C34: Oldenburg | D34: Aral | E34: 3 | F34: 1 | G34: 139198
C35: Oldenburg | D35: Esso | E35: 3 | F35: 2 | G35: 0
C36: Oldenburg | D36: Shell | E36: 3 | F36: 3 | G36: 477192
A54: 1
A55: 1
I58: ===>>
I75: ===>>
A92: 2 | B92: Übung | C92: Erstellen Sie ein ähnliches Blasen-Diagramm mit eigenen Daten!
A93: 1 | B93: Exercise | C93: Create a similar bubble chart with own data!
A99: 0

Sheet 14 Blasendiagramm (2)_ (hidden)
B1: 2 | C1: 2 | D1: 2 | E1: 1 | F1: 1 | G1: 1 | H1: 0
A2: 1 | B2: 14 Bubble chart (2)_ | F2: =B2 -> 14 Bubble chart (2)_
A3: 2 | B3: 14 Blasendiagramm (2)_
A4: 0
B5: 1 | C5: Man könnte auf die Idee kommen, diese Daten als Blasendiagramm darzustellen, indem man den Bereich C5:F8 markiert und "Einfügen / Blasendiagramm" wählt. Aber so einfach ist es leider nicht. Das Ergebnis sieht nämlich so aus: | E5: 1 | F5: You could have the idea to create a bubble chart from these data table by selecting the range C5:F8 and selecting "Insert / Bubble". But unfortunately it isn't so easy, because the result looks like this:
B6: =IF(C6<>"",B5+1,"") -> 2 | C6: Das liegt daran, dass ein Blasendiagramm die darzustellenden Daten in einer bestimmten Anordnung erwartet (vgl. "Blasendiagramm (1)"): Die X-Werte, die Y-Werte und die Blasengrößen in Spalten nebeneinander! Hinzu kommt noch, dass ein Blasendiagramm für die X- und Y-Werte Zahlen erwartet - keine Texte wie im vorliegenden Fall ("Bremen", "Hamburg", ...). Die darzustellenden Daten müssen also folgendermaßen aufbereitet werden. Jede Dreierkombination aus x-Wert, y-Wert und Blasengröße wird dann als eine Blase im Diagramm dargestellt. | E6: =IF(F6<>"",E5+1,"") -> 2 | F6: The reason for that is, that the bubble chart exepects the data in a certain arrangement (see "Bubble chart (1)"!): The x and y values as well as the bubble size in columns side by side! Additionally, a bubble chart needs numbers for the x and y values - not text like in thentable above! ("Bremen", "Hamburg", ...) Therefore, the data must be prepared as follows. Then each combination from an x value, a y value and a bubble size is represented as a bubble in the chart.
B7: =IF(C7<>"",B6+1,"") -> 3 | C7: Es ist leider mit "normalen" Mitteln nicht möglich, die Texte an die Achsen zu bekommen. Daher müssen Sie folgendermaßen vorgehen: Rechtsklick auf die x-Achse + "Achse formatieren / Hauptintervall = 1" Rechtsklick auf die y-Achse + "Achse formatieren / Hauptintervall = 1" Rechtsklick auf die x-Achse + "Löschen" Rechtsklick auf die y-Achse + "Löschen" | E7: =IF(F7<>"",E6+1,"") -> 3 | F7: Unfortunately it is not possible to write the texts at the axes with "normal" means. Therefore you have to do the following: right click on the x axis + "Format Axis / Major = 1" right click on the y axis + "Format Axis / Major = 1" right click on the x axis + "Delete" right click on the y axis + "Delete"
B8: 4 | C8: Linksklick auf das Diagramm + "Diagrammtools / Format / Formen einfügen / Textfeld" x-Achse: Ein einziges Textfeld mit Leerzeichen zwischen den Rubriken zur richtigen Platzierung unter den Blasen. y-Achse: Für jeden Wert ein eigenes (rechtsbündiges!) Textfeld - sonst gelingt die richtige Platzierung an den horizontalen Linien nicht. Dieses Verfahren ist nicht besonders elegant - aber es funktioniert. Rechtsklick + "Datenbeschriftungen hinzufügen / Datenlegenden hinzufügen" Datenlegenden formatieren | E8: 4 | F8: left click on the chart + "Chart tools / Format / Insert Shapes / Text Box" x axis: One single text box with spaces between the categories for the right placement under the bubbles. y axis: One extra text box ("Align Right") for each value - otherwise the right placement at the grid lines is not possible. This method is not particularly elegant - but it works. right click / "Add Data Lables" / "Add Data Callouts" format the data callouts

Sheet 15 Netzdiagramm
J1: 0
A2: 1 | B2: 15 Radar chart | E2: Back to Start
A3: 2 | B3: 15 Netzdiagramm | E3: Startseite
D5: customer A | E5: customer B | F5: customer C
C6: turnover (in T€) | D6: 700 | E6: 550 | F6: 300 | G6: more = better
C7: customers budget (in T€) | D7: 80 | E7: 50 | F7: 60 | G7: more = better
C8: gross profit margin (in %) | D8: 4.5 | E8: 3.2 | F8: 3.8 | G8: more = better
C9: financial situation (super=100) | D9: 60 | E9: 50 | F9: 40 | G9: more = better
C10: effort for support (in h/month) | D10: 35 | E10: 16 | F10: 80 | G10: less = better
C11: loyalty (in years) | D11: 9 | E11: 17 | F11: 6 | G11: more = better
C12: image (super=100) | D12: 40 | E12: 80 | F12: 60 | G12: more = better
C13: transaction time (in days) | D13: 8 | E13: 16 | F13: 14 | G13: less = better
A33: 2 | B33: Probleme:
A34: 2 | C34: (1) Im Netzdiagramm muss "mehr = besser" gelten
A35: 2 | C35: (2) Werte mit unterschiedlichen Maßeinheiten sind nicht vergleichbar.
A37: 1 | B37: Problems:
A38: 1 | C38: (1) In a radar chart it must be "more = better"
A39: 1 | C39: (2) Numbers with different measurement units are not comparable (€, %, days, …)
A41: 2 | B41: Lösung Problem (1):
A42: 2 | C42: Aus "weniger = besser" macht man "mehr = besser", indem man entweder Differenzen oder Quotienten bildet:
A43: 2
A45: 1 | B45: Solution for problem (1):
A46: 1 | C46: You can transfrom "less = better" to "more = better" by defining either differences or quotients:
A47: 1
A49: 2 | C49: Relativ zu einem Maximum (Differenz): | D49: 28 | E49: Tage
A50: 1 | C50: Relative to a maximum (difference): | D50: 28 | E50: days
C51: transaction time (in days) | D51: 8 | E51: 21 | F51: 14 | G51: less = better
C52: early payment (in days) | D52: =$D$49-D51 -> 20 | E52: =$D$49-E51 -> 7 | F52: 14 | G52: more = better
A54: 2 | C54: Relativ zum größten Wert (Differenz):
A55: 1 | C55: Relative to the biggest value (difference):
C56: effort for support (in h/month) | D56: 24 | E56: 16 | F56: 80 | G56: less = better
C57: time savings (in h/month) | D57: =MAX($D$56:$F$56)-D56 -> 56 | E57: =MAX($D$56:$F$56)-E56 -> 64 | F57: 0 | G57: more = better
A59: 2 | C59: Relativ zum Umsatz (Quotient):
A60: 1 | C60: Relative to the turnover (quotient):
C61: turnover (in T€) | D61: 700 | E61: 550 | F61: 300
C62: effort for support (in h/month) | D62: 24 | E62: 16 | F62: 80 | G62: less = better
C63: support efficiency (in T€/h) | D63: =D61/D62 -> 29.16666667 | E63: =E61/E62 -> 34.375 | F63: 3.75 | G63: more = better
A65: 2 | C65: Transformierte Tabelle:
A66: 1 | C66: Transformed table:
D67: customer A | E67: customer B | F67: customer C
C68: turnover (in T€) | D68: =D6 -> 700 | E68: =E6 -> 550 | F68: 300 | G68: more = better
C69: customers budget (in T€) | D69: =D7 -> 80 | E69: =E7 -> 50 | F69: 60 | G69: more = better
C70: gross profit margin (in %) | D70: =D8 -> 4.5 | E70: =E8 -> 3.2 | F70: 3.8 | G70: more = better
C71: financial situation (super=100) | D71: =D9 -> 60 | E71: =E9 -> 50 | F71: 40 | G71: more = better
C72: support efficiency (in T€/h) | D72: =D6/D10 -> 20 | E72: =E6/E10 -> 34.375 | F72: 3.75 | G72: more = better
C73: loyalty (in years) | D73: =D11 -> 9 | E73: =E11 -> 17 | F73: 6 | G73: more = better
C74: image (super=100) | D74: =D12 -> 40 | E74: =E12 -> 80 | F74: 60 | G74: more = better | I74: payment deadline:
C75: early payment (in days) | D75: =$I$75-D13 -> 20 | E75: =$I$75-E13 -> 12 | F75: =$I$75-F13 -> 14 | G75: more = better | I75: 28
A77: 2 | B77: Lösung Problem (2):
A78: 2 | C78: Alle Zahlen werden auf 100 normiert und dadurch vergleichbar!
A79: 2 | C79: (Der größte Wert in jeder Zeile wird gleich 100 gesetzt.)
A80: 1 | B80: Solution for problem (2):
A81: 1 | C81: All numbers are scaled to 100 and become therefore comparable!
A82: 1 | C82: (The biggest value in each row is set to 100.)
D83: customer A | E83: customer B | F83: customer C
C84: turnover | D84: =(D68/MAX($D$68:$F$68))*100 -> 100 | E84: =(E68/MAX($D$68:$F$68))*100 -> 78.57142857 | F84: =(F68/MAX($D$68:$F$68))*100 -> 42.85714286 | G84: =_xlfn.FORMULATEXT(F84) -> =(F68/MAX($D$68:$F$68))*100
C85: customers budget | D85: =(D69/MAX($D$69:$F$69))*100 -> 100 | E85: =(E69/MAX($D$69:$F$69))*100 -> 62.5 | F85: =(F69/MAX($D$69:$F$69))*100 -> 75 | G85: =_xlfn.FORMULATEXT(F85) -> =(F69/MAX($D$69:$F$69))*100
C86: gross profit margin | D86: =(D70/MAX($D$70:$F$70))*100 -> 100 | E86: =(E70/MAX($D$70:$F$70))*100 -> 71.11111111 | F86: =(F70/MAX($D$70:$F$70))*100 -> 84.44444444 | G86: =(F70/MAX($D$70:$F$70))*100
C87: financial situation | D87: =(D71/MAX($D$71:$F$71))*100 -> 100 | E87: =(E71/MAX($D$71:$F$71))*100 -> 83.33333333 | F87: =(F71/MAX($D$71:$F$71))*100 -> 66.66666667 | G87: =(F71/MAX($D$71:$F$71))*100
C88: support efficiency | D88: =(D72/MAX($D$72:$F$72))*100 -> 58.18181818 | E88: =(E72/MAX($D$72:$F$72))*100 -> 100 | F88: =(F72/MAX($D$72:$F$72))*100 -> 10.90909091 | G88: =(F72/MAX($D$72:$F$72))*100
C89: loyalty | D89: =(D73/MAX($D$73:$F$73))*100 -> 52.94117647 | E89: =(E73/MAX($D$73:$F$73))*100 -> 100 | F89: =(F73/MAX($D$73:$F$73))*100 -> 35.29411765 | G89: =(F73/MAX($D$73:$F$73))*100
C90: image | D90: =(D74/MAX($D$74:$F$74))*100 -> 50 | E90: =(E74/MAX($D$74:$F$74))*100 -> 100 | F90: =(F74/MAX($D$74:$F$74))*100 -> 75 | G90: =(F74/MAX($D$74:$F$74))*100
C91: early payment | D91: =(D75/MAX($D$75:$F$75))*100 -> 100 | E91: =(E75/MAX($D$75:$F$75))*100 -> 60 | F91: =(F75/MAX($D$75:$F$75))*100 -> 70 | G91: =(F75/MAX($D$75:$F$75))*100
D121: customer A | E121: customer B | F121: customer C
C122: area: | D122: =0.5*(D84*D85+D85*D86+D86*D87+D87*D88+D88*D89+D89*D90+D90*D91+D91*D84)*SIN(RADIANS(360/8)) -> 19991.83718 | E122: =0.5*(E84*E85+E85*E86+E86*E87+E87*E88+E88*E89+E89*E90+E90*E91+E91*E84)*SIN(RADIANS(360/8)) -> 19208.0974 | F122: =0.5*(F84*F85+F85*F86+F86*F87+F87*F88+F88*F89+F89*F90+F90*F91+F91*F84)*SIN(RADIANS(360/8)) -> 9611.917072 | G122: =_xlfn.FORMULATEXT(F122) -> =0,5*(F84*F85+F85*F86+F86*F87+F87*F88+F88*F89+F89*F90+F90*F91+F91*F84)*SIN(BOGENMASS(360/8))
A153: 2 | B153: Übung | C153: Erstellen Sie ein Netzdiagramm mit den folgenden Daten für eine Software-Beschaffung!
A154: 1 | B154: Exercise | C154: Create a radar chart with the following data for a software procurement!
D157: product A | E157: product B | F157: product C
C158: costs (in T€) | D158: 120 | E158: 80 | F158: 250
C159: speed (in transactions/s) | D159: 100000 | E159: 180000 | F159: 220000
C160: user friendliness (super=100) | D160: 90 | E160: 60 | F160: 70
C161: service costs (in €/month) | D161: 3000 | E161: 2600 | F161: 2400
C162: functionality (full=100) | D162: 90 | E162: 80 | F162: 75
C163: hardware requirements (high=100) | D163: 60 | E163: 90 | F163: 80
A167: 0

Sheet 15 Netzdiagramm_ (hidden)
B1: 2 | C1: 2 | D1: 2 | E1: 1 | F1: 1 | G1: 1 | H1: 0
A2: 1 | B2: 15 Radar chart_ | F2: =B2 -> 15 Radar chart_
A3: 2 | B3: 15 Netzdiagramm_
A4: 0
B5: 1 | C5: Ein Netzdiagramm wird häufig eingesetzt, um Alternativen miteinander zu vergleichen. Das Beispiel zeigt eine Nutzwertanalyse für Kunden: "Welcher Kunde ist für mich besonders wertvoll?" Zu diesem Zweck werden eine Reihe von Kriterien erfasst. Das ist aber nicht ganz so einfach, wie es aussieht. ERSTENS haben alle Kriterien unterschiedliche Maßeinheiten. Sie können nicht 700.000€ Umsatz und 9 Jahre Kundentreue auf der gleichen Achse darstellen. ZWEITENS hat das Diagramm nur Sinn, wenn "mehr = besser" gilt. | E5: 1 | F5: A radar chart is often used to compare alternatives. The example shows a use-value analysis for customers: "Which customer is particularly valuable to me?" For this purpose a number of criteria are included. But this is not as simple as it looks. FIRST, all criteria have different measurement units. You cannot represent 700,000€ turnover and 9 years of customer loyalty on the same axis. SECOND, the chart only makes sense if "more = better" applies.
B6: =IF(C6<>"",B5+1,"") -> 2 | C6: Was ist damit gemeint? Sehen Sie sich dazu noch einmal das Beispiel an. Dort erscheinen die FLÄCHEN für Kunde A (durchgezogene Linie) und Kunde B (gestrichelte Linie) etwa gleich groß und größer als die Fläche für Kunde C (gepunktete Linie). Je größer die Fläche ist, um so wertvoller ist der Kunde. Die Fläche wird aber groß, wenn die Werte auf den Achsen groß sind. Also müssen die Bewertungskriterien so gewählt werden, dass "mehr = besser" gilt! | E6: =IF(F6<>"",E5+1,"") -> 2 | F6: What is meant by this? Take another look at the example. There, the areas for customer A (solid line) and customer B (dotted line) appear to be slightly equal in size and larger than the area for customer C (dotted line). The larger the area, the more valuable the customer is. However, the area becomes large if the values on the axes are large. So the evaluation criteria must be chosen so that "more = better" applies!
B7: =IF(C7<>"",B6+1,"") -> 3 | C7: Noch einmal zu Kunde A und B: Da die Flächen etwa gleich groß sind, sind beide etwa gleich wertvoll. Die LAGE der Flächen ist aber unterschiedlich. Die Kunden sind also auf unterschiedlichen Gebieten für uns wertvoll. Damit ist das Netzdiagramm eine gute Diskussiongrundlage. Es gibt einen schnellen Überblick über eine ziemlich komplizierte Situation. Sie können es z.B. auch verwenden, um eine Beschaffungsentscheidung zu treffen (siehe Übung unten). Dazu bewerten Sie das Produkt oder die Dienstleistung nach verschiedenen Kriterien und stellen diese in einem Netzdiagramm dar. | E7: =IF(F7<>"",E6+1,"") -> 3 | F7: Once again to customer A and B: Since the areas are about the same size, both are of about the same value. However, the location of the areas is different. The customers are therefore valuable to us in different areas. The radar chart is therefore a good basis for discussion. It gives a quick overview of a rather complicated situation. You can also use it, for example, to make a procurement decision (see exercise below). To do this, you evaluate the product or service according to various criteria and present these in a radar chart.
B8: 4 | C8: Wie lösen wir nun die eingangs genannten zwei Probleme? In der Beispieltabelle haben wir zwei Kriterien, für die "weniger = besser" gilt. Das können wir umdrehen zu "mehr = besser", indem wir Differenzen oder Quotienten bilden. Hier werden Differenzen gebildet - entweder zu einem frei definierten Maximum oder zum maximalen Wert in der Zeile. Hier werden Quotienten gebildet. So wird aus dem Betreuungsaufwand die Betreuungseffizienz. So haben wir jetzt eine Tabelle, in der für alle Zeilen gilt: "mehr = besser"! | E8: 4 | F8: So how do we solve the two problems mentioned at the beginning? In the example table we have two criteria for which "less = better" applies. We can reverse this to "more = better" by forming differences or quotients. Here we form differences - either to a freely defined maximum or to the maximum value in the row. Here quotients are formed. In this way, the support effort becomes the support efficiency. So now we have a table in which the following applies to all lines: "more = better"!
B9: 5 | C9: Bleibt noch das Problem 2: Die Vergleichbarkeit unterschiedlicher Maßeinheiten. Dazu werden einfach alle Zahlen auf 100 normiert, indem jeder Wert durch das Maximum der Zeile geteilt und dann mit 100 multipliziert wird. Diese Wertetabelle können wir jetzt in einem Netzdiagramm darstellen. | E9: 5 | F9: That leaves problem 2: The comparability of different measurement units. This is simply done by normalising all numbers to 100 by dividing each value by the maximum of the line and then multiplying by 100. We can now display this table of values in a radar chart.
B10: 6 | C10: Jetzt wird's mathematisch kompliziert: Bisher haben wir vom bloßen Anblick her gesagt: "Kunde A und B sind etwa gleich wertvoll und beide wertvoller als Kunde C". Wir können das aber auch exakt quantifizieren! Die von einer Linie umschlossene Fläche setzt sich nämlich aus Dreiecken zusammen, deren Fläche über die Formel 1/2 * Seite * Seite * SIN(eingeschlossener Winkel) berechnet werden kann. | E10: 6 | F10: Now it gets mathematically complicated: Up to now, we have said from the mere sight of it: "Customer A and B are about equally valuable and both are more valuable than customer C". But we can also quantify this exactly! The area of one data series is built of triangles. Their area can be calculated with the formula 1/2 * side * side * SIN(enclosed angle)
B11: 7 | C11: Der "visuelle Eindruck", dass die Kunden A und B etwa "gleich gut" sind, bestätigt sich! Entscheidend ist jetzt, welche der Vergleichskriterien uns wichtiger sind, weil beide Kunden unterschiedliche Stärken haben. Da die angezeigten Werte relative Werte sind (Maximum = 100), ist es nicht erforderlich, die Zahlen an der Achse anzuzeigen. Für den Betrachter sind nur die Fläche der Kurve und die relativen Stärken und Schwächen der einzelnen Kunden wichtig. | E11: 7 | F11: The visual impression, that the customers A and B are nearly equal is confirmed. Now it will be crucial which category is more important for us, because both customers have their own strengthes. Because the displayed values are relative ones, it is not necessary to show the numbers at the axes. The only important aspects for the viewer are the areas as well as the relative strenghtes and weaknesses of the different customers.

Sheet 16 GANTT-Diagramm (1)
J1: 0
A2: 1 | B2: 16 GANTT chart (1) | F2: Back to Start
A3: 2 | B3: 16 GANTT-Diagramm (1) | F3: Startseite | H3: CW = calendar week
C5: work package | D5: begin | E5: begin (CW) | F5: duration (weeks) | G5: end
C6: WP1 | D6: 2019-08-01 | E6: =WEEKNUM(D6,2) -> 31 | F6: 2 | G6: =D6+F6*7 -> 2019-08-15
C7: WP2 | D7: 2019-09-15 | E7: =WEEKNUM(D7,2) -> 37 | F7: 8 | G7: 2019-11-10
C8: WP3 | D8: 2019-11-01 | E8: 44 | F8: 12 | G8: 2020-01-24
C9: WP4 | D9: 2019-11-15 | E9: 46 | F9: 4 | G9: 2019-12-13
C10: WP5 | D10: 2020-01-15 | E10: 3 | F10: 4 | G10: 2020-02-12
C11: WP6 | D11: 2020-03-01 | E11: 9 | F11: 8 | G11: 2020-04-26
C38: work package | D38: begin | E38: begin (CW) | F38: begin (CW) | G38: duration (weeks) | H38: end | K38: CW = calendar week
C39: WP1 | D39: 2019-08-01 | E39: =WEEKNUM(D39,2) -> 31 | F39: =(YEAR(D39)-YEAR($D$39))*53+WEEKNUM(D39,2) -> 31 | G39: 2 | H39: =D39+G39*7 -> 2019-08-15 | N39: Chart type: "Stacked Bars"
C40: WP2 | D40: 2019-09-15 | E40: =WEEKNUM(D40,2) -> 37 | F40: =(YEAR(D40)-YEAR($D$39))*53+WEEKNUM(D40,2) -> 37 | G40: 8 | H40: 2019-11-10
C41: WP3 | D41: 2019-11-01 | E41: 44 | F41: 44 | G41: 12 | H41: 2020-01-24
C42: WP4 | D42: 2019-11-15 | E42: 46 | F42: 46 | G42: 4 | H42: 2019-12-13
C43: WP5 | D43: 2020-01-15 | E43: 3 | F43: 56 | G43: 4 | H43: 2020-02-12 | J43: =_xlfn.FORMULATEXT(F43) -> =(JAHR(D43)-JAHR($D$39))*53+KALENDERWOCHE(D43;2)
C44: WP6 | D44: 2020-03-01 | E44: 9 | F44: 62 | G44: 8 | H44: 2020-04-26
H49: ===>> | O49: ===>>
C65: work package | D65: begin | E65: begin (CW) | F65: begin (CW) | G65: duration (weeks) | H65: duration (days) | I65: end
C66: WP1 | D66: 2019-08-01 | E66: =WEEKNUM(D66,2) -> 31 | F66: =(YEAR(D66)-2019)*53+WEEKNUM(D66,2) -> 31 | G66: 2 | H66: =G66*7 -> 14 | I66: =D66+G66*7 -> 2019-08-15
C67: WP2 | D67: 2019-09-15 | E67: =WEEKNUM(D67,2) -> 37 | F67: =(YEAR(D67)-2019)*53+WEEKNUM(D67,2) -> 37 | G67: 8 | H67: =G67*7 -> 56 | I67: 2019-11-10
C68: WP3 | D68: 2019-11-01 | E68: 44 | F68: 44 | G68: 12 | H68: 84 | I68: 2020-01-24
C69: WP4 | D69: 2019-11-15 | E69: 46 | F69: 46 | G69: 4 | H69: 28 | I69: 2019-12-13
C70: WP5 | D70: 2020-01-15 | E70: 3 | F70: 56 | G70: 4 | H70: 28 | I70: 2020-02-12
C71: WP6 | D71: 2020-03-01 | E71: 9 | F71: 62 | G71: 8 | H71: 56 | I71: 2020-04-26
H77: ===>>
A92: 0
H94: ===>> | O94: ===>>

Sheet 16 GANTT-Diagramm (1)_ (hidden)
B1: 2 | C1: 2 | D1: 2 | E1: 1 | F1: 1 | G1: 1 | H1: 0
A2: 1 | B2: 16 GANTT chart (1)_ | F2: =B2 -> 16 GANTT chart (1)_
A3: 2 | B3: 16 GANTT-Diagramm (1)_
A4: 0
B5: 1 | C5: Ein GANTT-Diagramm ist Ihnen bestimmt schon mal begegnet, wenn Sie es mit einer Projektplanung zu tun hatten. Es stellt die Dauer von Arbeitspaketen in Form horizontaler Balken dar, die aber nicht wie üblich an der y-Achse beginnen. Der Trick besteht darin, den Beginn und die Dauer des Arbeitspakets als gestapelte Balken darzustellen und dann den linken Balken (="Beginn") unsichtbar zu machen. | E5: 1 | F5: You have certainly come across a GANTT chart when you were dealing with project planning. It shows the duration of work packages in the form of horizontal bars, which do not begin on the y-axis as usual. The trick is to display the start and duration of the work package as stacked bars and then to make the left bar (="start") invisible.
B6: =IF(C6<>"",B5+1,"") -> 2 | C6: Zunächst haben wir aber ein anderes Problem. Projektplanungen werden üblicherweise nach Kalenderwochen gemacht. Wenn das Projekt aber über einen Jahreswechsel hinweg läuft, funktioniert das nicht. Dann werden nämlich die Wochen des nächsten Jahres als Wochen des vorherigen Jahres dargestellt. Wir könnten die Wochen über die 53 Wochen eines Jahres hinaus weiter zählen. Dazu addieren wir zur Kalenderwoche immer (aktuelles Jahr - erstes Jahr) * 53 hinzu. Im Diagramm machen wir den linken Balken unsichtbar. Dann beginnen WP5 und 6 tatsächlich nach WP4 - aber dann fragt sich der Betrachter: "Was ist denn KW 70??" | E6: =IF(F6<>"",E5+1,"") -> 2 | F6: But first we have another problem. Project planning is usually done by calendar weeks. But if the project runs over a turn of the year, this does not work. The weeks of the next year are then displayed as weeks of the previous year. We could continue counting the weeks beyond the 53 weeks of a year. To this we always add (current year - first year) * 53 to the calendar week. In the chart we make the left bar invisible. Then WP5 and 6 actually start after WP4 - but then the viewer asks himself: "What is week 70?"
B7: =IF(C7<>"",B6+1,"") -> 3 | C7: Eine mögliche Alternative wäre, auf der x-Achse nicht die Wochen, sondern die Tage anzuzeigen. Aber auch das hat wieder einen Nachteil. Wir berechnen zunächst die Dauer der Arbeitspakete in Tagen statt in Wochen und stellen dann im Diagramm den Beginn als Datum und die Dauer in Tagen dar. Das funktioniert, weil ...? Erinnern Sie sich? Weil das Datum als ganze Zahl (Anzahl der Tage seit dem 1.1.1900) gespeichert wird. Das WP 1 beginnt also am Tag 43.678 und endet am Tag 43.678 + 14 = 43.692 | E7: =IF(F7<>"",E6+1,"") -> 3 | F7: A possible alternative would be to display the days on the x-axis instead of the weeks. But this again has a disadvantage. We first calculate the duration of the work packages in days instead of weeks and then show the start as date and the duration in days in the chart. This works because ...? Do you remember? Because the date is stored as an integer (number of days since 1.1.1900). So WP 1 starts on day 43.678 and ends on day 43.678 + 14 = 43.692
B8: 4 | C8: Wenn Sie die richtigen Spalten richtig markieren und das richtige Diagramm einfügen … wird es falsch - weil Excel die x-Achse falsch erkennt. Wir müssen also nacharbeiten: Rechtsklick + "Daten auswählen" und ... ... Korrektur der vertikalen Achse ... Hinzufügen der Datentreihe "begin" ... ACHTUNG: Ändern der Reihenfolge der Datenreihen! Skalieren der x-Achse (43650 - 43950) Im Diagramm machen wir den linken wieder Balken unsichtbar. | E8: =IF(F8<>"",E7+1,"") -> 4 | F8: If you mark the right columns correctly and insert the right chart ... it will be wrong - because Excel recognizes the x-axis incorrectly. So we have to rework: Right click + "Select data" and ... ... correct the vertical axis ... add the data series "begin" ... ATTENTION: Change the sequence of the data series! Scale the x axis (43650 - 43950) In the chart we make the left bar invisible again.
B9: 5 | C9: Ich denke, jetzt erkennen Sie das Problem: Wir können auf der x-Achse nur ein festes Intervall definieren - aber nicht jeder Monat hat 30 Tage. Daher ist die Beschriftung der x-Achse nicht sinnvoll. Summa summarum: So geht es nicht! Die bessere Lösung erläutere ich auf dem nächsten Blatt. | E9: 5 | F9: I think now you see the problem: We can only define a fixed interval on the x-axis - but not every month has 30 days. Therefore, the labelling of the x-axis is not useful. To sum up: It doesn't work like that! I will explain the better solution on the next page.

Sheet 17 GANTT-Diagramm (2)
L1: 0
A2: 1 | B2: 17 GANTT chart (2) | F2: Back to Start
A3: 2 | B3: 17 GANTT-Diagramm (2) | F3: Startseite
J5: =WEEKNUM(J6,21)&". week" -> 45. week | Q5: =WEEKNUM(Q6,21)&". week" -> 46. week | X5: =WEEKNUM(X6,21)&". week" -> 47. week | AE5: =WEEKNUM(AE6,21)&". week" -> 48. week | AL5: =WEEKNUM(AL6,21)&". week" -> 49. week | AS5: =WEEKNUM(AS6,21)&". week" -> 50. week | AZ5: =WEEKNUM(AZ6,21)&". week" -> 51. week | BG5: =WEEKNUM(BG6,21)&". week" -> 52. week | BN5: =WEEKNUM(BN6,21)&". week" -> 1. week | BU5: =WEEKNUM(BU6,21)&". week" -> 2. week | CB5: =WEEKNUM(CB6,21)&". week" -> 3. week | CI5: =WEEKNUM(CI6,21)&". week" -> 4. week | CP5: =_xlfn.FORMULATEXT(CI5) -> =KALENDERWOCHE(CI6;21)&". week"
F6: Enter the date of a Sunday here -> | I6: 2019-11-03 | J6: =I6+1 -> 2019-11-04 | K6: =J6+1 -> 2019-11-05 | L6: =K6+1 -> 2019-11-06 | M6: 2019-11-07 | N6: 2019-11-08 | O6: 2019-11-09 | P6: 2019-11-10 | Q6: 2019-11-11 | R6: 2019-11-12 | S6: 2019-11-13 | T6: 2019-11-14 | U6: 2019-11-15 | V6: 2019-11-16 | W6: 2019-11-17 | X6: 2019-11-18 | Y6: 2019-11-19 | Z6: 2019-11-20 | AA6: 2019-11-21 | AB6: 2019-11-22 | AC6: 2019-11-23 | AD6: 2019-11-24 | AE6: 2019-11-25 | AF6: 2019-11-26 | AG6: 2019-11-27 | AH6: 2019-11-28 | AI6: 2019-11-29 | AJ6: 2019-11-30 | AK6: 2019-12-01 | AL6: 2019-12-02 | AM6: 2019-12-03 | AN6: 2019-12-04 | AO6: 2019-12-05 | AP6: 2019-12-06 | AQ6: 2019-12-07 | AR6: 2019-12-08 | AS6: 2019-12-09 | AT6: 2019-12-10 | AU6: 2019-12-11 | AV6: 2019-12-12 | AW6: 2019-12-13 | AX6: 2019-12-14 | AY6: 2019-12-15 | AZ6: 2019-12-16 | BA6: 2019-12-17 | BB6: 2019-12-18 | BC6: 2019-12-19 | BD6: 2019-12-20 | BE6: 2019-12-21 | BF6: 2019-12-22 | BG6: 2019-12-23 | BH6: 2019-12-24 | BI6: 2019-12-25 | BJ6: 2019-12-26 | BK6: 2019-12-27 | BL6: 2019-12-28 | BM6: 2019-12-29 | BN6: 2019-12-30 | BO6: 2019-12-31 | BP6: 2020-01-01 | BQ6: 2020-01-02 | BR6: 2020-01-03 | BS6: 2020-01-04 | BT6: 2020-01-05 | BU6: 2020-01-06 | BV6: 2020-01-07 | BW6: 2020-01-08 | BX6: =BW6+1 -> 2020-01-09 | BY6: 2020-01-10 | BZ6: 2020-01-11 | CA6: 2020-01-12 | CB6: 2020-01-13 | CC6: 2020-01-14 | CD6: 2020-01-15 | CE6: 2020-01-16 | CF6: 2020-01-17 | CG6: 2020-01-18 | CH6: 2020-01-19 | CI6: 2020-01-20 | CJ6: 2020-01-21 | CK6: 2020-01-22 | CL6: 2020-01-23 | CM6: 2020-01-24 | CN6: 2020-01-25 | CO6: 2020-01-26 | CP6: =_xlfn.FORMULATEXT(CO6) -> =CN6+1
E7: M | F7: I | G7: F | H7: Holidays -> | BG7: X | BH7: X | BI7: X | BN7: X | BO7: X
B8: work package | C8: begin | D8: end | E8: meeting | F8: intermediate report | G8: final report | H8: working days
B9: AP1 | C9: 2019-11-05 | D9: 2019-12-20 | E9: 2019-11-15 | F9: 2019-12-03 | G9: 2019-12-20 | H9: =IF(C9<>"",NETWORKDAYS(C9,D9)-COUNTIF(J9:CM9,"X"),"") -> 34 | J9: =IF(AND(J$7="X",J$6>=$C9,J$6<=$D9),"X",IF(J$6=$E9,$E$7,IF(J$6=$F9,$F$7,IF(J$6=$G9,$G$7,"")))) ->  | K9: =IF(AND(K$7="X",K$6>=$C9,K$6<=$D9),"X",IF(K$6=$E9,$E$7,IF(K$6=$F9,$F$7,IF(K$6=$G9,$G$7,"")))) ->  | U9: M | AM9: I | BD9: F | BW9: =IF(AND(BW$7="X",BW$6>=$C9,BW$6<=$D9),"X",IF(BW$6=$E9,$E$7,IF(BW$6=$F9,$F$7,IF(BW$6=$G9,$G$7,"")))) ->  | CO9: =IF(AND(CO$7="X",CO$6>=$C9,CO$6<=$D9),"X",IF(CO$6=$E9,$E$7,IF(CO$6=$F9,$F$7,IF(CO$6=$G9,$G$7,"")))) ->  | CP9: =_xlfn.FORMULATEXT(CO9) -> =WENN(UND(CO$7="X";CO$6>=$C9;CO$6<=$D9);"X";WENN(CO$6=$E9;$E$7;WENN(CO$6=$F9;$F$7;WENN(CO$6=$G9;$G$7;""))))
J10: =IF(AND(J$7="X",J$6>=$C10,J$6<=$D10),"X",IF(J$6=$E10,$E$7,IF(J$6=$F10,$F$7,IF(J$6=$G10,$G$7,"")))) ->  | CP10: =_xlfn.FORMULATEXT(CO10) -> =WENN(UND(CO$7="X";CO$6>=$C10;CO$6<=$D10);"X";WENN(CO$6=$E10;$E$7;WENN(CO$6=$F10;$F$7;WENN(CO$6=$G10;$G$7;""))))
B11: AP2 | C11: 2019-11-15 | D11: 2019-12-31 | E11: 2019-11-27 | F11: 2019-12-11 | G11: 2019-12-27 | H11: 28 | AG11: M | AU11: I | BG11: X | BH11: X | BI11: X | BK11: F | BN11: X | BO11: X | CP11: =WENN(UND(CO$7="X";CO$6>=$C11;CO$6<=$D11);"X";WENN(CO$6=$E11;$E$7;WENN(CO$6=$F11;$F$7;WENN(CO$6=$G11;$G$7;""))))
BV12: =IF(AND(BV$7="X",BV$6>=$C12,BV$6<=$D12),"X",IF(BV$6=$E12,$E$7,IF(BV$6=$F12,$F$7,IF(BV$6=$G12,$G$7,"")))) ->  | CP12: =WENN(UND(CO$7="X";CO$6>=$C12;CO$6<=$D12);"X";WENN(CO$6=$E12;$E$7;WENN(CO$6=$F12;$F$7;WENN(CO$6=$G12;$G$7;""))))
B13: AP3 | C13: 2019-12-01 | D13: 2020-01-18 | E13: 2019-12-17 | G13: 2020-01-17 | H13: 30 | BA13: M | BG13: X | BH13: X | BI13: X | BN13: X | BO13: X | CF13: F | CP13: =WENN(UND(CO$7="X";CO$6>=$C13;CO$6<=$D13);"X";WENN(CO$6=$E13;$E$7;WENN(CO$6=$F13;$F$7;WENN(CO$6=$G13;$G$7;""))))
CP14: =WENN(UND(CO$7="X";CO$6>=$C14;CO$6<=$D14);"X";WENN(CO$6=$E14;$E$7;WENN(CO$6=$F14;$F$7;WENN(CO$6=$G14;$G$7;""))))
B15: AP4 | C15: 2019-12-15 | D15: 2020-01-25 | E15: 2019-12-18 | F15: 2020-01-08 | G15: 2020-01-24 | H15: 25 | BB15: M | BG15: X | BH15: X | BI15: X | BN15: X | BO15: X | BW15: I | CM15: F | CP15: =WENN(UND(CO$7="X";CO$6>=$C15;CO$6<=$D15);"X";WENN(CO$6=$E15;$E$7;WENN(CO$6=$F15;$F$7;WENN(CO$6=$G15;$G$7;""))))
BU16: =IF(AND(BU$7="X",BU$6>=$C16,BU$6<=$D16),"X",IF(BU$6=$E16,$E$7,IF(BU$6=$F16,$F$7,IF(BU$6=$G16,$G$7,"")))) ->  | CP16: =WENN(UND(CO$7="X";CO$6>=$C16;CO$6<=$D16);"X";WENN(CO$6=$E16;$E$7;WENN(CO$6=$F16;$F$7;WENN(CO$6=$G16;$G$7;""))))
B17: AP5 | C17: 2020-01-02 | D17: 2020-01-25 | E17: 2020-01-13 | G17: 2020-01-24 | H17: 17 | Z17: =IF(AND(Z$7="X",Z$6>=$C17,Z$6<=$D17),"X",IF(Z$6=$E17,$E$7,IF(Z$6=$F17,$F$7,IF(Z$6=$G17,$G$7,"")))) ->  | CB17: M | CM17: F | CP17: =WENN(UND(CO$7="X";CO$6>=$C17;CO$6<=$D17);"X";WENN(CO$6=$E17;$E$7;WENN(CO$6=$F17;$F$7;WENN(CO$6=$G17;$G$7;""))))
A19: 2 | C19: Bedingte Formatierung des GANTT-"Diagramms":
A20: 1 | C20: Conditional formatting of the GANTT "chart":
A60: 2 | B60: Übung | C60: Erstellen Sie ein GANTT-Diagramm mit eigenen Daten!
A61: 1 | B61: Exercise | C61: Create a GANTT chart with own data!
A64: 0

Sheet 17 GANTT-Diagramm (2)_ (hidden)
B1: 2 | C1: 2 | D1: 2 | E1: 1 | F1: 1 | G1: 1 | H1: 0
A2: 1 | B2: 17 GANTT chart (2)_ | F2: =B2 -> 17 GANTT chart (2)_
A3: 2 | B3: 17 GANTT-Diagramm (2)_
A4: 0
B5: 1 | C5: Hier wird zur Erstellung des GANTT-"Diagramms" kein Diagramm benutzt. Stattdessen werden sehr schmale Excel-Zellen mittels bedingter Formatierung gefärbt, so dass die gewünschten horizontalen Balken entstehen. Mit dieser Technik haben Sie sehr viel mehr Möglichkeiten als mit einem normalen Balkendiagramm - Sie können sich z.B. Meilensteine (z.B. Berichte) und Feiertage anzeigen lassen. | E5: 1 | F5: Here no chart is used for the creation of a GANTT chart. Instead of, very narrow Excel cells are colored with conditional formatting. Then they form the typical GANTT bars. With this technique you have much more possibilities than with a normal bar chart - e.g. you can display milestones (e.g. reports) and holidays.
B6: =IF(C6<>"",B5+1,"") -> 2 | C6: Wie ist das "Diagramm" aufgebaut? Es gibt zunächst eine Tabelle mit Datumsangaben für - Beginn und Ende des Arbeitspakets - ein Meeting - einen Zwischenbericht - den Abschlussbericht Bei Bedarf können Sie natürlich noch weitere Spalten hinzufügen. | E6: =IF(F6<>"",E5+1,"") -> 2 | F6: How is the "chart" structured? First there is a table with dates for - start and end of the work package - a meeting - an interim report - the final report Of course you can add more columns if required.
B7: =IF(C7<>"",B6+1,"") -> 3 | C7: Das eigentliche "Diagramm" besteht aus einer Reihe von ganz schmalen Spalten - jede für einen Tag. Das erste Datum steht in I6 - alle weiteren werden daraus berechnet. Die Nummer der Kalenderwoche wird aus dem Datum eines Tages der Woche berechnet. So hängen also alle Werte in den Zeilen 5 und 6 von einem einzigen Wert ab: I6. Dies muss ein Sonntag sein. | E7: =IF(F7<>"",E6+1,"") -> 3 | F7: The actual "chart" consists of a series of very narrow columns - each for one day. The first date is in I6 - all further dates are calculated from this. The number of the calendar week is calculated from the date of one day of the week. So all values in rows 5 and 6 depend on one single value: I6. This must be a Sunday.
B8: 4 | C8: Dann können nämlich mittels bedingter Formatierung die Wochenenden markiert werden. Dazu wird die Funktion WOCHENTAG() verwendet. Deren korrekte Benutzung ist nicht ganz simpel und wird in meiner Übungsdatei "Excel-Basics" beschrieben. | E8: 4 | F8: Then, the weekends can be marked by means of conditional formatting. The function WEEKDAY() is used for this purpose. Its correct use is not quite simple and is described in my exercise file "Excel-Basics".
B9: 5 | C9: Mittels bedingter Formatierung werden zwei weitere Effekte erzielt: Zum einen werden Tage, die zwischen Beginn und Ende eines Arbeitspakets liegen, gefärbt. Das sind dann die horizontalen "Balken" in dem "Diagramm". Zum anderen werden Zellen grau gefärbt, in denen ein "X" steht (Urlaubstage). Diese besondere Form der bedingten Formatierung wird in der Übungsdatei "Excel-Basics" beschrieben (siehe dort "Bedingte Formatierung (2)"!). | E9: 5 | F9: Conditional formatting is used to achieve two further effects: Firstly, days that lie between the start and end of a work package are coloured. These are then the horizontal "bars" in the "chart". On the other hand, cells with an "X" in them (holidays) are coloured grey. This special form of conditional formatting is described in the exercise file "Excel-Basics" (see there "Conditional formatting (2)"!
B10: 6 | C10: Mit einer ziemlich komplexen WENN-Formel wird entweder ein "X" (Urlaub), ein "M" (Meeting), ein "I" (Zwischenbericht) oder ein "F" (Abschlussbericht) in die jeweilige Zelle geschrieben. Diese Kennzeichnung mit Buchstaben wird in E7:G7 definiert. Diese Definition (weitere oder andere Buchstaben) kann der Benutzer ggf. ändern, OHNE die komplizierte WENN-Formel bearbeiten zu müssen. Über weitere bedingte Formatierungen und WENN-Formeln können Sie nahezu beliebige weitere Anzeigen in Ihr GANTT-Diagramm einbauen. (z.B. Meetings und Berichtstermine) All diese Möglichkeiten hätten Sie nicht, wenn Sie ein "normales" Excel-Diagramm benutzt hätten! | E10: 6 | F10: Using a rather complex IF formula, either an "X" (holiday), an "M" (meeting), an "I" (interim report) or an "F" (final report) is written in the respective cell. This labelling with letters is defined in E7:G7. The user can change this definition (additional or different letters) if necessary, WITHOUT having to edit the complicated IF formula. With further conditional formatting as well as with IF formulas you can add nearly any kind of data to your GANTT chart (e.g. meetings and report deadlines). This wouldn't be possible, if you used a "normal" Excel bar chart!

Sheet 18 Kastengrafik (A)
F1: 0
A2: 1 | B2: 18 Boxplot (E) | F2: Back to Start
A3: 2 | B3: 18 Kastengrafik (A) | F3: Startseite
A6: 2 | D6: Sendungsgewicht
A7: 1 | D7: consignment weight
D8: 20
D9: 29
D10: 23
D11: 31
D12: 39
D13: 33
D14: 36
D15: 22
D16: 30
D17: 21
D18: 36
D19: 38
D20: 19
D21: 15
D22: 27
D23: 20
D24: 42
D25: 26
D26: 37
D27: 32
A29: 2 | C29: nach einigen "Verschönerungen":
A30: 1 | C30: after some improvements:
I39: =QUARTILE(D8:D27,4) -> 42 | J39: 4. Quartil | K39: 4th quartile
I40: =QUARTILE(D8:D27,3) -> 36 | J40: 3. Quartil | K40: 3rd quartile
I41: =QUARTILE(D8:D27,2) -> 29.5 | J41: 2. Quartil | K41: 2nd quartile
I42: =AVERAGE(D8:D27) -> 28.8 | J42: Mittelwert | K42: mean value
I43: =QUARTILE(D8:D27,1) -> 21.75 | J43: 1. Quartil | K43: 1st quartile
I44: =QUARTILE(D8:D27,0) -> 15 | J44: 0. Quartil | K44: 0th quartile
I47: =I40-I43 -> 14.25 | J47: IQR | K47: Interquartile Range
I49: =(D11-I40)/I47 -> -0.350877193 | J49: =_xlfn.FORMULATEXT(I49) -> =(D11-I40)/I47
E56: Produkt / product
C57: Monat | D57: month | E57: P1 | F57: P2 | G57: P3 | H57: P4 | I57: P5 | J57: P6 | K57: P7 | L57: P8
C58: Januar | D58: january | E58: 32 | F58: 523 | G58: 12 | H58: 31 | I58: 988 | J58: 434 | K58: 67 | L58: 815
C59: Februar | D59: february | E59: 24 | F59: 515 | G59: 434 | H59: 50 | I59: 132 | J59: 540 | K59: 139 | L59: 161
C60: März | D60: march | E60: 13 | F60: 498 | G60: 123 | H60: 34 | I60: 610 | J60: 542 | K60: 976 | L60: 336
C61: April | D61: april | E61: 54 | F61: 540 | G61: 44 | H61: 42 | I61: 461 | J61: 429 | K61: 486 | L61: 841
C62: Mai | D62: may | E62: 17 | F62: 505 | G62: 414 | H62: 50 | I62: 481 | J62: 448 | K62: 64 | L62: 88
C63: Juni | D63: june | E63: 86 | F63: 220 | G63: 391 | H63: 38 | I63: 21 | J63: 120 | K63: 774 | L63: 245
C64: Juli | D64: july | E64: 95 | F64: 780 | G64: 154 | H64: 33 | I64: 463 | J64: 517 | K64: 48 | L64: 634
C65: August | D65: august | E65: 73 | F65: 470 | G65: 19 | H65: 36 | I65: 849 | J65: 402 | K65: 466 | L65: 332
C66: September | D66: september | E66: 82 | F66: 535 | G66: 523 | H66: 31 | I66: 30 | J66: 593 | K66: 373 | L66: 892
C67: Oktober | D67: october | E67: 66 | F67: 528 | G67: 111 | H67: 38 | I67: 666 | J67: 411 | K67: 383 | L67: 328
C68: November | D68: november | E68: 62 | F68: 487 | G68: 530 | H68: 35 | I68: 878 | J68: 546 | K68: 39 | L68: 778
C69: Dezember | D69: december | E69: 89 | F69: 541 | G69: 34 | H69: 46 | I69: 901 | J69: 570 | K69: 163 | L69: 499
F72: 2019
C73: Januar | D73: january | E73: P1 | F73: 32
C74: Februar | D74: february | E74: P1 | F74: 24
C75: März | D75: march | E75: P1 | F75: 13 | M75: ===>>
C76: April | D76: april | E76: P1 | F76: 54
C77: Mai | D77: may | E77: P1 | F77: 17
C78: Juni | D78: june | E78: P1 | F78: 86
C79: Juli | D79: july | E79: P1 | F79: 95
C80: August | D80: august | E80: P1 | F80: 73
C81: September | D81: september | E81: P1 | F81: 82
C82: Oktober | D82: october | E82: P1 | F82: 66
C83: November | D83: november | E83: P1 | F83: 62
C84: Dezember | D84: december | E84: P1 | F84: 89
C85: Januar | D85: january | E85: P2 | F85: 523
C86: Februar | D86: february | E86: P2 | F86: 515
C87: März | D87: march | E87: P2 | F87: 498
C88: April | D88: april | E88: P2 | F88: 540
C89: Mai | D89: may | E89: P2 | F89: 505
C90: Juni | D90: june | E90: P2 | F90: 220
C91: Juli | D91: july | E91: P2 | F91: 780
C92: August | D92: august | E92: P2 | F92: 470
C93: September | D93: september | E93: P2 | F93: 535
C94: Oktober | D94: october | E94: P2 | F94: 528
C95: November | D95: november | E95: P2 | F95: 487
C96: Dezember | D96: december | E96: P2 | F96: 541
C97: Januar | D97: january | E97: P3 | F97: 12
C98: Februar | D98: february | E98: P3 | F98: 434
C99: März | D99: march | E99: P3 | F99: 123
C100: April | D100: april | E100: P3 | F100: 44
C101: Mai | D101: may | E101: P3 | F101: 414
C102: Juni | D102: june | E102: P3 | F102: 391
C103: Juli | D103: july | E103: P3 | F103: 154
C104: August | D104: august | E104: P3 | F104: 19
C105: September | D105: september | E105: P3 | F105: 523
C106: Oktober | D106: october | E106: P3 | F106: 111
C107: November | D107: november | E107: P3 | F107: 530
C108: Dezember | D108: december | E108: P3 | F108: 34
C109: Januar | D109: january | E109: P4 | F109: 31
C110: Februar | D110: february | E110: P4 | F110: 50
C111: März | D111: march | E111: P4 | F111: 34
C112: April | D112: april | E112: P4 | F112: 42
C113: Mai | D113: may | E113: P4 | F113: 50
C114: Juni | D114: june | E114: P4 | F114: 38
C115: Juli | D115: july | E115: P4 | F115: 33
C116: August | D116: august | E116: P4 | F116: 36
C117: September | D117: september | E117: P4 | F117: 31
C118: Oktober | D118: october | E118: P4 | F118: 38
C119: November | D119: november | E119: P4 | F119: 35
C120: Dezember | D120: december | E120: P4 | F120: 46
C121: Januar | D121: january | E121: P5 | F121: 988
C122: Februar | D122: february | E122: P5 | F122: 132
C123: März | D123: march | E123: P5 | F123: 610
C124: April | D124: april | E124: P5 | F124: 461
C125: Mai | D125: may | E125: P5 | F125: 481
C126: Juni | D126: june | E126: P5 | F126: 21
C127: Juli | D127: july | E127: P5 | F127: 463
C128: August | D128: august | E128: P5 | F128: 849
C129: September | D129: september | E129: P5 | F129: 30
C130: Oktober | D130: october | E130: P5 | F130: 666
C131: November | D131: november | E131: P5 | F131: 878
C132: Dezember | D132: december | E132: P5 | F132: 901
C133: Januar | D133: january | E133: P6 | F133: 434
C134: Februar | D134: february | E134: P6 | F134: 540
C135: März | D135: march | E135: P6 | F135: 542
C136: April | D136: april | E136: P6 | F136: 429
C137: Mai | D137: may | E137: P6 | F137: 448
C138: Juni | D138: june | E138: P6 | F138: 120
C139: Juli | D139: july | E139: P6 | F139: 517
C140: August | D140: august | E140: P6 | F140: 402
C141: September | D141: september | E141: P6 | F141: 593
C142: Oktober | D142: october | E142: P6 | F142: 411
C143: November | D143: november | E143: P6 | F143: 546
C144: Dezember | D144: december | E144: P6 | F144: 570
C145: Januar | D145: january | E145: P7 | F145: 67
C146: Februar | D146: february | E146: P7 | F146: 139
C147: März | D147: march | E147: P7 | F147: 976
C148: April | D148: april | E148: P7 | F148: 486
C149: Mai | D149: may | E149: P7 | F149: 64
C150: Juni | D150: june | E150: P7 | F150: 774
C151: Juli | D151: july | E151: P7 | F151: 48
C152: August | D152: august | E152: P7 | F152: 466
C153: September | D153: september | E153: P7 | F153: 373
C154: Oktober | D154: october | E154: P7 | F154: 383
C155: November | D155: november | E155: P7 | F155: 39
C156: Dezember | D156: december | E156: P7 | F156: 163
C157: Januar | D157: january | E157: P8 | F157: 815
C158: Februar | D158: february | E158: P8 | F158: 161
C159: März | D159: march | E159: P8 | F159: 336
C160: April | D160: april | E160: P8 | F160: 841
C161: Mai | D161: may | E161: P8 | F161: 88
C162: Juni | D162: june | E162: P8 | F162: 245
C163: Juli | D163: july | E163: P8 | F163: 634
C164: August | D164: august | E164: P8 | F164: 332
C165: September | D165: september | E165: P8 | F165: 892
C166: Oktober | D166: october | E166: P8 | F166: 328
C167: November | D167: november | E167: P8 | F167: 778
C168: Dezember | D168: december | E168: P8 | F168: 499
A170: 2 | B170: Übung | C170: Entwickeln Sie ein Kastendiagramm für die folgenden Daten:
A171: 2
A172: 1 | B172: Exercise | C172: Develop a box plot for the following data:
A173: 1
E174: Produkt / product
C175: Monat | D175: month | E175: P1 | F175: P2 | G175: P3 | H175: P4 | I175: P5 | J175: P6 | K175: P7 | L175: P8
C176: Januar | D176: january | E176: 52 | F176: 745 | G176: 241 | H176: 3 | I176: 988 | J176: 434 | K176: 298 | L176: 815
A177: 0 | C177: Februar | D177: february | E177: 38 | F177: 515 | G177: 187 | H177: 77 | I177: 132 | J177: 540 | K177: 139 | L177: 161
C178: März | D178: march | E178: 42 | F178: 368 | G178: 123 | H178: 34 | I178: 835 | J178: 542 | K178: 415 | L178: 336
C179: April | D179: april | E179: 54 | F179: 810 | G179: 138 | H179: 12 | I179: 113 | J179: 429 | K179: 486 | L179: 841
C180: Mai | D180: may | E180: 35 | F180: 856 | G180: 312 | H180: 8 | I180: 186 | J180: 448 | K180: 216 | L180: 88
C181: Juni | D181: june | E181: 64 | F181: 287 | G181: 265 | H181: 220 | I181: 21 | J181: 110 | K181: 774 | L181: 245
C182: Juli | D182: july | E182: 61 | F182: 198 | G182: 154 | H182: 99 | I182: 12 | J182: 150 | K182: 198 | L182: 634
C183: August | D183: august | E183: 59 | F183: 939 | G183: 199 | H183: 92 | I183: 849 | J183: 402 | K183: 466 | L183: 332
C184: September | D184: september | E184: 67 | F184: 321 | G184: 312 | H184: 12 | I184: 30 | J184: 593 | K184: 373 | L184: 892
C185: Oktober | D185: october | E185: 66 | F185: 180 | G185: 111 | H185: 6 | I185: 275 | J185: 411 | K185: 383 | L185: 328
C186: November | D186: november | E186: 62 | F186: 886 | G186: 530 | H186: 86 | I186: 878 | J186: 546 | K186: 211 | L186: 778
C187: Dezember | D187: december | E187: 58 | F187: 211 | G187: 280 | H187: 2 | I187: 210 | J187: 570 | K187: 163 | L187: 499

Sheet 18 Kastengrafik (A)_ (hidden)
B1: 2 | C1: 2 | D1: 2 | E1: 1 | F1: 1 | G1: 1 | H1: 0
A2: 1 | B2: 18 Boxplot (E)_ | F2: =B2 -> 18 Boxplot (E)_
A3: 2 | B3: 18 Kastengrafik (A)_
A4: 0
B5: 1 | C5: Das Kastendiagramm (engl. Boxplot) ist eine Möglichkeit zur anschaulichen Darstellung einer statistischen Verteilung von Zahlen. Wie der Name schon sagt, wird ein Kasten erzeugt, - dessen Obergrenze beim dritten Quartil und - dessen Untergrenze beim ersten Quartil liegt. Das heißt, dass innerhalb des Kastens die Hälfte aller Werte der Zahlenreihe liegt. Zusätzlich werden - das nullte Quartil unterhalb des Kastens und - das vierte Quartil oberhalb des Kastens als dünne Linien dargestellt ("Whisker"). (Der Begriff des "Quartils" wird in meiner Übungsdatei "Excel-Statistics" erklärt.) | E5: 1 | F5: The boxplot is a possibility for the descriptive representation of a statistical distribution of numbers. As the name suggests, a box is created with - its upper limit at the third quartile and - its lower limit is at the first quartile This means that half of all the values in the series lie within the box. In addition there are thin lines ("whisker") which represent - the zeroth quartile below the box, and - the fourth quartile above the box. (The term "quartile" is explained in my exercise file "Excel-Statistics".)
B6: =IF(C6<>"",B5+1,"") -> 2 | C6: ACHTUNG: Diese Diagrammart steht erst ab Excel 2016 zur Verfügung! Sehen Sie sich dazu bitte das Beispiel an. "Einfügen / Diagramme / Kastengrafik" | E6: =IF(F6<>"",E5+1,"") -> 2 | F6: This chart type is only available since Excel 2016! Please have a look at the example. "Insert / Charts / Box and Whisker"
B7: =IF(C7<>"",B6+1,"") -> 3 | C7: Über einen Rechtsklick auf die Box haben Sie die Möglichkeit, einige Einstellungen für das Diagramm zu machen. Besonders interessant ist hier die Option "Ausreißerpunkte anzeigen". Was ist ein "Ausreißer"? Das ist ein Wert, der sich "weit außerhalb" der Box befindet - also im Vergleich zu den übrigen Werten besonders klein oder besonders groß ist. Üblich ist hierfür folgende Definition: | E7: =IF(F7<>"",E6+1,"") -> 3 | F7: With a right click on the box you have the possibility to make some settings for the diagram. The option "Show outlier points"; is particularly interesting. What's an "outlier"? It is a value that is "far outside" the box, i. e. it is very small or very large compared to the other values. The usual definition for this is as follows:
B8: =IF(C8<>"",B7+1,"") -> 4 | C8: Ein Wert wird als "Ausreißer" bezeichnet, wenn er mehr als das 1,5-fache des Interquartilabstandes (IQR = "Interquartile Range") oberhalb des dritten Quartils oder unterhalb des ersten Quartils (also weit außerhalb der Box) liegt. Als IQR wird hierbei die Höhe der Box bezeichnet - also die Differenz aus drittem und erstem Quartil (siehe Beispiel). Um zu sehen, was damit gemeint ist, ändern Sie bitte die in der Liste rot markierte Zahl auf einen Wert größer als 59. Sie werden sehen, dass der Wert ab 60,00001 als Ausreißer gilt. Das ist aber nicht 1,5*IQR, sondern 1,64*IQR. Excel weicht hier also offenbar von der üblichen Definition ab. | E8: =IF(F8<>"",E7+1,"") -> 4 | F8: A value is called an "outlier" if it is more than 1.5 times the interquartile range (IQR) above the third quartile or below the first quartile (i. e. far outside the box). The IQR is the height of the box, i.e. the difference between the third and first quartile (see example). To see what is meant by this, please change the number marked red in the list to a value greater than 59. You will see that the value from 60. 00001 is considered an "outlier". But that is not 1.5*IQR, but 1.64*IQR. Excel obviously deviates here from the usual definition.
B9: =IF(C9<>"",B8+1,"") -> 5 | C9: Wenn Sie mehrere Datenreihen in einem Kastendiagramm darstellen wollen, kommt es auf die richtige Anordnung der Zahlen an. Angenommen, Sie haben acht Produkte mit ihren monatlichen Verkaufszahlen. Wenn Sie nun versuchen, mit dieser Tabelle ein Kastendiagramm zu erzeugen, wird das nicht gelingen. Sie müssen die Zahlen vorher erst anders anordnen. Das fertige Diagramm zeigt Ihnen dann sehr komprimiert viele Informationen zum Vergleich der Produkte. | E9: 5 | F9: If you want to display several data series in a box plot diagram, the correct arrangement of the numbers is important. Suppose you have eight products with their monthly sales figures. If you now try to create a box plot with this table, this will not succeed. You'll have to rearrange the numbers first. The finished chart then shows you a lot of information in a very condensed form to compare the products.

Sheet 19 Sonstiges …
F1: 0
A2: 1 | B2: 19 Others … | F2: Back to Start
A3: 2 | B3: 19 Sonstiges … | F3: Startseite
A5: 2 | B5: Problem | C5: Das Alter von Unternehmen soll in der folgenden Form dargestellt werden:
A6: 2
A7: 1 | B7: Problem | C7: The age of some enterprises shall be displayed in the following form:
A8: 1
L9: enterprise | M9: foundation year | N9: age
L10: R A Brooks Trucking Co | M10: 2015 | N10: =YEAR(NOW())-M10 -> 8
L11: Cognisa Security Svc | M11: 2012 | N11: =YEAR(NOW())-M11 -> 11
L12: Westport Twn Building Inspctr | M12: 2010 | N12: 13
L13: Typing Unlimited | M13: 2006 | N13: 17
L14: Northeast Thermography | M14: 2000 | N14: 23
L15: Christian Bernard | M15: 1997 | N15: 26
L16: Morris Foundation Women & Chil | M16: 1997 | N16: 26
L17: Nardella's Turf Care Inc | M17: 1993 | N17: 30
L18: Iroquois Gas Transmission Syst | M18: 1975 | N18: 48
L19: Diorio Restaurant & Bar | M19: 1974 | N19: 49
L20: Easton Superintendent-Schools | M20: 1974 | N20: 49
L21: Precision Mechanical Svc | M21: 1972 | N21: 51
L22: Guardian Systems Inc | M22: 1959 | N22: 64
L23: Kesten-Brown Insurance | M23: 1957 | N23: 66
L24: Boman Tool Co | M24: 1956 | N24: 67
L25: Connecticut Lubrication Svc | M25: 1947 | N25: 76
L26: Lighting Services Inc | M26: 1905 | N26: 118
L27: Steve Basso Plumbing & Heating | M27: 1889 | N27: 134
L28: Prudential Wheeler Real Estate | M28: 1882 | N28: 141
L29: Lincraft Contracting | M29: 1821 | N29: 202
A37: 2 | B37: Lösung | C37: Darstellung des Gründungsjahres und des Alters als gestapelte Balken Dann den unteren (blauen) Teil unsichtbar machen (keine Füllung, kein Rand).
A38: 2
A39: 2
A40: 1 | B40: Solution | C40: Display the foundation year and the age as stacked bars. Then make the lower (blue) part invisible (no filling, no border).
A41: 1
A42: 1
A45: 0
